Workbook

Sheet Index
B1: Massachusetts Department of Elementary and Secondary Education
B2: FY15 Charter School End of Year Financial Report Summary
B3: Last Updated: April 2016
B5: Data Context
B6: This data was collected via the FY2015 Charter School End of Year Financial Report (15CSEOYFR) as well as SIMS and EPIMS databases.
B8: Technical Tips
B9: We recommend that you save this workbook to your computer before proceeding, then leave this browser, and open the workbook using EXCEL or My Computer. If you get a "macros not enabled" or similar macro security error message, access the various sheets manually using the tabs at the bottom of the screen. To enable macros, use the "Tools\Macro\Security" commands to re-set the macro security level to "low". Then save the file, file close, and re-open the file.
B11: Instructions for Viewing Data
B12: Use the drop-down menu to select a charter school that was operating in FY15 or a statewide charter summary total (location in FY15 in parenthesis) [Type of charter school in brackets: C = Commonwealth, HM = Horace Mann]. The charter school's location in FY15 is provided in parenthesis. Then use any of the three links below (or click the corresponding worksheet) to view specific financial data.
C15: =VLOOKUP(E15, CSORDER, 2, FALSE) ->  | D15: =VLOOKUP(E15, CSORDER, 3, FALSE) ->  | E15: 1
B18: 1. Statement of Net Position
B19: 2. Statement of Revenues, Expenses and Change in Net Position
B20: 3. Schedule of Functional Expenses
B22: In addition, statewide summary data is available for the following:
B23: 4. Expenditures Per Pupil
B24: 5. Average Teacher Salaries
B26: For researchers, the following raw data sets are available:
B27: BAL15_raw (Balance Sheet Data)
B28: INC15_raw (Income Statement Data)
B29: FE15_raw (Schedule of Functional Expenses Data)
B30: FTE_raw (Student FTE Enrollment Data)
B31: EPIMS15_raw (Teacher FTE Enrollment Data)

Sheet 1. Statement of Net Position
A1: NAME: | B1: =SCHOOLNAME ->  | F1: LEA | G1: =LEA -> 
A3: Statement of Net Position
A4: For the Year Ended June 30, 2015
F6: =B1 ->  | G6: ABC Charter School Foundation (Component Unit) | H6: 2015 Total (Memorandum Only) | J6: Line | K6: Rec. Acct#
C7: ASSETS
C8: Current Assets
A9: 1 | C9: Cash and Cash Equivalents | D9: Assets that are cash or can be converted into cash immediately. | F9: =VLOOKUP($G$1&$A9, BAL, 6,FALSE) ->  | G9: =VLOOKUP($G$1&$A9, BAL, 7,FALSE) ->  | H9: =VLOOKUP($G$1&$A9, BAL, 8,FALSE) ->  | J9: =A9 -> 1 | K9: 10XX
A10: 2 | C10: Accounts Receivable net of doubtful accounts | D10: A school's claim for money, goods and services from customers and other entities. | J10: 2 | K10: 11XX
A11: 3 | C11: Grants Receivable - State | D11: Claims for goods and services provided under state awarded contracts. | J11: 3 | K11: 11XX
A12: 4 | C12: Grants Receivable - Federal | D12: Claims for goods and services provided under federal awarded contracts. | J12: 4 | K12: 11XX
A13: 5 | C13: Grants Receivable - Private | D13: Claims for goods and services provided from private awards received. | J13: 5 | K13: 11XX
A14: 6 | C14: Contributions Receivable | D14: Unconditional promises to give by private individuals or corporations. | J14: 6 | K14: 11XX
A15: 7 | C15: Due from related parties | D15: Amounts to be received from related parties. | J15: 7 | K15: 12XX
A16: 8 | C16: Prepaid Expenses / Inventory | D16: An expense paid but not incurred as of year end. Also include short-term inventories of supplies such as uniforms. | J16: 8 | K16: 13XX
A17: 9 | C17: Short-Term Investments | D17: Readily marketable security for which the intention of the school is the conversion to cash in the short term. | J17: 9 | K17: 14XX
A18: 10 | C18: Deposit (Security, Other) | D18: Security deposits for leases, or other deposits. | J18: 10 | K18: 15XX
A19: 11 | C19: Restricted Current Assets | D19: Current assets restricted by external sources for future purchases. | J19: 11 | K19: 15XX
A20: 12 | C20: TOTAL CURRENT ASSETS | D20: Calculates automatically. | J20: 12 | K20: NA
C21: Noncurrent Assets
C22: Capital Assets
A23: 13 | C23: - Land and Buildings | D23: Value of land and building inclusive of remodeling, reconditioning, or altering the building purchased to make it available for the purpose for which it was acquired, including construction in progress. | F23: =VLOOKUP($G$1&$A23, BAL, 6,FALSE) ->  | G23: =VLOOKUP($G$1&$A23, BAL, 7,FALSE) ->  | H23: =VLOOKUP($G$1&$A23, BAL, 8,FALSE) ->  | J23: =A23 -> 13 | K23: 15XX
A24: 14 | C24: - Building/Leasehold Improvement | D24: Value of improvements on leased property that revert back to the owners upon termination of the lease. | J24: 14 | K24: 15XX
A25: 15 | C25: - Furniture and Equipment | D25: Value of furniture and equipment that meet the school's capitalization policy. | J25: 15 | K25: 15XX
A26: 16 | C26: - Less Accumulated Depreciation | D26: The aggregate, at a given point in time, of the depreciation charges made during the useful life of the fixed asset. Enter as a negative number. | J26: 16 | K26: 16XX
A27: 17 | C27: Net Capital Assets | D27: Calculates automatically. | J27: 17 | K27: NA
A28: 18 | C28: Restricted Noncurrent Assets | D28: Noncurrent assets restricted by external sources for future purchases. | J28: 18 | K28: 10XX
A29: 19 | C29: Long-Term Investments | D29: Investments that do not meet the criteria of "Short-Term Investments" above. | J29: 19 | K29: 14XX
A30: 20 | C30: Building Acquisition / Financing Costs / Deferred Expenses | D30: Costs related to building acquisition, construction, and/or financing costs which are amortized. Also include long-term pre-paid leases or expenses which are amortized. | J30: 20 | K30: 14XX
A31: 21 | C31: Long-Term Grants / Contributions Receivable | D31: Please enter a brief description in the highlighted green cell, if applicable. | J31: 21 | K31: 14XX
A32: 22 | C32: TOTAL NONCURRENT ASSETS | D32: Calculates automatically. | J32: 22 | K32: NA
A33: 23 | C33: TOTAL ASSETS | D33: Calculates automatically. | J33: 23 | K33: NA
C35: LIABILITIES AND NET ASSETS
C36: Current Liabilities
A37: 24 | C37: Accounts Payable | D37: Obligations for goods or services purchased for which invoices have been received. | F37: =VLOOKUP($G$1&$A37, BAL, 6,FALSE) ->  | G37: =VLOOKUP($G$1&$A37, BAL, 7,FALSE) ->  | H37: =VLOOKUP($G$1&$A37, BAL, 8,FALSE) ->  | J37: =A37 -> 24 | K37: 20XX
A38: 25 | C38: Accrued Expenses / Accrued Payroll | D38: An unpaid expense incurred that has not been paid as of the end of the period, including accrued payroll. | J38: 25 | K38: 21XX
A39: 26 | C39: Deferred Revenue | D39: Cash received for services not performed (i.e., grant funds received that were not expended). | J39: 26 | K39: 22XX
A40: 27 | C40: Due to related parties | D40: Amounts due to related parties such as the school's component unit. | J40: 27 | K40: 23XX
A41: 28 | C41: Current Debt Payable | D41: Debt obligations due within one year of financial statement date. | J41: 28 | K41: 24XX
A42: 29 | C42: Current Lease Obligations Payable | D42: Lease obligations due within one year of financial statement date. | J42: 29 | K42: 24XX
A43: 30 | C43: TOTAL CURRENT LIABILITIES | D43: Calculates automatically. | J43: 30 | K43: NA
C44: Noncurrent Liabilities
A45: 31 | C45: Noncurrent Lease Obligations | D45: Lease obligations due after one year of financial statement date. | F45: =VLOOKUP($G$1&$A45, BAL, 6,FALSE) ->  | G45: =VLOOKUP($G$1&$A45, BAL, 7,FALSE) ->  | H45: =VLOOKUP($G$1&$A45, BAL, 8,FALSE) ->  | J45: =A45 -> 31 | K45: 26XX
A46: 32 | C46: Long-Term Debt | D46: Debt obligations due after one year of financial statement date. | F46: =VLOOKUP($G$1&$A46, BAL, 6,FALSE) ->  | G46: =VLOOKUP($G$1&$A46, BAL, 7,FALSE) ->  | H46: =VLOOKUP($G$1&$A46, BAL, 8,FALSE) ->  | J46: =A46 -> 32 | K46: 26XX
A47: 33 | C47: Deferred Revenue | D47: Cash received for services not performed (i.e., grant funds received that were not expended). | F47: =VLOOKUP($G$1&$A47, BAL, 6,FALSE) ->  | G47: =VLOOKUP($G$1&$A47, BAL, 7,FALSE) ->  | H47: =VLOOKUP($G$1&$A47, BAL, 8,FALSE) ->  | J47: =A47 -> 33 | K47: 2XXX
A48: 34 | C48: TOTAL NONCURRENT LIABILITIES | D48: Calculates automatically. | F48: =VLOOKUP($G$1&$A48, BAL, 6,FALSE) ->  | G48: =VLOOKUP($G$1&$A48, BAL, 7,FALSE) ->  | H48: =VLOOKUP($G$1&$A48, BAL, 8,FALSE) ->  | J48: =A48 -> 34 | K48: NA
A49: 35 | C49: TOTAL LIABILITIES | D49: Calculates automatically. | F49: =VLOOKUP($G$1&$A49, BAL, 6,FALSE) ->  | G49: =VLOOKUP($G$1&$A49, BAL, 7,FALSE) ->  | H49: =VLOOKUP($G$1&$A49, BAL, 8,FALSE) ->  | J49: =A49 -> 35 | K49: NA
C51: NET ASSETS
A52: 36 | C52: Investment in capital assets (net of related debt) | D52: Represents capital assets reduced by accumulated depreciation and any outstanding debt used to acquire, construct or improve those assets. | F52: =VLOOKUP($G$1&$A52, BAL, 6,FALSE) ->  | G52: =VLOOKUP($G$1&$A52, BAL, 7,FALSE) ->  | H52: =VLOOKUP($G$1&$A52, BAL, 8,FALSE) ->  | J52: =A52 -> 36 | K52: 3XXX
A53: 37 | C53: Temporarily Restricted | D53: Net assets that are temporarily restricted by a funder or the school's Board for a specific purpose. | J53: 37 | K53: 32XX
A54: 38 | C54: Permanently Restricted | D54: Net assets that are restricted by an outside agency or person, as contrasted with assets over which the entity has control and discretion. E.g., a donor scholarship fund. | J54: 38 | K54: 33XX
A55: 39 | C55: Unrestricted (non-capital) | D55: Net assets that do not meet the definitions of any of the above categories. | J55: 39 | K55: 30XX
A56: 40 | C56: TOTAL NET ASSETS | D56: Calculates automatically. | J56: 40 | K56: NA
A57: 41 | C57: TOTAL LIABILITIES AND NET ASSETS | D57: Calculates automatically. MUST RECONCILE WITH LINE 23 (TOTAL ASSETS) | J57: 41 | K57: NA

Sheet 2. Stmt Rev, Exp and Change
B1: NAME: | C1: =SCHOOLNAME ->  | F1: LEA | G1: =LEA ->  | M1: =3 -> 3
A3: Statement of Revenues, Expenses and Change in Net Position
A4: For the Year Ended June 30, 2015
D6: Restricted – The use of these funds are restricted to a particular purpose or project. Unrestricted – These use of these funds are unrestricted and came be used toward any purpose. | F6: =C1 ->  | G6: ABC Charter School Foundation (Component Unit) | H6: 2015 Total (Memorandum Only) | J6: Line | K6: Rec. Acct#
C7: REVENUES
A8: 1 | C8: Tuition | D8: Total tuition paid to the charter school by either the Commonwealth or sending school district (Horace Mann), inclusive of local transportation and facilities reimbursement embedded in Commonwealth tuition payments. This should include any reimbursements received for local transportation reimbursement, if applicable. | F8: =VLOOKUP($G$1&$A8, INC, 6,FALSE) ->  | H8: =VLOOKUP($G$1&$A8, INC, 8,FALSE) ->  | J8: =A8 -> 1 | K8: 4000
A9: 2a | B9: ^ | C9: Grants - State - passed through ESE | D9: Grants awarded through the ESE. | G9: =VLOOKUP($G$1&$A9, INC, 7,FALSE) ->  | J9: 2a | K9: 41XX
A10: 2b | B10: ^ | C10: Grants - State - other non-ESE pass-through | D10: Grants awarded directly by the Commonwealth of MA. | J10: 2b | K10: 41XX
A11: 3 | B11: ^ | C11: Grants - Federal - Passed through ESE | D11: Grants from federal sources that pass through ESE such as Title I, IDEA, Charter School Start-Up Assistance, etc. | J11: 3 | K11: 41XX
A12: 4 | B12: ^ | C12: Grants - Federal - Direct or other pass-through | D12: Grants from federal sources awarded directly from federal agencies or passed-through other agencies. | J12: 4 | K12: 41XX
A13: 5a | B13: ^ | C13: Grants - Private (restricted) | D13: Grants awarded by private (non-governmental) foundations, corporations, or individuals that are restricted. | J13: 5a | K13: 41XX
A14: 5b | C14: Grants - Private (unrestricted) | D14: Grants awarded by private (non-governmental) foundations, corporations, or individuals that are unrestricted. | J14: 5b | K14: 41XX
A15: 6 | B15: ^ | C15: Nutrition Funding - State | D15: Funding for nutrition programs is split between the federal and state governments. | J15: 6 | K15: 42XX
A16: 7 | B16: ^ | C16: Nutrition Funding - Federal | D16: Funding for nutrition programs is split between the federal and state governments. | J16: 7 | K16: 42XX
A17: 8 | C17: Nutrition Funding - Fees | D17: Fees collected from students for nutrition programs. | J17: 8 | K17: 42XX
A18: 9 | C18: Other Program / Student Activity Fees | D18: Any fees that the school collects for transportation, uniforms, etc. | G18: =VLOOKUP($G$1&$A18, INC, 7,FALSE) ->  | J18: 9 | K18: 43XX
A19: 10 | C19: Regional Transportation Aid | D19: Reimbursements from the Commonwealth for regional transportation costs, if applicable. | J19: 10 | K19: 45XX
A20: 11 | C20: Medicaid Reimbursements | D20: Reimbursement from Medicaid | J20: 11 | K20: 45XX
A21: 12 | C21: Circuit Breaker Reimbursements | D21: Reimbursements from the Commonwealth for high-cost special education students, if applicable. | J21: 12 | K21: 45XX
A22: 13a | C22: Contributions, in-kind, host district | D22: Recorded monetary value of in-kind donations for services that would otherwise have been purchased, provided by the school's host district (e.g. transportation, food). | J22: 13a | K22: 44XX
A23: 13b | C23: Contributions, in-kind, other | D23: Recorded monetary value of in-kind donations for services that would otherwise have been purchased, provided by individuals/organizations other than the host district. | G23: =VLOOKUP($G$1&$A23, INC, 7,FALSE) ->  | J23: 13b | K23: 44XX
A24: 14 | C24: Contributions, from Component Unit (restricted) | D24: Restricted contributions made to the School by the Component Unit | J24: 14 | K24: 44XX
A25: 14b | C25: Contributions, from Component Unit (unrestricted) | D25: Unrestricted contributions made to the School by the Component Unit | J25: 14b | K25: 44XX
A26: 15 | C26: Contributions / Fundraising (restricted) | D26: Restricted donations from individuals, businesses, or corporations. | J26: 15 | K26: 44XX
A27: 15b | C27: Contributions / Fundraising (unrestricted) | D27: Unrestricted donations from individuals, businesses, or corporations. | J27: 15b | K27: 44XX
A28: 16 | C28: Interest / Investment Income (restricted) | D28: Restricted income generated from interest/investments. | J28: 16 | K28: 47XX
A29: 16a | C29: Interest / Investment Income (unrestricted) | D29: Unrestricted income generated from interest/investments. | J29: 16b | K29: 47XX
A30: 17 | C30: Rental Income | D30: Income generated from rental of space. | J30: =A30 -> 17 | K30: 46XX
A31: 18 | C31: Loan Forgiveness or Other Reimbursement | D31: Revenue recorded for loan forgiveness or other credit. | J31: =A31 -> 18 | K31: 4XXX
A32: 19 | C32: Miscellaneous Income | D32: Miscellaneous Income. | J32: =A32 -> 19 | K32: 4XXX
A33: 20 | C33: TOTAL REVENUES | D33: Calculates automatically. | J33: =A33 -> 20 | K33: NA
B34: ^ | C34: Non-"General Fund" revenue sources
C36: EXPENSES
A37: 21 | C37: Administration | D37: Charter School figures will be populated from the Sch_FuncExp sheet. | F37: =VLOOKUP($G$1&$A37, INC, 6,FALSE) ->  | H37: =VLOOKUP($G$1&$A37, INC, 8,FALSE) ->  | J37: =A37 -> 21 | K37: NA
A38: 22 | C38: Instructional Services | D38: Charter School figures will be populated from the Sch_FuncExp sheet. | J38: 22 | K38: NA
A39: 23 | C39: Pupil Services | D39: Charter School figures will be populated from the Sch_FuncExp sheet. | J39: 23 | K39: NA
A40: 24 | C40: Operation & Maintenance of Plant | D40: Charter School figures will be populated from the Sch_FuncExp sheet. | J40: 24 | K40: NA
A41: 25 | C41: Fixed Charges | D41: Charter School figures will be populated from the Sch_FuncExp sheet. | J41: 25 | K41: NA
A42: 26 | C42: Community Services | D42: Charter School figures will be populated from the Sch_FuncExp sheet. | J42: 26 | K42: NA
A43: 27 | C43: Non-Operating Financing Expenses | D43: Charter School figures will be populated from the Sch_FuncExp sheet. | J43: 27 | K43: NA
A44: 28 | C44: Component Unit Expenses | D44: Aggregate operating expenses for the Component Unit. | G44: =VLOOKUP($G$1&$A44, INC, 7,FALSE) ->  | J44: 28 | K44: NA
A45: 29 | C45: Contributions to School | D45: Contributions made by the Component Unit to the School | G45: =VLOOKUP($G$1&$A45, INC, 7,FALSE) ->  | J45: 29 | K45: NA
A46: 30 | C46: TOTAL EXPENSES | D46: Calculates automatically. | F46: =VLOOKUP($G$1&$A46, INC, 6,FALSE) ->  | G46: =VLOOKUP($G$1&$A46, INC, 7,FALSE) ->  | J46: 30 | K46: NA
A48: 31 | C48: TOTAL GAIN/(LOSS) | D48: Calculates automatically. | F48: =VLOOKUP($G$1&$A48, INC, 6,FALSE) ->  | G48: =VLOOKUP($G$1&$A48, INC, 7,FALSE) ->  | H48: =VLOOKUP($G$1&$A48, INC, 8,FALSE) ->  | J48: =A48 -> 31 | K48: NA
A49: 32 | C49: Gain/Loss on Sale of Asset or Lease Transaction | D49: Gain/Loss recorded on sale of school assets or lease transaction. | F49: =VLOOKUP($G$1&$A49, INC, 6,FALSE) ->  | G49: =VLOOKUP($G$1&$A49, INC, 7,FALSE) ->  | H49: =VLOOKUP($G$1&$A49, INC, 8,FALSE) ->  | J49: =A49 -> 32 | K49: 5XXX
A50: 33 | C50: Other Gain/Loss | D50: Other Gain or Loss that is a non-recurring, unusual occurrence such as a prior-period adjustment | F50: =VLOOKUP($G$1&$A50, INC, 6,FALSE) ->  | G50: =VLOOKUP($G$1&$A50, INC, 7,FALSE) ->  | H50: =VLOOKUP($G$1&$A50, INC, 8,FALSE) ->  | J50: =A50 -> 33 | K50: 5XXX
A51: 34 | C51: TOTAL CHANGES IN NET ASSETS: | D51: Calculates automatically. | F51: =VLOOKUP($G$1&$A51, INC, 6,FALSE) ->  | G51: =VLOOKUP($G$1&$A51, INC, 7,FALSE) ->  | H51: =VLOOKUP($G$1&$A51, INC, 8,FALSE) ->  | J51: =A51 -> 34 | K51: NA
A53: 35 | C53: NET ASSETS AT BEGINNING OF YEAR | D53: Please enter values from previous year's audit. | F53: =VLOOKUP($G$1&$A53, INC, 6,FALSE) ->  | G53: =VLOOKUP($G$1&$A53, INC, 7,FALSE) ->  | H53: =VLOOKUP($G$1&$A53, INC, 8,FALSE) ->  | J53: =A53 -> 35 | K53: NA
A54: 36 | C54: NET ASSETS AT END OF YEAR | D54: Calculates automatically. MUST RECONCILE WITH BALANCE SHEET LINE 40 (TOTAL NET ASSETS) | F54: =VLOOKUP($G$1&$A54, INC, 6,FALSE) ->  | G54: =VLOOKUP($G$1&$A54, INC, 7,FALSE) ->  | H54: =VLOOKUP($G$1&$A54, INC, 8,FALSE) ->  | J54: =A54 -> 36 | K54: NA
F55: 0 | G55: 0 | H55: 0

Sheet 3. Schedule of Func Exp
B1: NAME: | C1: =SCHOOLNAME ->  | H1: =LEA -> 
A3: Schedule of Functional Expenses
A4: For the Year Ended June 30, 2015
F5: "General" Fund
F6: 1 | G6: 2 | H6: 3 | I6: 4 | J6: 5 | K6: 6 | L6: 7
F7: General Education | G7: Special Education | H7: Undistributed | I7: State Grants & Nut. Reimb. | J7: Federal Grants & Nut. Reimb. | K7: Private Grants (Designated) | L7: TOTAL | O7: Rec. | Q7: Crosswalk to EOYR, if possible
A8: Line | C8: Functional Category | D8: For salaried personnel, please provide a full-time equivalency (FTE) total that corresponds to the salary expense reported. | F8: Expenses | G8: Expenses | H8: Expenses | I8: Expenses | J8: Expenses | K8: Expenses | L8: Expenses | N8: Line | O8: Acct# | S8: Defintions
A10: 100 | C10: Administration | D10: =C10&" - Calculates automatically." -> Administration - Calculates automatically. | H10: =VLOOKUP($H$1&$A10, FE, 8,FALSE) ->  | I10: =VLOOKUP($H$1&$A10, FE, 9,FALSE) ->  | J10: =VLOOKUP($H$1&$A10, FE, 10,FALSE) ->  | K10: =VLOOKUP($H$1&$A10, FE, 11,FALSE) ->  | L10: =VLOOKUP($H$1&$A10, FE, 12,FALSE) ->  | N10: =A10 -> 100 | O10: NA | Q10: 1000 series | S10: 1 | T10: General Education | U10: Expenditures from "operating" revenues recognized on all lines except 2 - 5a and 6 - 7 of the Income Statement for General Education programs (defined as non-special education programs). These expenditures should include English Language Learner programs, required summer school, and extended programs.
A11: 110 | C11: Subtotal - Board of Trustees | D11: Calculates automatically | H11: =VLOOKUP($H$1&$A11, FE, 8,FALSE) ->  | N11: 110 | O11: NA | Q11: 1100 | S11: 2 | T11: Special Education | U11: Expenditures from "operating" revenues recognized on all lines except 2 - 5a and 6 - 7 of the Income Statement for Special Education, defined as programs for instruction of students with special needs, provided for under MGL Ch. 71B and 603 CMR 28.00. Note that all special education expenditures by charter schools will be for "in-district" students, as the fiscal responsibility of any special needs student currently enrolled in or determined to require a private day or residential school shall remain with the school district where the student resides per MGL Chapter 71 Section 89(s).
A12: 111 | C12: Contracted Services | D12: Contracted professional services, including all related expenses covered by the contract. (Ex: board training consultant, facilitator for board retreat, board attorney) | N12: 111 | O12: 53X1 | Q12: 1100 | S12: 3 | T12: Undistributed | U12: Expenditures that cannot be assigned to either General Education and Special Education program areas from "operating" revenues recognized on all lines except 2 - 5a and 6 - 7 of the Income Statement.
A13: 112 | C13: Travel and other expenses | D13: Travel and other expenses for board members such as dues, subscriptions and memberships. (Ex: board member travels to charter school conference, dues for board-specific professional association) | N13: 112 | O13: 57X1 | Q13: 1100 | S13: 4 | T13: State Grants & Funding | U13: Expenditures from state revenue sources recognized in Line 2 and 6 of the Income Statement. Amounts here should reconcile with final expenditure reports for state grants filed with ESE.
A14: 120 | C14: Subtotal - School Leaders | D14: Calculates automatically | N14: 120 | O14: NA | Q14: 1210, 1220 | S14: 5 | T14: Federal Grants & Funding | U14: Expenditures from federal revenue sources recognized in Line 3, 4, and 7 of the Income Statement. Amounts here should reconcile with final expenditure reports for state and federal grants filed with ESE.
A15: 121 | C15: Salaries - Professional | D15: Salaries for non-instructional school-wide administrative personnel (Ex: executive director). Principals and Instructional Leaders should be noted in Instructional Services. If role is instructional and administrative, split accordingly. | N15: 121 | O15: 5XX1 | Q15: 1210, 1220 | S15: 6 | T15: Private Grants (Restricted) | U15: Expenditures from restricted private grants for operating expenses listed in the Income Statement as line 5a. Note that all other private donations/contributions should be captured in the "general fund" columns.
A16: 122 | C16: Contracted Services | D16: Contracted professional services, including all related expenses covered by the contract. (Ex: interim school leader) | N16: 122 | O16: 53X1 | Q16: 1210, 1220
A17: 130 | C17: Subtotal - Business and Finance | D17: Calculates automatically | N17: 130 | O17: NA | Q17: 1410
A18: 131 | C18: Salaries - Professional | D18: Salaries for non-instructional school-wide administrative personnel. (Ex: business manager, accountant, chief financial officer) | N18: 131 | O18: 5XX1 | Q18: 1410
A19: 132 | C19: Contracted Services | D19: Contracted professional services, including all related expenses covered by the contract. (Ex: contracted accounting/book keeping firm, auditor) | N19: 132 | O19: 53X1 | Q19: 1410
A20: 140 | C20: Subtotal - Human Resources | D20: Calculates automatically | N20: 140 | O20: NA | Q20: 1420
A21: 141 | C21: Salaries - Professional | D21: Salaries for non-instructional school-wide administrative personnel. (Ex: HR director, Staff Recruitment) | N21: 141 | O21: 5XX1 | Q21: 1420
A22: 142 | C22: Contracted Services | D22: Contracted professional services, including all related expenses covered by the contract. (Ex: contracted HR company, payroll company) | N22: 142 | O22: 53X1 | Q22: 1420
A23: 150 | C23: Subtotal - Legal Services | D23: Calculates automatically | N23: 150 | O23: NA | Q23: 1430, 1435
A24: 151 | C24: Salaries - Professional | D24: Salaries for non-instructional school-wide administrative personnel. (Ex. school attorney) | N24: 151 | O24: 5XX1 | Q24: 1430, 1435
A25: 152 | C25: Contracted Services | D25: Contracted professional services, including all related expenses covered by the contract. (Ex: contracted attorney) | N25: 152 | O25: 53X1 | Q25: 1430, 1435
A26: 160 | C26: Subtotal - Info. Management & Technology | D26: Calculates automatically | N26: 160 | O26: NA | Q26: 1450
A27: 161 | C27: Salaries - Professional | D27: Salaries for non-instructional school-wide administrative personnel. (Ex: network support technician, Enrollment Director/Registrar, SIMS administrator) | N27: 161 | O27: 5XX1 | Q27: 1450
A28: 162 | C28: Contracted Services | D28: Contracted professional services, including all related expenses covered by the contract. (Ex: contracted IT professional) | N28: 162 | O28: 53X1 | Q28: 1450
A29: 163 | C29: Supplies and Materials | D29: Materials and items of an expendable nature. Unit price of less than $5000. (Ex: non-instructional computers, non-instructional software such accounting software) | N29: 163 | O29: 54X1 | Q29: 1230
A30: 164 | C30: Depreciation for Information Technology | D30: Annual depreciation expense for capitalized Information Management and Technology. | N30: 164 | O30: 5701 | Q30: 1450
A31: 170 | C31: Subtotal - Development (Private) | D31: Calculates automatically | N31: 170 | O31: NA | Q31: 1230
A32: 170a | C32: Salaries - Professional - Private | D32: Salaries apportioned to private development personnel (this could be % of a salary). (Ex: grant writer) | N32: 170a | O32: 5XX1 | Q32: 1230
A33: 170b | C33: Contracted Services - Private | D33: Contracts apportioned to professional services for private development (including all related expenses covered by the contract). (Ex: contracted fundraiser, contracted grant writer) | N33: 170b | O33: 53X1 | Q33: 1230??
A34: 170c | C34: Fundraising - Private | D34: Expenses related to private fundraising. (Ex: invitations to fundraiser, fundraising software, space rental for fundraising event) | N34: 170c | O34: 5891
A35: 171 | C35: Subtotal - Development (Public) | D35: Calculates automatically | N35: 171 | O35: NA
A36: 171a | C36: Salaries - Professional - Public | D36: Salaries apportioned to public development personnel (this could be a % of a salary). (Ex: grant writer) | N36: 171a | O36: 5XX1
A37: 171b | C37: Contracted Services - Public | D37: Contracts apportioned to professional services for public development (including all related expenses covered by the contract). (Ex: contracted grant writer) | N37: 171b | O37: 53X1
A38: 180 | C38: Subtotal - Other Administration | D38: Calculates automatically | N38: 180 | O38: NA | Q38: 1230
A39: 181 | C39: Salaries | D39: Salaries for student recruitment personnel and administrative support personnel who prepare, transcribe, systematize or preserve communications, records and transactions. (Ex: registrar, office secretary) | N39: 181 | O39: 5XX1 | Q39: 1230
A40: 182 | C40: Contracted Services | D40: Contracts for student recruitment personnel and administrative support personnel who prepare, transcribe, systematize or preserve communications, records and transactions. (Ex: registrar, office secretary) | N40: 182
A41: 183 | C41: Recruitment/Advertising | D41: Recruiting/advertising for students, staff, and board members. (Ex: brochures for open house) | N41: =A41 -> 183 | O41: 58X1 | Q41: 1230??
A42: 184 | C42: Travel, Dues, and other expenses | D42: Travel and other expenses for non-instructional staff and the school such as dues, subscriptions and memberships. (Ex: IT director attends IT conference, business manager attends finance conference) | N42: 184 | O42: 57X1 | Q42: 1230
A43: 185 | C43: Supplies and Materials | D43: Materials and items of an expendable nature. Unit price of less than $5000. (Ex: office furniture, office supplies) | L43: =SUM(F43,G43,H43,I43,J43,K43) ->  | N43: 185 | O43: 54X1 | Q43: 1230
A45: 200 | C45: Instructional Services | D45: Calculates automatically | F45: =VLOOKUP($H$1&$A45, FE, 6,FALSE) ->  | G45: =VLOOKUP($H$1&$A45, FE, 7,FALSE) ->  | H45: =VLOOKUP($H$1&$A45, FE, 8,FALSE) ->  | I45: =VLOOKUP($H$1&$A45, FE, 9,FALSE) ->  | J45: =VLOOKUP($H$1&$A45, FE, 10,FALSE) ->  | K45: =VLOOKUP($H$1&$A45, FE, 11,FALSE) ->  | L45: =VLOOKUP($H$1&$A45, FE, 12,FALSE) ->  | N45: =A45 -> 200 | O45: NA | Q45: 2000 series
A46: 210 | C46: Subtotal - Instructional Leadership | D46: Calculates automatically | N46: 210 | O46: NA | Q46: 2100s, 2200s, 2315
A47: 211 | C47: Salaries - Professional | D47: Salaries for instructional personnel in leadership roles. (Ex: Principal/Asst. Principals (undistributed), Curriculum Directors (including SPED), Department Heads, Technology/Instructional Coordinators, Team Leaders) | N47: 211 | O47: 5XX2 | Q47: 2110, 2120, 2210, 2220, 2250, 2315
A48: 212 | C48: Salaries - Clerical | D48: Salaries for administrative support personnel who prepare, transcribe, systematize or preserve communications, records and transactions. (Ex: secretary) | N48: 212 | O48: 5XX2 | Q48: 2110, 2120, 2210, 2220, 2250, 2315
A49: 213 | C49: Contracted Services | D49: Contracted professional services, including all related expenses covered by the contract. (Ex: contracted instructional consultant) | N49: 213 | O49: 53X2 | Q49: 2110, 2120, 2210, 2220, 2250, 2315
A50: 214 | C50: Supplies and Materials | D50: Materials and items of an expendable nature. Unit price of less than $5000. (Ex: white boards, instructional computers) | N50: 214 | O50: 54X2 | Q50: 2110, 2120, 2210, 2220, 2250, 2315
A51: 215 | C51: Travel and other expenses | D51: Travel and other expenses for staff such as dues, subscriptions and memberships. (Ex: teaching seminar) | N51: 215 | O51: 57X2 | Q51: 2110, 2120, 2210, 2220, 2250, 2315
A52: 220 | C52: Subtotal - Classroom and Specialist Teachers | D52: Calculates automatically | N52: 220 | O52: NA | Q52: 2300
A53: 221 | C53: Salaries - Teachers, Classroom | D53: Salaries for teachers with primary responsibility for teaching designated curriculum to established "classes" of students in a group instruction setting. Also includes itinerant music, art, health, physical education teachers who travel from classroom-to-classroom. Teacher EPIMS codes: 2305 - Teacher, 2306 - Co Teacher, 2307 - Virtual Teacher, 2308 - Virtual Teacher – Co Teacher | N53: 221 | O53: 5XX2 | Q53: 2305
A54: 222 | C54: Salaries - Teachers, Specialists | D54: Salaries for teachers who provide individualized instruction to students (1-on-1 or small groups) to supplement the services delivered by the students' classroom teachers, e.g. reading recovery, Title I reading specialists, special education, academic support, and language acquisitions services. NOT paraprofessionals. Teacher EPIMS codes: 23010 - Teacher - specialized content instruction | N54: 222 | O54: 5XX2 | Q54: 2310
A55: 230 | C55: Subtotal - Other Teaching Services | D55: Calculates automatically | N55: 230 | O55: NA | Q55: 2300
A56: 231 | C56: Salaries - Professional | D56: Salaries for Medical/Therapeutic service professionals. (Ex: OT, PT, Speech, Vision and other therapeutic services that are provided by licensed practitioners, librarians, media center directors, substitute teachers on payroll, after-school teachers, MCAS administrator) | N56: 231 | O56: 5XX2 | Q56: 2320, 2325, 2340
A57: 232 | C57: Salaries - Nonclerical Paraprofessionals | D57: Salaries for paraprofessionals hired to assist teachers/specialists with classroom instruction in the preparation or reproduction of instructional materials or classroom instruction. (Ex: American Sign Language Specialists, general teacher's assistant, after-school employees) | N57: 232 | O57: 5XX2 | Q57: 2330
A58: 233 | C58: Salaries - Clerical | D58: Salaries for administrative support personnel who prepare, transcribe, systematize or preserve communications, records and transactions. (Ex: secretary, after-school employees) | N58: 233 | O58: 5XX2 | Q58: 2320, 2325, 2340
A59: 234 | C59: Contracted Services | D59: Contracted professional services, including all related expenses covered by the contract, for other teaching services (Ex: non-payroll substitute teachers should be included here, contracted OT, PT, after-school contracted workers) | N59: 234 | O59: 53X2 | Q59: 2320, 2325, 2340
A60: 240 | C60: Subtotal - Professional Development | D60: Calculates automatically | H60: =VLOOKUP($H$1&$A60, FE, 8,FALSE) ->  | N60: 240 | O60: NA | Q60: 2350s
A61: 241 | C61: Salaries - Professional | D61: Salaries for full-time or prorated salary of director/staff for professional development, including training for new teachers, new curriculum or instructional practices, master and mentor teachers, coaches; Also salaries of teacher/instructional staff. | H61: =VLOOKUP($H$1&$A61, FE, 8,FALSE) ->  | N61: 241 | O61: 5XX2 | Q61: 2351, 2353
A62: 242 | C62: Contracted Services | D62: Contracted professional services, including all related expenses covered by the contract, for professional development (Ex: non-payroll substitute teachers) | H62: =VLOOKUP($H$1&$A62, FE, 8,FALSE) ->  | N62: 242 | O62: 53X2 | Q62: 2351, 2353
A63: 243 | C63: Supplies and Materials | D63: Materials and items of an expendable nature. Unit price of less than $5000. (Ex: professional development handouts) | H63: =VLOOKUP($H$1&$A63, FE, 8,FALSE) ->  | N63: 243 | O63: 54X2 | Q63: 2351, 2353
A64: 244 | C64: Travel and other expenses | D64: Travel and other expenses for staff such as dues, subscriptions and memberships. (Ex: professional development seminar, tuition reimbursements for teacher higher education coursework) | H64: =VLOOKUP($H$1&$A64, FE, 8,FALSE) ->  | N64: 244 | O64: 57X2 | Q64: 2351, 2353
A65: 250 | C65: Subtotal - Guidance, Psychological & Testing | D65: Calculates automatically | N65: 250 | O65: NA | Q65: 2700s, 2800s
A66: 251 | C66: Salaries - Professional | D66: Salaries for Guidance, Pyschological & Testing Professionals (Ex: Director of Guidance, school social workers, and counselors for guidance, school adjustment, higher education, career planning, and workplace learning placement; psychological evaluations and other services provided by a licensed mental health professional.) | N66: 251 | O66: 5XX2 | Q66: 2710, 2720, 2800
A67: 252 | C67: Salaries - Clerical | D67: Salaries for administrative support personnel who prepare, transcribe, systematize or preserve communications, records and transactions. (Ex: secretary) | N67: 252 | O67: 5XX2 | Q67: 2710, 2720, 2800
A68: 253 | C68: Contracted Services | D68: Contracted professional services, including all related expenses covered by the contract, for guidance, psychological, and testing. (Ex: contracted guidance counselor) | N68: 253 | O68: 53X2 | Q68: 2710, 2720, 2800
A69: 254 | C69: Supplies and Materials | D69: Materials and items of an expendable nature. Unit price of less than $5000. (Ex: pyschological (not academic related) testing materials) | N69: 254 | O69: 54X2 | Q69: 2710, 2720, 2800
A70: 260 | C70: Subtotal - Materials, Equipment & Technology | D70: Calculates automatically | H70: =VLOOKUP($H$1&$A70, FE, 8,FALSE) ->  | N70: 260 | O70: NA | Q70: 2451
A71: 261 | C71: Textbooks & Related Media/Materials | D71: Expenditures for all textbooks and related media/materials (Ex: hard copy and online text books.) | N71: 261 | O71: 54X2 | Q71: 2410
A72: 262 | C72: Other Instructional Materials | D72: Books and other materials, excluding textbooks but including online materials, for use in school libraries or classroom libraries (Ex: trade books, subscription to online magazine, periodicals, reference materials, etc.) | N72: 262 | O72: 54X2 | Q72: 2415
A73: 263 | C73: Instructional Equipment | D73: Non-capitalized expenditures for purchase of science laboratory, physical education, equipment, irrespective of unit cost. Also includes lease/purchase of copy equipment primarily used to produce instructional materials. Does not include classroom technology equipment. | N73: 263 | O73: 54X2 | Q73: 2420
A74: 264 | C74: General Supplies | D74: Papers, pens, pencils, crayons, chalk, paint, toner printer cartridges, calculators, etc. | N74: 264 | O74: 54X2 | Q74: 2430
A75: 265 | C75: Other Instructional Services | D75: Cost for field trips, including admissions and transportation costs. Also, distance learning services. | N75: 265 | O75: 58X2 | Q75: 2440
A76: 266 | C76: Classroom Instructional Technology | D76: Computers, servers, networks, scanners, digital cameras, etc. used in the classroom or in computer laboratories. | H76: =VLOOKUP($H$1&$A76, FE, 8,FALSE) ->  | N76: 266 | O76: 54X2 | Q76: 2451
A77: 267 | C77: Other Instructional Hardware | D77: Computers, servers, networks, scanners, digital cameras, etc. for school libraries and media centers. | H77: =VLOOKUP($H$1&$A77, FE, 8,FALSE) ->  | N77: 267 | O77: 54X2 | Q77: 2453
A78: 268 | C78: Instructional Software | D78: Software licenses (Ex: Online textbook guide, student data communication software such as Edline, Powerschool) | F78: =VLOOKUP($H$1&$A78, FE, 6,FALSE) ->  | G78: =VLOOKUP($H$1&$A78, FE, 7,FALSE) ->  | N78: 268 | O78: 54X2 | Q78: 2455
A79: 269 | C79: Depreciation for Instructional Equipment | D79: Annual depreciation expense for capitalized Instructional Materials, Equipment, & Technology. | F79: =VLOOKUP($H$1&$A79, FE, 6,FALSE) ->  | G79: =VLOOKUP($H$1&$A79, FE, 7,FALSE) ->  | N79: 269 | O79: 5702 | Q79: NA
A81: 300 | C81: Pupil Services | D81: Calculates automatically | F81: =VLOOKUP($H$1&$A81, FE, 6,FALSE) ->  | G81: =VLOOKUP($H$1&$A81, FE, 7,FALSE) ->  | H81: =VLOOKUP($H$1&$A81, FE, 8,FALSE) ->  | I81: =VLOOKUP($H$1&$A81, FE, 9,FALSE) ->  | J81: =VLOOKUP($H$1&$A81, FE, 10,FALSE) ->  | K81: =VLOOKUP($H$1&$A81, FE, 11,FALSE) ->  | L81: =VLOOKUP($H$1&$A81, FE, 12,FALSE) ->  | N81: =A81 -> 300 | O81: NA | Q81: 3000 series
A82: 310 | C82: Health Services | D82: Salaries for school physicians, school nurses, and clerical support staff. Expenses for school medical supplies, dues and subscriptions, and travel. | N82: 310 | O82: 5XX3 | Q82: various salary 3000's
A83: 315 | C83: Health Services - Contracted | D83: Contracted services for school physicians, school nurses, and clerical support staff. Expenses for school medical supplies, dues and subscriptions, and travel. | N83: 315
A84: 320 | C84: Athletic Services | D84: Salaries for coaches, trainers and assistants. Expenses for athletic supplies, uniforms, travel expenses and transportation to and from athletic events. | N84: 320
A85: 325 | C85: Athletic Services - Contracted | D85: Contracted services for coaches, trainers and assistants. Expenses for athletic supplies, uniforms, travel expenses and transportation to and from athletic events. | N85: 325
A86: 330 | C86: Food Services | D86: Salaries for cafeteria workers, food directors, and other food-related services for personell on payroll. Expenses for food, supplies, dues and subscriptions, and travel. | N86: 330 | O86: 5XX3 | Q86: various salary 3000's
A87: 335 | C87: Food Services - Contracted | D87: Contracted services for cafeteria workers, food directors, and other food-related services for personell on payroll. Expenses for food, supplies, dues and subscriptions, and travel. | N87: 335
A88: 340 | C88: Student Transportation (to and from school) | D88: Salaries and related costs incurred by the school; Or, monetary fair market value of services provided by sending district. (Please note: More detail is required in the Schedule 7C worksheet for those seeking reimbursement.) | N88: 340 | O88: 58X3 | Q88: 3300
A89: 345 | C89: Student Transportation (to and from school) | D89: Contracted professional services and related costs incurred by the school; Or, monetary fair market value of services provided by sending district. (Please note: More detail is required in the Schedule 7C worksheet for those seeking reimbursement.) | N89: 345
A90: 350 | C90: Depreciation of Transportation Vehicles | D90: Annual depreciation expense for capitalized transportation vehicles. (Please note: More detail is required in the Schedule 7C worksheet for those seeking state or district reimbursement for transportation costs.) | N90: 350 | O90: 5703 | Q90: 3300
A91: 360 | C91: Other Student Activities | D91: Salaries and contracted services for other student activities such as musical directors, drama coaches and other extra-curricular personnel. Expenses for supplies and materials, travel expenses and transportation to and from related events. | N91: 360 | O91: 58X3 | Q91: 3520/3600
A93: 400 | C93: Operation & Maintenance of Plant | D93: Calculates automatically | H93: =VLOOKUP($H$1&$A93, FE, 8,FALSE) ->  | I93: =VLOOKUP($H$1&$A93, FE, 9,FALSE) ->  | J93: =VLOOKUP($H$1&$A93, FE, 10,FALSE) ->  | K93: =VLOOKUP($H$1&$A93, FE, 11,FALSE) ->  | L93: =VLOOKUP($H$1&$A93, FE, 12,FALSE) ->  | N93: =A93 -> 400 | O93: NA | Q93: 4000 series
A94: 410 | C94: Operation & Maintenance of Buildings and Grounds | D94: Salaries and contracted services for plant managers, custodians, maintenance, etc. Expenses for supplies and travel expenses. | N94: 410 | O94: 5XX4 | Q94: various 4000's salaries
A95: 420 | C95: Utilities | D95: Cost of fuel, oil, electricity, gas, water, trash, waste disposal, telephone services, etc. | N95: 420 | O95: 55X4 | Q95: 4120 and 4130
A96: 430 | C96: Maintenance of Equipment | D96: Equipment parts and repair, materials, and tools, contracted services, including vehicles. | N96: 430 | O96: 55X4 | Q96: 4230
A97: 440 | C97: Networking and Telecommunications | D97: Costs for installing and maintaining school technology infrastructure, including wiring, file servers, etc. | N97: 440 | O97: 54X4 | Q97: 4400
A99: 500 | C99: Fixed Charges | D99: Calculates automatically | H99: =VLOOKUP($H$1&$A99, FE, 8,FALSE) ->  | I99: =VLOOKUP($H$1&$A99, FE, 9,FALSE) ->  | J99: =VLOOKUP($H$1&$A99, FE, 10,FALSE) ->  | K99: =VLOOKUP($H$1&$A99, FE, 11,FALSE) ->  | L99: =VLOOKUP($H$1&$A99, FE, 12,FALSE) ->  | N99: =A99 -> 500 | O99: NA | Q99: 5000 series
A100: 510 | C100: Employee Retirement | D100: "Payroll taxes", including contributions to Medicaid, social security, pension plans, and other employee retirement systems, school's portion, for non-MTRS employees; and Federal grant MTRS "surcharge" | N100: 510 | O100: 52X5 | Q100: 5100
A101: 520 | C101: Fringe Benefits | D101: Employee unemployment, health, and life insurance premiums or payments, and worker's compensation or other benefits, paid by the school for the benefit of the employee. | N101: 520 | O101: 52X5 | Q101: 5200, 5250
A102: 530 | C102: Insurance (non-employee) | D102: Insurance premiums for property, fire, liability, fidelity bonds; self-insurance costs. | N102: 530 | O102: 52X5 | Q102: 5260
A103: 550 | C103: Rental/Lease of Equipment | D103: Annual operating lease/rental costs of equipment. | N103: 550 | O103: 56X5 | Q103: 5300
A104: 560 | C104: Short-Term Interest | D104: Interest costs for short-term (less than one year) lines of credit that are needed to sustain cash flow for ongoing operations. | N104: 560 | O104: 57X5 | Q104: 5400, 5450
A106: 600 | C106: Community Services | D106: Calculates automatically | H106: =VLOOKUP($H$1&$A106, FE, 8,FALSE) ->  | I106: =VLOOKUP($H$1&$A106, FE, 9,FALSE) ->  | J106: =VLOOKUP($H$1&$A106, FE, 10,FALSE) ->  | K106: =VLOOKUP($H$1&$A106, FE, 11,FALSE) ->  | L106: =VLOOKUP($H$1&$A106, FE, 12,FALSE) ->  | N106: =A106 -> 600 | O106: NA | Q106: 6000 series
A107: 610 | C107: Dissemination Activities | D107: Activities designed to disseminate the school's best practices to external groups, including presentations at or hosting of conferences, etc. | H107: =VLOOKUP($H$1&$A107, FE, 8,FALSE) ->  | I107: =VLOOKUP($H$1&$A107, FE, 9,FALSE) ->  | J107: =VLOOKUP($H$1&$A107, FE, 10,FALSE) ->  | K107: =VLOOKUP($H$1&$A107, FE, 11,FALSE) ->  | L107: =VLOOKUP($H$1&$A107, FE, 12,FALSE) ->  | N107: =A107 -> 610 | O107: 58X6 | Q107: 6200
A108: 620 | C108: Civic Activities | D108: Materials and items of an expendable nature. Unit price of less than $5000. (Ex: fundraising activities for a charitable agency) | H108: =VLOOKUP($H$1&$A108, FE, 8,FALSE) ->  | I108: =VLOOKUP($H$1&$A108, FE, 9,FALSE) ->  | J108: =VLOOKUP($H$1&$A108, FE, 10,FALSE) ->  | K108: =VLOOKUP($H$1&$A108, FE, 11,FALSE) ->  | L108: =VLOOKUP($H$1&$A108, FE, 12,FALSE) ->  | N108: =A108 -> 620 | O108: 58X6 | Q108: 6200
A110: 700 | C110: Non-Operating / Capital Facilities Costs | D110: Calculates automatically | H110: =VLOOKUP($H$1&$A110, FE, 8,FALSE) ->  | I110: =VLOOKUP($H$1&$A110, FE, 9,FALSE) ->  | J110: =VLOOKUP($H$1&$A110, FE, 10,FALSE) ->  | K110: =VLOOKUP($H$1&$A110, FE, 11,FALSE) ->  | L110: =VLOOKUP($H$1&$A110, FE, 12,FALSE) ->  | N110: =A110 -> 700 | O110: NA | Q110: 7000 series
A111: 720 | C111: Long-Term Interest, facilities related | D111: Annual debt service costs for long-term financing (greater than one year) related to capital facilities costs. | H111: =VLOOKUP($H$1&$A111, FE, 8,FALSE) ->  | N111: 720 | O111: 57X7 | Q111: 8200
A112: 725 | C112: Long-Term Interest, non-facilities related | D112: Annual debt service costs for long-term financing (greater than one year) not related to capital facilities costs | N112: 725 | O112: 57X7 | Q112: 8300
A113: 730 | C113: Other costs related to capital facilities acquisition | D113: Expenses (e.g.,architectural design, closing costs, site exploration, etc.) related to capital facilities acquisition or lease. | N113: 730 | O113: 58X7 | Q113: 8000
A114: 740 | C114: Rental/Lease of Buildings & Grounds | D114: Annual operating lease/rental costs of Building & Grounds. | N114: 740 | O114: 58X7 | Q114: 7000
A115: 750 | C115: Depreciation of Equipment, Building, & Grounds | D115: Annual depreciation expense for capitalized Equipment, Networking and Telecommunications, Building, & Grounds. | N115: 750 | O115: 5707 | Q115: 5350*
A116: 760 | C116: Bad debt / loss on disposal of assets | D116: Write-off costs for bad debt or loss on disposal of assets | N116: 760 | O116: 5707 | Q116: NA
A118: 800 | C118: TOTALS | D118: Calculates automatically | F118: =VLOOKUP($H$1&$A118, FE, 6,FALSE) ->  | G118: =VLOOKUP($H$1&$A118, FE, 7,FALSE) ->  | H118: =VLOOKUP($H$1&$A118, FE, 8,FALSE) ->  | I118: =VLOOKUP($H$1&$A118, FE, 9,FALSE) ->  | J118: =VLOOKUP($H$1&$A118, FE, 10,FALSE) ->  | K118: =VLOOKUP($H$1&$A118, FE, 11,FALSE) ->  | L118: =VLOOKUP($H$1&$A118, FE, 12,FALSE) ->  | N118: =A118 -> 800 | O118: NA
A120: 910 | C120: Reference: Capitalized Expenditures | D120: Reference line for cash expenditures that are not expensed in the fiscal year | H120: =VLOOKUP($H$1&$A120, FE, 8,FALSE) ->  | I120: =VLOOKUP($H$1&$A120, FE, 9,FALSE) ->  | J120: =VLOOKUP($H$1&$A120, FE, 10,FALSE) ->  | K120: =VLOOKUP($H$1&$A120, FE, 11,FALSE) ->  | L120: =VLOOKUP($H$1&$A120, FE, 12,FALSE) ->  | N120: =A120 -> 910
A121: 920 | C121: Reference: Deferrals/Carryovers | D121: Reference line for cash expenditures that are not expensed in the fiscal year | H121: =VLOOKUP($H$1&$A121, FE, 8,FALSE) ->  | I121: =VLOOKUP($H$1&$A121, FE, 9,FALSE) ->  | J121: =VLOOKUP($H$1&$A121, FE, 10,FALSE) ->  | K121: =VLOOKUP($H$1&$A121, FE, 11,FALSE) ->  | L121: =VLOOKUP($H$1&$A121, FE, 12,FALSE) ->  | N121: =A121 -> 920
A122: 900 | C122: Reference: Totals | H122: =VLOOKUP($H$1&$A122, FE, 8,FALSE) ->  | I122: =VLOOKUP($H$1&$A122, FE, 9,FALSE) ->  | J122: =VLOOKUP($H$1&$A122, FE, 10,FALSE) ->  | K122: =VLOOKUP($H$1&$A122, FE, 11,FALSE) ->  | L122: =VLOOKUP($H$1&$A122, FE, 12,FALSE) ->  | N122: =A122 -> 900

Sheet 4. EXPPP
A1: Massachusetts Department of Elementary and Secondary Education
A2: FY15 Charter School Expenditures Per Pupil, All Funds, Summary By Function
A3: =Index!B3 -> Last Updated: April 2016
B4: Return to Index | F4: ----------------------------- Operating Expenditures Per Pupil In The Charter School ------------------------------------------- | S4: --- Exp pp Facilities Costs2 ---
E5: fte pupils | G5: instruc- | H5: classroom & | I5: other | J5: profes- | K5: instructn'l | L5: guidance, | N5: operations | O5: insurance, | P5: total operating | Q5: total operating | S5: Rental/Lease of | T5: Capital
D6: location | E6: at the | F6: admini- | G6: tional | H6: specialist | I6: teaching | J6: sional dev- | K6: materials, | L6: counseling | M6: pupil | N6: and | O6: retirement | P6: expenditures | Q6: expenditures | S6: Building & | T6: Facilities
A7: LEA | B7: Charter School | C7: type | D7: in FY14 | E7: charter | F7: stration | G7: leadership | H7: teachers | I7: services | J7: elopment | K7: equip & tech | L7: & testing | M7: services | N7: maintenance | O7: & other 1 | P7: aggregate | Q7: per pupil | S7: Grounds | T7: Expenses3
F8: 100 | G8: 210 | H8: 220 | I8: 230 | J8: 240 | K8: 260 | L8: 250 | M8: 300 | N8: 400 | O8: 500 | S8: 540 | T8: 720
A9: 445 | B9: Abby Kelley Foster Charter Public School | C9: =VLOOKUP(A9, FACTS, 3, FALSE) -> C | D9: =VLOOKUP(A9, FACTS, 6, FALSE) -> Worcester | E9: =VLOOKUP(A9, FTE, 2, FALSE) -> 1424.716667 | F9: =VLOOKUP($A9&100, FE, 12, FALSE)/$E9 -> 571.5649989 | G9: =VLOOKUP($A9&210, FE, 12, FALSE)/$E9 -> 824.2057298 | H9: =VLOOKUP($A9&220, FE, 12, FALSE)/$E9 -> 4660.588898 | I9: =VLOOKUP($A9&230, FE, 12, FALSE)/$E9 -> 743.9653054 | J9: =VLOOKUP($A9&240, FE, 12, FALSE)/$E9 -> 61.56824164 | K9: =VLOOKUP($A9&260, FE, 12, FALSE)/$E9 -> 268.5495362 | L9: =VLOOKUP($A9&250, FE, 12, FALSE)/$E9 -> 348.4601336 | M9: =VLOOKUP($A9&300, FE, 12, FALSE)/$E9 -> 1501.606748 | N9: =VLOOKUP($A9&400, FE, 12, FALSE)/$E9 -> 1278.106828 | O9: =VLOOKUP($A9&500, FE, 12, FALSE)/$E9 -> 2324.615903 | P9: =VLOOKUP($A9&800,FE,12,FALSE)-VLOOKUP($A9&700,FE,12,FALSE)-VLOOKUP($A9&600,FE,12,FALSE) -> 17927540.81 | Q9: =SUM(F9:O9) -> 12583.23232 | S9: =VLOOKUP($A9&740, FE, 12, FALSE)/$E9 -> 0 | T9: =(VLOOKUP($A9&700, FE, 12, FALSE)-VLOOKUP($A9&740, FE, 12, FALSE)-VLOOKUP($A9&725, FE, 12, FALSE))/$E9 -> 1588.55711
A10: 412 | B10: Academy of the Pacific Rim Charter Public School | C10: C | D10: Boston | E10: 518.3684211 | F10: 1453.151792 | G10: 1252.298507 | H10: 4942.59468 | I10: 421.5901107 | J10: 92.61752462 | K10: 637.8224185 | L10: 571.4642096 | M10: 2117.210377 | N10: 1197.426338 | O10: 2550.415778 | P10: 7898168 | Q10: =SUM(F10:O10) -> 15236.59174 | S10: 0 | T10: 2005.403797
A11: 430 | B11: Advanced Math and Science Academy Charter School | C11: C | D11: Marlborough | E11: 996.8555556 | F11: 1607.912732 | G11: 894.3056344 | H11: 4198.862089 | I11: 478.5287069 | J11: 106.2422328 | K11: 418.3623171 | L11: 500.201857 | M11: 1355.458745 | N11: 555.0984763 | O11: 2125.738266 | P11: 12202220.82 | Q11: 12240.71106 | S11: 1839.369796 | T11: 79.61434288
A12: 409 | B12: Alma del Mar Charter School | C12: C | D12: New Bedford | E12: 238.5631579 | F12: 1850.494493 | G12: 676.0091182 | H12: 4139.247941 | I12: 1120.318881 | J12: 384.3453902 | K12: 1236.747043 | L12: 89.21096697 | M12: 3285.212465 | N12: 672.6382708 | O12: 1610.717822 | P12: 3593940.23 | Q12: 15064.94239 | S12: 256.6922761 | T12: 261.1845037
A13: 3509 | B13: Argosy Collegiate Charter School | C13: C | D13: =VLOOKUP(A13, FACTS, 6, FALSE) -> Fall River | E13: =VLOOKUP(A13, FTE, 2, FALSE) -> 102.5277778 | F13: 2785.072067 | G13: 1437.024709 | H13: 2832.680336 | I13: 1200.910745 | J13: 215.676673 | K13: 2941.282709 | L13: 219.9771661 | M13: 2595.249656 | N13: 936.7425305 | O13: 749.001994 | P13: 1631587.95 | Q13: =SUM(F13:O13) -> 15913.61859 | S13: 762.3722243 | T13: 99.70371173
A14: 491 | B14: Atlantis Charter School | C14: C | D14: Fall River | E14: 881.0587213 | F14: 1212.383436 | G14: 1092.08612 | H14: 3534.169658 | I14: 1367.76014 | J14: 40.08926891 | K14: 291.7943989 | L14: 552.4762292 | M14: 1075.309712 | N14: 879.1616056 | O14: 2379.666587 | P14: 10947064 | Q14: 12424.89716 | S14: 597.1361355 | T14: 159.2992574
A15: 427 | B15: Barnstable Community Horace Mann Charter Public School | C15: HM | D15: Barnstable | E15: 286.4833333 | F15: 825.1090814 | G15: 249.5642562 | H15: 5373.209611 | I15: 1460.919193 | J15: 34.49066263 | K15: 239.081971 | L15: 687.5443598 | M15: 1239.593926 | N15: 913.7110943 | O15: 415.420327 | P15: 3276981 | Q15: 11438.64448 | S15: 1156.761883 | T15: 457.2691838
A16: 3502 | B16: Baystate Academy Charter Public School | C16: C | D16: Springfield | E16: 225.5359116 | F16: 1426.954881 | G16: 954.8210237 | H16: 4561.593241 | I16: 376.9397051 | J16: 466.7485956 | K16: 1496.706611 | L16: 503.4629261 | M16: 1950.801125 | N16: 618.9843959 | O16: 1405.549288 | P16: 3103951.92 | Q16: 13762.56179 | S16: 1031.432016 | T16: 122.322737
A17: 420 | B17: Benjamin Banneker Charter Public School | C17: C | D17: Cambridge | E17: 344.0277778 | F17: 2537.562535 | G17: 1673.774727 | H17: 4577.51409 | I17: 2123.287848 | J17: 255.2642713 | K17: 321.5786839 | L17: 264.3565604 | M17: 2805.05547 | N17: 1307.940896 | O17: 3147.862091 | P17: 6541412 | Q17: 19014.19717 | S17: 1358.178119 | T17: 468.7063383
A18: 447 | B18: Benjamin Franklin Classical Charter Public School | C18: C | D18: Franklin | E18: 449.5444444 | F18: 1198.523231 | G18: 739.755555 | H18: 3866.970266 | I18: 1025.960849 | J18: 87.27217183 | K18: 541.6239996 | L18: 256.6398082 | M18: 646.4049186 | N18: 528.2063051 | O18: 2220.211733 | P18: 4995144.04 | Q18: 11111.56884 | S18: 533.8737982 | T18: 235.9916829
A19: 414 | B19: Berkshire Arts and Technology Charter Public School | C19: C | D19: Adams | E19: 329.1405405 | F19: 1652.308643 | G19: 1641.802007 | H19: 4370.458764 | I19: 1232.118503 | J19: 384.9870629 | K19: 591.542627 | L19: 566.6667184 | M19: 1917.668358 | N19: 1012.021945 | O19: 2139.157057 | P19: 5104552.33 | Q19: 15508.73169 | S19: 0 | T19: 2209.220684
A20: 449 | B20: Boston Collegiate Charter School | C20: C | D20: Boston | E20: 685.1546961 | F20: 1677.789624 | G20: 1482.504675 | H20: 5745.289279 | I20: 172.3294617 | J20: 127.5844572 | K20: 99.38997774 | L20: 963.3622505 | M20: 1828.850458 | N20: 767.7622046 | O20: 2162.738617 | P20: 10296231.4 | Q20: 15027.601 | S20: 11.67842831 | T20: 2657.111205
A21: 424 | B21: Boston Day and Evening Academy Charter School | C21: HM | D21: Boston | E21: 369.7222222 | F21: 1398.618933 | G21: 810.7951916 | H21: 5804.776535 | I21: 973.5426717 | J21: 74.09346356 | K21: 524.0150263 | L21: 595.4189031 | M21: 138.6879038 | N21: 50.62178813 | O21: 239.8449286 | P21: 3922906.34 | Q21: 10610.41534 | S21: 0 | T21: 30.82854996
A22: 411 | B22: Boston Green Academy Horace Mann Charter School | C22: HM | D22: Boston | E22: 380.3687151 | F22: 1411.217534 | G22: 1995.784537 | H22: 6548.219928 | I22: 1601.556531 | J22: 18.41897013 | K22: 427.1828717 | L22: 544.0352526 | M22: 1756.661296 | N22: 862.318553 | O22: 1328.098185 | P22: 6273608.99 | Q22: 16493.49366 | S22: 0 | T22: 0
A23: 416 | B23: Boston Preparatory Charter Public School | C23: C | D23: Boston | E23: 394.7554348 | F23: 2576.372382 | G23: 543.5301989 | H23: 5626.103669 | I23: 1134.291287 | J23: 261.6095965 | K23: 1187.81321 | L23: 410.4436462 | M23: 3349.443994 | N23: 666.3123464 | O23: 2966.277793 | P23: 7390689.46 | Q23: 18722.19812 | S23: 1212.021312 | T23: 107.5931989
A24: 481 | B24: Boston Renaissance Charter Public School | C24: C | D24: Boston | E24: 938.0611111 | F24: 1692.197439 | G24: 895.0772397 | H24: 5218.863155 | I24: 1515.323621 | J24: 710.5159804 | K24: 648.215455 | L24: 239.305923 | M24: 2460.340497 | N24: 1098.808274 | O24: 3237.519341 | P24: 16618847.23 | Q24: 17716.16692 | S24: 0 | T24: 1782.793722
A25: 417 | B25: Bridge Boston Charter School | C25: C | D25: Boston | E25: 189.6195652 | F25: 2718.1636 | G25: 1358.567612 | H25: 4536.762855 | I25: 1612.507653 | J25: 100.2586414 | K25: 507.3316136 | L25: 502.1950129 | M25: 3132.818226 | N25: 1229.799255 | O25: 2191.609286 | P25: 3392296.63 | Q25: 17890.01376 | S25: 1913.167555 | T25: 521.1065635
A26: 457 | B26: Brooke Charter School East Boston | C26: C | D26: Boston | E26: 389.8670213 | F26: 1583.572055 | G26: 1126.135723 | H26: 4704.483837 | I26: 1009.695636 | J26: 37.00797762 | K26: 1173.216264 | L26: 993.1180861 | M26: 2334.396398 | N26: 877.1325897 | O26: 1791.156887 | P26: 6093588.58 | Q26: 15629.91545 | S26: 1400.887919 | T26: 56.15640412
A27: 443 | B27: Brooke Charter School Mattapan | C27: C | D27: Boston | E27: 457.9459459 | F27: 535.1432678 | G27: 1057.777679 | H27: 5046.80904 | I27: 843.184689 | J27: 18.91710163 | K27: 957.3280294 | L27: 985.2481805 | M27: 2570.79721 | N27: 933.701551 | O27: 1663.560813 | P27: 6691720.28 | Q27: 14612.46756 | S27: 2793.713999 | T27: 45.82418555
A28: 428 | B28: Brooke Charter School Roslindale | C28: C | D28: Boston | E28: 504.7371134 | F28: 3430.064154 | G28: 1469.599283 | H28: 5003.125891 | I28: 1146.438105 | J28: 46.55568092 | K28: 788.9701578 | L28: 952.5220897 | M28: 2419.683648 | N28: 1601.171161 | O28: 2683.073038 | P28: 9863170.5 | Q28: 19541.20321 | S28: 727.0788897 | T28: 3869.556563
A29: 432 | B29: Cape Cod Lighthouse Charter School | C29: C | D29: Harwich | E29: 239.8722222 | F29: 1499.602566 | G29: 269.8061468 | H29: 6441.412789 | I29: 427.998703 | J29: 116.7454895 | K29: 662.4735392 | L29: 325.7692753 | M29: 733.8365333 | N29: 433.276513 | O29: 2865.062881 | P29: 3304476 | Q29: 13775.98444 | S29: 0 | T29: 1143.979897
A30: 418 | B30: Christa McAuliffe Charter School | C30: C | D30: Framingham | E30: 397.8 | F30: 1900.52539 | G30: 1117.011061 | H30: 4754.537456 | I30: 128.5997989 | J30: 5.261437908 | K30: 547.6194067 | L30: 274.9698341 | M30: 1153.23278 | N30: 572.6068376 | O30: 2371.983409 | P30: 5102321 | Q30: 12826.34741 | S30: 1154.912016 | T30: 3025.620915
A31: 437 | B31: City On A Hill Charter Public School | C31: C | D31: Boston | E31: 278.6075269 | F31: 1852.489435 | G31: 1715.754507 | H31: 5673.494818 | I31: 2043.096094 | J31: 308.4035488 | K31: 505.7250304 | L31: 630.7471373 | M31: 1201.947534 | N31: 1279.304382 | O31: 3011.117895 | P31: 5076808.75 | Q31: 18222.08038 | S31: 2362.678846 | T31: 25.93497771
A32: 3504 | B32: City On A Hill Charter Public School II | C32: C | D32: Boston | E32: 185.0957447 | F32: 1937.070896 | G32: 2466.935481 | H32: 4760.212081 | I32: 1834.001968 | J32: 113.4005541 | K32: 2005.930988 | L32: 340.700323 | M32: 1180.646915 | N32: 1426.385844 | O32: 2123.043675 | P32: 3366582.25 | Q32: 18188.32873 | S32: 2559.411567 | T32: 247.0168079
A33: 3507 | B33: City On A Hill Charter Public School New Bedford | C33: =VLOOKUP(A33, FACTS, 3, FALSE) -> C | D33: =VLOOKUP(A33, FACTS, 6, FALSE) -> New Bedford | E33: =VLOOKUP(A33, FTE, 2, FALSE) -> 82.7712766 | F33: 2057.435828 | G33: 3568.900978 | H33: 6399.204915 | I33: 1929.074391 | J33: 144.234697 | K33: 4570.618161 | L33: 490.0790669 | M33: 2987.646321 | N33: 2774.203799 | O33: 1615.683429 | P33: 2196508.12 | Q33: =SUM(F33:O33) -> 26537.08159 | S33: 1442.685372 | T33: 619.2969603
A34: 438 | B34: Codman Academy Charter Public School | C34: C | D34: Boston | E34: 265.9904329 | F34: 4384.187947 | G34: 1351.574627 | H34: 5588.119444 | I34: 2748.69559 | J34: 269.9254226 | K34: 916.5658981 | L34: 628.7895327 | M34: 1751.517207 | N34: 587.2507455 | O34: 2058.593101 | P34: 5395674.32 | Q34: 20285.21951 | S34: 1086.546598 | T34: 23.43952725
A35: 436 | B35: Community Charter School of Cambridge | C35: C | D35: Cambridge | E35: 391.9444444 | F35: 1398.88703 | G35: 1606.403685 | H35: 5646.042523 | I35: 358.4385542 | J35: 329.436995 | K35: 540.2653437 | L35: 740.3829908 | M35: 909.5957477 | N35: 786.2466336 | O35: 2195.24224 | P35: 5687483 | Q35: 14510.94174 | S35: 2610.964422 | T35: 676.259107
A36: 426 | B36: Community Day Charter Public School - Gateway | C36: C | D36: Lawrence | E36: 199.9666667 | F36: 1463.733956 | G36: 1108.914819 | H36: 5464.62077 | I36: 920.3633939 | J36: 115.2342057 | K36: 686.9794966 | L36: 234.474079 | M36: 1596.941157 | N36: 748.6347725 | O36: 1993.362227 | P36: 2866174 | Q36: 14333.25888 | S36: 574.0306718 | T36: 25.94932489
A37: 440 | B37: Community Day Charter Public School - Prospect | C37: C | D37: Lawrence | E37: 399.2166667 | F37: 1231.00071 | G37: 1350.048846 | H37: 6600.92431 | I37: 503.2079489 | J37: 77.05590114 | K37: 310.808667 | L37: 840.1903728 | M37: 1263.063499 | N37: 824.3192919 | O37: 2307.526406 | P37: 6111267 | Q37: 15308.14595 | S37: 361.3100655 | T37: 10.38784286
A38: 431 | B38: Community Day Charter Public School - R. Kingman Webster | C38: C | D38: Lawrence | E38: 199.85 | F38: 1383.937953 | G38: 1070.282712 | H38: 5535.111334 | I38: 762.2967225 | J38: 123.1123343 | K38: 709.1618714 | L38: 112.5444083 | M38: 1687.935952 | N38: 763.0172629 | O38: 1917.232925 | P38: 2810817 | Q38: 14064.63348 | S38: 586.7550663 | T38: 32.03902927
A39: 439 | B39: Conservatory Lab Charter School | C39: C | D39: Boston | E39: 394.0666667 | F39: 2569.730164 | G39: 1651.70022 | H39: 3861.328878 | I39: 2974.674336 | J39: 39.13551007 | K39: 324.2623922 | L39: 54.99830824 | M39: 2296.634241 | N39: 456.4836745 | O39: 1763.031636 | P39: 6301906 | Q39: 15991.97936 | S39: 1774.298765 | T39: 176.2468279
A40: 475 | B40: Dorchester Collegiate Academy Charter School | C40: =VLOOKUP(A40, FACTS, 3, FALSE) -> C | D40: =VLOOKUP(A40, FACTS, 6, FALSE) -> Boston | E40: =VLOOKUP(A40, FTE, 2, FALSE) -> 188.6055556 | F40: =VLOOKUP($A40&100, FE, 12, FALSE)/$E40 -> 2074.802085 | G40: 2674.761825 | H40: 5394.983976 | I40: 449.5170874 | J40: 92.26796076 | K40: 641.1333412 | L40: 650.3546496 | M40: 2071.523179 | N40: 875.9458835 | O40: 2896.847701 | P40: 3361354.18 | Q40: 17822.13769 | S40: 0 | T40: 1063.623759
A41: 407 | B41: Dudley Street Neighborhood Charter School | C41: HM | D41: Boston | E41: 221.1933702 | F41: 2849.547839 | G41: 1819.680353 | H41: 5188.309528 | I41: 2151.958712 | J41: 340.5074933 | K41: 317.5040461 | L41: 389.5731592 | M41: 2810.495629 | N41: 405.1435625 | O41: 2732.306712 | P41: 4203785.98 | Q41: 19005.02704 | S41: 0 | T41: 26.86337296
A42: 452 | B42: Edward M. Kennedy Academy for Health Careers: A Horace Mann Charter Public School | C42: HM | D42: Boston | E42: 365.1888889 | F42: 1511.532844 | G42: 810.1314388 | H42: 6329.313597 | I42: 14.2392065 | J42: 82.97349925 | K42: 275.7805702 | L42: 1459.217452 | M42: 1610.769161 | N42: 14.56232695 | O42: 2309.161165 | P42: 5265177 | Q42: 14417.68126 | S42: 873.6848511 | T42: 0
A43: 410 | B43: Excel Academy Charter School | C43: C | D43: Boston | E43: 606.1311475 | F43: 3295.760098 | G43: 2458.750134 | H43: 5063.94435 | I43: 256.9484849 | J43: 136.2994796 | K43: 770.3060004 | L43: 1193.214609 | M43: 1820.488989 | N43: 718.5294664 | O43: 2432.373581 | P43: 10999228.69 | Q43: 18146.61519 | S43: 1017.312511 | T43: 861.2240802
A44: 413 | B44: Four Rivers Charter Public School | C44: C | D44: Greenfield | E44: 216.6 | F44: 1571.204986 | G44: 1374.501385 | H44: 5289.773777 | I44: 655.2631579 | J44: 137.9085873 | K44: 526.9506002 | L44: 609.432133 | M44: 377.5992613 | N44: 1389.23361 | O44: 2573.051708 | P44: 3141765.5 | Q44: =SUM(F44:O44) -> 14504.91921 | S44: 1675.724838 | T44: 36.40812558
A45: 446 | B45: Foxborough Regional Charter School | C45: C | D45: Foxborough | E45: 1264.903226 | F45: 762.3959053 | G45: 900.342245 | H45: 3226.675809 | I45: 763.5587848 | J45: 66.40022595 | K45: 398.8012124 | L45: 386.8119632 | M45: 1155.579826 | N45: 839.1879223 | O45: 1811.731904 | P45: 13043031.65 | Q45: 10311.4858 | S45: 0 | T45: 2494.391836
A46: 478 | B46: Francis W. Parker Charter Essential School | C46: C | D46: Devens | E46: 392.0576266 | F46: 1232.552511 | G46: 1611.382884 | H46: 5578.282864 | I46: 174.9556579 | J46: 97.69273037 | K46: 657.3535025 | L46: 578.6986265 | M46: 1064.27987 | N46: 890.6599855 | O46: 1475.483987 | P46: 5238416.275 | Q46: 13361.34262 | S46: 490.0459447 | T46: 700.086496
A47: 496 | B47: Global Learning Charter Public School | C47: C | D47: New Bedford | E47: 502.8055556 | F47: 1360.096348 | G47: 1372.500746 | H47: 4794.302635 | I47: 425.7470858 | J47: 237.2865588 | K47: 828.3182145 | L47: 499.950721 | M47: 1260.964588 | N47: 550.7934368 | O47: 2337.808298 | P47: 6872230 | Q47: 13667.76863 | S47: 457.3656704 | T47: 325.5970388
A48: 499 | B48: Hampden Charter School of Science | C48: C | D48: Chicopee | E48: 354.3131868 | F48: 1657.595319 | G48: 552.2067405 | H48: 4404.514136 | I48: 515.6117153 | J48: 226.8763992 | K48: 418.9929292 | L48: 503.739648 | M48: 2099.758174 | N48: 786.8770071 | O48: 1320.602951 | P48: 4424229.05 | Q48: 12486.77502 | S48: 1069.596092 | T48: 268.92911
A49: 419 | B49: Helen Y Davis Leadership Academy Charter Public School | C49: C | D49: Boston | E49: 219.2011136 | F49: 2972.681066 | G49: 618.9567095 | H49: 5636.800743 | I49: 612.9211562 | J49: 298.1143614 | K49: 461.7814131 | L49: 515.50833 | M49: 2380.854693 | N49: 748.9195529 | O49: 2815.747556 | P49: =VLOOKUP($A49&800,FE,12,FALSE)-VLOOKUP($A49&700,FE,12,FALSE)-VLOOKUP($A49&600,FE,12,FALSE) -> 3740072 | Q49: 17062.28558 | S49: 1556.068737 | T49: 0
A50: 455 | B50: Hill View Montessori Charter Public School | C50: C | D50: Haverhill | E50: 305.0444444 | F50: 1408.493149 | G50: 291.3116486 | H50: 3512.608636 | I50: 1036.931686 | J50: 124.1196183 | K50: 247.9769469 | L50: 459.5494281 | M50: 314.1096379 | N50: 891.1665987 | O50: 856.4096307 | P50: 2788922.82 | Q50: 9142.67698 | S50: 0 | T50: 431.6748015
A51: 450 | B51: Hilltown Cooperative Charter Public School | C51: C | D51: East Hampton | E51: 193.0055556 | F51: 1066.447437 | G51: 953.3691891 | H51: 4859.0707 | I51: 1353.782171 | J51: 22.24153594 | K51: 355.1128868 | L51: 282.9814398 | M51: 554.0827034 | N51: 545.0069543 | O51: 2466.260666 | P51: 2404531.86 | Q51: 12458.35568 | S51: 1311.065732 | T51: 59.81869261
A52: 453 | B52: Holyoke Community Charter School | C52: C | D52: Holyoke | E52: 700.9055556 | F52: 725.7234958 | G52: 2547.326734 | H52: 3756.639278 | I52: 677.7458336 | J52: 136.5019285 | K52: 690.9127573 | L52: 226.2581866 | M52: 1940.122516 | N52: 870.3380864 | O52: 1842.681913 | P52: 9402122.86 | Q52: 13414.25073 | S52: 0 | T52: 834.3072121
A53: 435 | B53: Innovation Academy Charter School | C53: C | D53: Tyngsborough | E53: 761.9222222 | F53: 1147.257521 | G53: 795.3698978 | H53: 4679.538011 | I53: 516.6852843 | J53: 83.17778134 | K53: 145.0974873 | L53: 347.389789 | M53: 1188.260394 | N53: 895.3157948 | O53: 1937.136045 | P53: 8941331 | Q53: 11735.22801 | S53: 0 | T53: 1237.434705
A54: 463 | B54: KIPP Academy Boston Charter School | C54: C | D54: Boston | E54: 286.9872635 | F54: 4067.227812 | G54: 2173.918774 | H54: 6459.593284 | I54: 15.8584738 | J54: 201.7058154 | K54: 361.2873224 | L54: 957.1226145 | M54: 3117.787804 | N54: 436.8277479 | O54: 2363.741205 | P54: 5784248.63 | Q54: 20155.07085 | S54: 1628.082704 | T54: 407.2515225
A55: 429 | B55: KIPP Academy Lynn Charter School | C55: C | D55: Lynn | E55: 841.4821838 | F55: 3443.213268 | G55: 1495.500468 | H55: 4848.528083 | I55: 810.4782408 | J55: 62.69889133 | K55: 380.9944003 | L55: 424.2228854 | M55: 1329.583705 | N55: 630.6027747 | O55: 2604.895317 | P55: 13489563.62 | Q55: 16030.71803 | S55: 1270.01857 | T55: 213.8999535
A56: 454 | B56: Lawrence Family Development Charter School | C56: C | D56: Lawrence | E56: 675.0833333 | F56: 1052.335267 | G56: 907.0006172 | H56: 4627.800518 | I56: 1311.584743 | J56: 68.08196519 | K56: 391.1546723 | L56: 168.8517467 | M56: 1451.807431 | N56: 1605.869893 | O56: 1718.724108 | P56: 8980776 | Q56: 13303.21096 | S56: 1578.837674 | T56: 199.9827182
A57: 3503 | B57: Lowell Collegiate Charter School | C57: C | D57: Lowell | E57: 339.5333333 | F57: 872.096024 | G57: 2240.834479 | H57: 2803.345494 | I57: 402.1776851 | J57: 43.81949735 | K57: 609.3605537 | L57: 280.3259376 | M57: 1470.672983 | N57: 613.9883173 | O57: 916.9556254 | P57: 3481431.04 | Q57: 10253.5766 | S57: 1817.762615 | T57: 83.27506381
A58: 456 | B58: Lowell Community Charter Public School | C58: C | D58: Lowell | E58: 763.5277778 | F58: 1387.444152 | G58: 582.078862 | H58: 4176.979074 | I58: 1814.912581 | J58: 125.0555877 | K58: 585.3804184 | L58: 342.5225481 | M58: 1231.261281 | N58: 907.9938022 | O58: 2621.046697 | P58: 10517347 | Q58: 13774.675 | S58: 1469.050299 | T58: 1135.098821
A59: 458 | B59: Lowell Middlesex Academy Charter School | C59: C | D59: Lowell | E59: 111.4833333 | F59: 1083.141905 | G59: 2206.451787 | H59: 6700.052893 | I59: 22.8733742 | J59: 17.4914038 | K59: 336.3179848 | L59: 135.5852893 | M59: 967.8814472 | N59: 1027.51951 | O59: 1681.255793 | P59: 1580674.4 | Q59: 14178.57139 | S59: 0 | T59: 707.9443863
A60: 464 | B60: Marblehead Community Charter Public School | C60: C | D60: Marblehead | E60: 229.7944444 | F60: 1710.839054 | G60: 356.7231584 | H60: 5131.331625 | I60: 533.0220245 | J60: 43.17876363 | K60: 237.4212315 | L60: 458.8100476 | M60: 1380.375669 | N60: 879.1540652 | O60: 3035.95538 | P60: 3163536.69 | Q60: 13766.81102 | S60: 182.6723448 | T60: 1564.94645
A61: 466 | B61: Martha's Vineyard Public Charter School | C61: C | D61: West Tisbury | E61: 175.6722222 | F61: 1976.379621 | G61: 1738.464944 | H61: 9140.283988 | I61: 1786.992821 | J61: 103.2434142 | K61: 393.767433 | L61: 832.2203599 | M61: 2995.77243 | N61: 1165.187059 | O61: 3703.135258 | P61: 4187226 | Q61: 23835.44733 | S61: 1024.635527 | T61: 129.0016129
A62: 492 | B62: Martin Luther King, Jr. Charter School of Excellence | C62: C | D62: Springfield | E62: 362.9666667 | F62: 1316.640187 | G62: 458.9864726 | H62: 5374.479805 | I62: 1958.88718 | J62: 492.7614749 | K62: 722.8821655 | L62: 304.7103774 | M62: 1943.180448 | N62: 884.3637708 | O62: 1415.456176 | P62: 5398166.6 | Q62: 14872.34806 | S62: 914.4011571 | T62: 187.9983378
A63: 469 | B63: Match Charter Public School | C63: C | D63: Boston | E63: 893.0208147 | F63: 1187.702439 | G63: 2426.375695 | H63: 6118.128391 | I63: 561.2500759 | J63: 310.720641 | K63: 821.1488332 | L63: 799.362107 | M63: 2716.766463 | N63: 1030.581802 | O63: 2017.893615 | P63: 16065382 | Q63: 17989.93006 | S63: 301.3233237 | T63: 1651.898786
A64: 470 | B64: Mystic Valley Regional Charter School | C64: C | D64: Malden | E64: 1501.045226 | F64: 875.8263756 | G64: 333.0918958 | H64: 3818.616455 | I64: 625.5700919 | J64: 259.152085 | K64: 616.1992883 | L64: 343.6112324 | M64: 1048.552017 | N64: 1418.820674 | O64: 1891.915014 | P64: 16858772 | Q64: =SUM(F64:O64) -> 11231.35513 | S64: 173.0101102 | T64: 744.1727808
A65: 444 | B65: Neighborhood House Charter School | C65: C | D65: Boston | E65: 398.1777778 | F65: 3004.863322 | G65: 1126.964173 | H65: 6269.784853 | I65: 1121.388548 | J65: 484.9366559 | K65: 586.8512334 | L65: 571.1770287 | M65: 1396.57839 | N65: 1667.243144 | O65: 3274.333458 | P65: 7766107.48 | Q65: 19504.12081 | S65: 1380.77771 | T65: 20.5586561
A66: 467 | B66: New Liberty Charter School of Salem | C66: HM | D66: Salem | E66: 52.68891243 | F66: 1265.5414 | G66: 2771.949415 | H66: 6437.369541 | I66: 902.0683443 | J66: 305.1495895 | K66: 498.1693261 | L66: 3337.191676 | M66: 517.9647623 | N66: 657.462802 | O66: 306.8577288 | P66: 895697 | Q66: 16999.72459 | S66: 4261.465831 | T66: 1262.941232
A67: 3501 | B67: Paulo Freire Social Justice Charter School | C67: C | D67: Holyoke | E67: 245.6388889 | F67: 1336.074396 | G67: 791.0639104 | H67: 4612.94657 | I67: 1429.618541 | J67: 87.9280968 | K67: 759.2782676 | L67: 618.3834355 | M67: 1566.745485 | N67: 441.0810539 | O67: 1511.874857 | P67: 3231378.26 | Q67: 13154.99461 | S67: 2623.648083 | T67: 439.2871198
A68: 493 | B68: Phoenix Academy Charter Public High School, Chelsea | C68: C | D68: Chelsea | E68: 173.295082 | F68: 7015.527539 | G68: 3157.585454 | H68: 5795.52979 | I68: 4063.690164 | J68: 555.2309904 | K68: 1653.158917 | L68: 0 | M68: 1617.651158 | N68: 982.7659739 | O68: 3853.138545 | P68: 4972577.35 | Q68: 28694.27853 | S68: 2177.963481 | T68: 656.4984921
A69: 3508 | B69: Phoenix Academy Public Charter High School, Springfield | C69: =VLOOKUP(A69, FACTS, 3, FALSE) -> C | D69: =VLOOKUP(A69, FACTS, 6, FALSE) -> Springfield | E69: =VLOOKUP(A69, FTE, 2, FALSE) -> 122.281768 | F69: 2699.880003 | G69: 1795.063922 | H69: 3443.159819 | I69: 2608.469892 | J69: 160.313024 | K69: 142.7227484 | L69: 0 | M69: 921.7634966 | N69: 969.5424918 | O69: 979.4336638 | P69: 1677748.54 | Q69: =SUM(F69:O69) -> 13720.34906 | S69: 1038.082963 | T69: 156.205298
A70: 494 | B70: Pioneer Charter School of Science | C70: C | D70: Everett | E70: 356.9355362 | F70: 2194.149617 | G70: 897.7394445 | H70: 4524.852771 | I70: 462.7279529 | J70: 133.57821 | K70: 826.4083569 | L70: 434.1088356 | M70: 926.0458443 | N70: 1112.566808 | O70: 2567.53365 | P70: 5025549.37 | Q70: 14079.71149 | S70: 938.8516581 | T70: 0
A71: 3506 | B71: Pioneer Charter School of Science II | C71: C | D71: Saugus | E71: 226.746114 | F71: 1832.991017 | G71: 1006.362561 | H71: 4155.253483 | I71: 320.1060813 | J71: 59.65808967 | K71: 964.0329713 | L71: 438.7331198 | M71: 1101.434709 | N71: 936.6125675 | O71: 1827.419146 | P71: 2866661.27 | Q71: 12642.60375 | S71: 1520.426586 | T71: 0
A72: 497 | B72: Pioneer Valley Chinese Immersion Charter School | C72: =VLOOKUP(A72, FACTS, 3, FALSE) -> C | D72: =VLOOKUP(A72, FACTS, 6, FALSE) -> Hadley | E72: =VLOOKUP(A72, FTE, 2, FALSE) -> 388.15 | F72: =VLOOKUP($A72&100, FE, 12, FALSE)/$E72 -> 701.1437846 | G72: =VLOOKUP($A72&210, FE, 12, FALSE)/$E72 -> 705.9736442 | H72: =VLOOKUP($A72&220, FE, 12, FALSE)/$E72 -> 5228.219941 | I72: =VLOOKUP($A72&230, FE, 12, FALSE)/$E72 -> 418.5483189 | J72: =VLOOKUP($A72&240, FE, 12, FALSE)/$E72 -> 100.0353472 | K72: =VLOOKUP($A72&260, FE, 12, FALSE)/$E72 -> 737.9453304 | L72: =VLOOKUP($A72&250, FE, 12, FALSE)/$E72 -> 353.9269458 | M72: =VLOOKUP($A72&300, FE, 12, FALSE)/$E72 -> 927.9465413 | N72: =VLOOKUP($A72&400, FE, 12, FALSE)/$E72 -> 729.6688909 | O72: =VLOOKUP($A72&500, FE, 12, FALSE)/$E72 -> 1157.800438 | P72: =VLOOKUP($A72&800,FE,12,FALSE)-VLOOKUP($A72&700,FE,12,FALSE)-VLOOKUP($A72&600,FE,12,FALSE) -> 4293408.344 | Q72: 11061.20918 | S72: 1074.21824 | T72: 20.05946155
A73: 479 | B73: Pioneer Valley Performing Arts Charter Public School | C73: C | D73: South Hadley | E73: 402.2983425 | F73: 1548.741156 | G73: 802.8842425 | H73: 4858.217878 | I73: 787.256537 | J73: 123.6246704 | K73: 268.922311 | L73: 511.7023319 | M73: 1060.700368 | N73: 969.0793095 | O73: 2700.470982 | P73: 5483970 | Q73: =SUM(F73:O73) -> 13631.59979 | S73: 747.5198583 | T73: 135.9240002
A74: 487 | B74: Prospect Hill Academy Charter School | C74: C | D74: Somerville (K-6); Cambridge (7-12) | E74: 1150.405556 | F74: 1798.125305 | G74: 1804.703341 | H74: 5726.861565 | I74: 1505.242966 | J74: 108.0261647 | K74: 758.8274637 | L74: 344.2265105 | M74: 615.8991988 | N74: 771.3117306 | O74: 3116.833766 | P74: 19039278.68 | Q74: 16550.05801 | S74: 1285.022237 | T74: 1275.140452
A75: 483 | B75: Rising Tide Charter Public School | C75: C | D75: Plymouth | E75: 590.0888889 | F75: 1063.237864 | G75: 1226.043743 | H75: 3869.976529 | I75: 1014.668385 | J75: 17.42618814 | K75: 96.82100625 | L75: 410.5712115 | M75: 775.1228986 | N75: 582.541489 | O75: 2039.262275 | P75: 6547432.52 | Q75: 11095.67159 | S75: =VLOOKUP($A75&740, FE, 12, FALSE)/$E75 -> 646.1594468 | T75: =(VLOOKUP($A75&700, FE, 12, FALSE)-VLOOKUP($A75&740, FE, 12, FALSE)-VLOOKUP($A75&725, FE, 12, FALSE))/$E75 -> 765.7855088
A76: 482 | B76: River Valley Charter School | C76: C | D76: Newburyport | E76: 287.2055556 | F76: 1352.849875 | G76: 791.7151866 | H76: 4359.083506 | I76: 1801.514595 | J76: 132.4695824 | K76: 648.977697 | L76: 165.0455539 | M76: 496.8984661 | N76: 616.7638354 | O76: 2242.731687 | P76: 3621102 | Q76: 12608.04998 | S76: 0 | T76: 1368.03064
A77: 484 | B77: Roxbury Preparatory Charter School | C77: C | D77: Boston | E77: 875.2122822 | F77: 2060.446404 | G77: 2849.864028 | H77: 5548.149973 | I77: 358.4296135 | J77: 317.4109935 | K77: 847.4972473 | L77: 300.0791983 | M77: 982.2348446 | N77: 1519.752438 | O77: 2340.69727 | P77: 14987627 | Q77: 17124.56201 | S77: 1268.246599 | T77: 1058.729429
A78: 441 | B78: Sabis International Charter School | C78: C | D78: Springfield | E78: 1568.383333 | F78: 1218.951815 | G78: 1021.869097 | H78: 3122.939874 | I78: 752.3631595 | J78: 130.8356801 | K78: 685.5091719 | L78: 528.343073 | M78: 1836.923244 | N78: 755.5998427 | O78: 1701.453288 | P78: 18436013.97 | Q78: 11754.78824 | S78: 41.44394971 | T78: 2120.719852
A79: 485 | B79: Salem Academy Charter School | C79: C | D79: Salem | E79: 372.025641 | F79: 1322.510993 | G79: 1378.01792 | H79: 5636.176029 | I79: 475.1527328 | J79: 74.50830519 | K79: 447.3643256 | L79: 776.1642429 | M79: 802.143635 | N79: 654.7586326 | O79: 2616.634158 | P79: 5276600 | Q79: 14183.43097 | S79: 1625.452478 | T79: 104.6675167
A80: 486 | B80: Seven Hills Charter Public School | C80: C | D80: Worcester | E80: 663.828125 | F80: 1207.502318 | G80: 1121.410757 | H80: 4257.699988 | I80: 1446.083653 | J80: 183.4239849 | K80: 591.3051665 | L80: 716.6358009 | M80: 1944.223138 | N80: 841.9754737 | O80: 2696.556432 | P80: 9961947 | Q80: 15006.81671 | S80: 1225.919736 | T80: 0
A81: 477 | B81: Silver Hill Horace Mann Charter School | C81: HM | D81: Haverhill | E81: 588.15 | F81: 137.1639888 | G81: 347.8177336 | H81: 4434.647114 | I81: 425.4586415 | J81: 35.17453031 | K81: 124.9505228 | L81: 0 | M81: 242.3481085 | N81: 397.0738757 | O81: 1210.886679 | P81: 4326149.79 | Q81: 7355.521194 | S81: 0 | T81: 0
A82: 474 | B82: Sizer School, A North Central Charter Essential School | C82: C | D82: Fitchburg | E82: 349.0666667 | F82: 1635.56187 | G82: 1237.764849 | H82: 5367.848491 | I82: 593.5387701 | J82: 67.15364782 | K82: 305.8315222 | L82: 750.5644194 | M82: 940.4911192 | N82: 1038.071333 | O82: 2244.20317 | P82: 4950124.59 | Q82: 14181.02919 | S82: 10.01487777 | T82: 43.1460275
A83: 488 | B83: South Shore Charter Public School | C83: C | D83: Norwell | E83: 585.2388889 | F83: 1078.347683 | G83: 717.2371624 | H83: 5854.844176 | I83: 625.3736841 | J83: 96.78044483 | K83: 606.7010869 | L83: 441.0233238 | M83: 545.4353873 | N83: 788.6738027 | O83: 2164.203412 | P83: 7560478.91 | Q83: 12918.62016 | S83: 921.603144 | T83: 267.3660329
A84: 489 | B84: Sturgis Charter Public School | C84: C | D84: Hyannis | E84: 804.844913 | F84: 1092.012866 | G84: 862.2630134 | H84: 6868.718322 | I84: 444.2346522 | J84: 0 | K84: 291.9332609 | L84: 813.9009012 | M84: 727.2034532 | N84: 504.991699 | O84: 2591.162554 | P84: 11425917 | Q84: 14196.42072 | S84: 1517.996797 | T84: 68.03795255
A85: 480 | B85: UP Academy Charter School of Boston | C85: HM | D85: Boston | E85: 460.8415301 | F85: 1010.091256 | G85: 1741.58132 | H85: 6101.537766 | I85: 398.195449 | J85: 72.49346645 | K85: 748.5067588 | L85: 422.4554154 | M85: 2916.718465 | N85: 1415.833768 | O85: 1143.234638 | P85: 7359938 | Q85: 15970.6483 | S85: 0 | T85: 20.32585908
A86: 3505 | B86: UP Academy Charter School of Dorchester | C86: HM | D86: Boston | E86: 624.5425532 | F86: 814.1687022 | G86: 1613.56187 | H86: 5734.682099 | I86: 757.5016267 | J86: 58.49721498 | K86: 541.5147427 | L86: 200.7325191 | M86: 2493.30969 | N86: 1332.114194 | O86: 1074.913145 | P86: 9131434.05 | Q86: 14620.9958 | S86: 0 | T86: 44.97051459
A87: 498 | B87: Veritas Preparatory Charter School | C87: C | D87: Springfield | E87: 240.5405405 | F87: 2141.598829 | G87: 615.0219404 | H87: 4506.761179 | I87: 576.1205562 | J87: 391.1919371 | K87: 1064.998022 | L87: 633.4678539 | M87: 2248.999103 | N87: 938.028282 | O87: 1609.681134 | P87: 3542168.45 | Q87: 14725.86884 | S87: 649.0256472 | T87: 160.8402888
A88: C | B88: Commonwealth Charter Statewide Totals | C88: C | E88: =SUMIF(C12:C87,"C",E12:E87) -> 30852.17656 | F88: =VLOOKUP($A88&100, FE, 12, FALSE)/$E88 -> 1746.109451 | G88: =VLOOKUP($A88&210, FE, 12, FALSE)/$E88 -> 1346.483097 | H88: =VLOOKUP($A88&220, FE, 12, FALSE)/$E88 -> 5242.055805 | I88: =VLOOKUP($A88&230, FE, 12, FALSE)/$E88 -> 993.5132542 | J88: =VLOOKUP($A88&240, FE, 12, FALSE)/$E88 -> 176.213572 | K88: =VLOOKUP($A88&260, FE, 12, FALSE)/$E88 -> 649.2354696 | L88: =VLOOKUP($A88&250, FE, 12, FALSE)/$E88 -> 536.4388222 | M88: =VLOOKUP($A88&300, FE, 12, FALSE)/$E88 -> 1654.589551 | N88: =VLOOKUP($A88&400, FE, 12, FALSE)/$E88 -> 1005.938652 | O88: =VLOOKUP($A88&500, FE, 12, FALSE)/$E88 -> 2435.750831 | P88: =VLOOKUP($A88&100,FE,12,FALSE)+VLOOKUP($A88&200,FE,12,FALSE)+VLOOKUP($A88&300,FE,12,FALSE)+VLOOKUP($A88&400,FE,12,FALSE)+VLOOKUP($A88&500,FE,12,FALSE) -> 487042594.2 | Q88: =SUM(F88:O88) -> 15786.32851 | S88: 902.6092911 | T88: 969.2734519
A89: HM | B89: Horace Mann Charter Statewide Totals | C89: HM | E89: =SUMIF(C12:C87,"HM",E12:E87) -> 3349.179525 | F89: =VLOOKUP($A89&100, FE, 12, FALSE)/$E89 -> 1073.065078 | G89: =VLOOKUP($A89&210, FE, 12, FALSE)/$E89 -> 1191.247662 | H89: =VLOOKUP($A89&220, FE, 12, FALSE)/$E89 -> 5665.881183 | I89: =VLOOKUP($A89&230, FE, 12, FALSE)/$E89 -> 842.9556668 | J89: =VLOOKUP($A89&240, FE, 12, FALSE)/$E89 -> 76.61813828 | K89: =VLOOKUP($A89&260, FE, 12, FALSE)/$E89 -> 411.605717 | L89: =VLOOKUP($A89&250, FE, 12, FALSE)/$E89 -> 519.2282399 | M89: =VLOOKUP($A89&300, FE, 12, FALSE)/$E89 -> 1599.086284 | N89: =VLOOKUP($A89&400, FE, 12, FALSE)/$E89 -> 733.3223111 | O89: =VLOOKUP($A89&500, FE, 12, FALSE)/$E89 -> 1220.308466 | P89: =VLOOKUP($A89&100,FE,12,FALSE)+VLOOKUP($A89&200,FE,12,FALSE)+VLOOKUP($A89&300,FE,12,FALSE)+VLOOKUP($A89&400,FE,12,FALSE)+VLOOKUP($A89&500,FE,12,FALSE) -> 44655678.15 | Q89: =SUM(F89:O89) -> 13333.31875 | S89: 261.2535379 | T89: 75.34263186
A90: ALL | B90: All Charter Schools Statewide Totals | C90: ALL | E90: =SUM(E88:E89) -> 34201.35608 | F90: 1680.20135 | G90: 1331.281614 | H90: =VLOOKUP($A90&220, FE, 12, FALSE)/$E90 -> 5283.55905 | I90: =VLOOKUP($A90&230, FE, 12, FALSE)/$E90 -> 978.7698508 | J90: =VLOOKUP($A90&240, FE, 12, FALSE)/$E90 -> 166.460655 | K90: =VLOOKUP($A90&260, FE, 12, FALSE)/$E90 -> 625.9654946 | L90: =VLOOKUP($A90&250, FE, 12, FALSE)/$E90 -> 534.75347 | M90: =VLOOKUP($A90&300, FE, 12, FALSE)/$E90 -> 1649.154375 | N90: =VLOOKUP($A90&400, FE, 12, FALSE)/$E90 -> 979.2426037 | O90: =VLOOKUP($A90&500, FE, 12, FALSE)/$E90 -> 2316.728221 | P90: =VLOOKUP($A90&100,FE,12,FALSE)+VLOOKUP($A90&200,FE,12,FALSE)+VLOOKUP($A90&300,FE,12,FALSE)+VLOOKUP($A90&400,FE,12,FALSE)+VLOOKUP($A90&500,FE,12,FALSE) -> 531698272.4 | Q90: 15546.11668 | S90: 839.804309 | T90: 881.7349698
F91: ----------------------------- Operating Expenditures Per Pupil In The Charter School -------------------------------------------
A92: Notes: | B92: 1. These figures do not include facilities lease costs -- see data presented at right.
B93: 2. The majority of charter schools lease their facilities. In many cases, Horace Mann charter schools are provided their facilities in kind by their host districts; some report a monetary figure for these in-kind revenues and expenditures, some do not.
B94: 3. Capital facilities costs include facilities-related long-term interest; depreciation of equipment, buildings, and grounds; bad debt or loss on disposal of assets; and other costs related to capital facilities acquisition.
B95: Charter schools that report significant costs in this category either own their buildings or have invested heavily in leasehold improvements.

Sheet 5. AVGTCHSAL
A1: Massachusetts Department of Elementary and Secondary Education
A2: FY15 Average Teacher Salaries
A3: =Index!B3 -> Last Updated: April 2016
A5: Return to Index
A6: Average teacher salaries are calculated from data submitted on the Charter School End of Year Financial Report. The calculation includes professional teachers paid from all funding sources, including tuition revenue, federal and state grants, and private grants/contributions. Beginning in FY08, the Educator Personnel Management Information System (EPIMS) was the source for the total number of theachers, which is shown in full-time equivalents (e.g., a teacher who worked half-time would count as .5 FTE's).
A8: LEA | B8: Charter School | C8: Type | D8: Location | E8: Total Salaries | F8: Total Teachers | G8: Average Salaries
A9: 445 | B9: Abby Kelley Foster Charter Public School | C9: =VLOOKUP(A9, FACTS, 3, FALSE) -> C | D9: =VLOOKUP(A9, FACTS, 6, FALSE) -> Worcester | E9: =VLOOKUP($A9&220, FE, 12, FALSE) -> 6640018.68 | F9: =VLOOKUP(A9, TEACHEREPIMS, 2, FALSE) -> 116.544 | G9: =E9/F9 -> 56974.35029
A10: 412 | B10: Academy of the Pacific Rim Charter Public School | C10: C | D10: Boston | E10: 2562085 | F10: 42.334 | G10: =E10/F10 -> 60520.73983
A11: 430 | B11: Advanced Math and Science Academy Charter School | C11: C | D11: Marlborough | E11: 4185659 | F11: 80.781 | G11: 51814.89459
A12: 409 | B12: Alma del Mar Charter School | C12: C | D12: New Bedford | E12: 987472.06 | F12: 17.03 | G12: 57984.26659
A13: 3509 | B13: Argosy Collegiate Charter School | C13: =VLOOKUP(A13, FACTS, 3, FALSE) -> C | D13: =VLOOKUP(A13, FACTS, 6, FALSE) -> Fall River | E13: 290428.42 | F13: =VLOOKUP(A13, TEACHEREPIMS, 2, FALSE) -> 8.1 | G13: =E13/F13 -> 35855.36049
A14: 491 | B14: Atlantis Charter School | C14: C | D14: Fall River | E14: 3113811 | F14: 48.66 | G14: 63991.18372
A15: 427 | B15: Barnstable Community Horace Mann Charter Public School | C15: HM | D15: Barnstable | E15: 1539335 | F15: 24.392 | G15: 63108.19121
A16: 3502 | B16: Baystate Academy Charter Public School | C16: C | D16: Springfield | E16: 1028803.09 | F16: 19.83 | G16: 51881.14423
A17: 420 | B17: Benjamin Banneker Charter Public School | C17: C | D17: Cambridge | E17: 1574792 | F17: 19.97 | G17: 78857.88683
A18: 447 | B18: Benjamin Franklin Classical Charter Public School | C18: C | D18: Franklin | E18: 1738375 | F18: 23.144 | G18: 75111.25994
A19: 414 | B19: Berkshire Arts and Technology Charter Public School | C19: C | D19: Adams | E19: 1438495.16 | F19: 28.99 | G19: 49620.39186
A20: 449 | B20: Boston Collegiate Charter School | C20: C | D20: Boston | E20: 3936411.93 | F20: 59.167 | G20: 66530.53104
A21: 424 | B21: Boston Day and Evening Academy Charter School | C21: HM | D21: Boston | E21: 2146154.88 | F21: 20.6 | G21: 104182.2757
A22: 411 | B22: Boston Green Academy Horace Mann Charter School | C22: HM | D22: Boston | E22: 2490738 | F22: 37 | G22: 67317.24324
A23: 416 | B23: Boston Preparatory Charter Public School | C23: C | D23: Boston | E23: 2220935 | F23: 30.433 | G23: 72977.85299
A24: 481 | B24: Boston Renaissance Charter Public School | C24: C | D24: Boston | E24: 4895612.57 | F24: 77 | G24: 63579.38403
A25: 417 | B25: Bridge Boston Charter School | C25: C | D25: Boston | E25: 860259 | F25: 14 | G25: 61447.07143
A26: 457 | B26: Brooke Charter School East Boston | C26: C | D26: Boston | E26: 1834123.1 | F26: 33 | G26: 55579.48788
A27: 443 | B27: Brooke Charter School Mattapan | C27: C | D27: Boston | E27: 2311165.74 | F27: 42.963 | G27: 53794.32861
A28: 428 | B28: Brooke Charter School Roslindale | C28: C | D28: Boston | E28: 2525263.32 | F28: 42 | G28: 60125.31714
A29: 432 | B29: Cape Cod Lighthouse Charter School | C29: C | D29: Harwich | E29: 1545116 | F29: 21.96 | G29: 70360.47359
A30: 418 | B30: Christa McAuliffe Charter School | C30: C | D30: Framingham | E30: 1891355 | F30: 37.014 | G30: 51098.36819
A31: 437 | B31: City On A Hill Charter Public School | C31: C | D31: Boston | E31: 1580678.36 | F31: 22.447 | G31: 70418.24565
A32: 3504 | B32: City On A Hill Charter Public School II | C32: C | D32: Boston | E32: 881095 | F32: 13.5 | G32: 65266.2963
A33: 3507 | B33: City On A Hill Charter Public School New Bedford | C33: C | D33: New Bedford | E33: 529670.36 | F33: 8.5 | G33: 62314.16
A34: 438 | B34: Codman Academy Charter Public School | C34: C | D34: Boston | E34: 1486386.31 | F34: 20.75 | G34: 71633.07518
A35: 436 | B35: Community Charter School of Cambridge | C35: C | D35: Cambridge | E35: 2212935 | F35: 32.18 | G35: 68767.40211
A36: 426 | B36: Community Day Charter Public School - Gateway | C36: C | D36: Lawrence | E36: 1092742 | F36: 21.6 | G36: 50589.90741
A37: 440 | B37: Community Day Charter Public School - Prospect | C37: C | D37: Lawrence | E37: 2635199 | F37: 43.3 | G37: 60859.09931
A38: 431 | B38: Community Day Charter Public School - R. Kingman Webster | C38: C | D38: Lawrence | E38: 1106192 | F38: 23.6 | G38: 46872.54237
A39: 439 | B39: Conservatory Lab Charter School | C39: =VLOOKUP(A39, FACTS, 3, FALSE) -> C | D39: =VLOOKUP(A39, FACTS, 6, FALSE) -> Boston | E39: =VLOOKUP($A39&220, FE, 12, FALSE) -> 1521621 | F39: =VLOOKUP(A39, TEACHEREPIMS, 2, FALSE) -> 18 | G39: 84534.5
A40: 475 | B40: Dorchester Collegiate Academy Charter School | C40: C | D40: Boston | E40: 1017523.95 | F40: 17.2 | G40: 59158.36919
A41: 407 | B41: Dudley Street Neighborhood Charter School | C41: HM | D41: Boston | E41: 1147619.67 | F41: 15.94 | G41: 71996.21518
A42: 452 | B42: Edward M. Kennedy Academy for Health Careers: A Horace Mann Charter Public School | C42: HM | D42: Boston | E42: 2311395 | F42: 24.275 | G42: 95217.09578
A43: 410 | B43: Excel Academy Charter School | C43: C | D43: Boston | E43: 3069414.4 | F43: =VLOOKUP(A43, TEACHEREPIMS, 2, FALSE) -> 51.625 | G43: 59455.96901
A44: 413 | B44: Four Rivers Charter Public School | C44: C | D44: Greenfield | E44: 1145765 | F44: 21.955 | G44: 52186.97335
A45: 446 | B45: Foxborough Regional Charter School | C45: C | D45: Foxborough | E45: 4081432.64 | F45: 84.061 | G45: 48553.22492
A46: 478 | B46: Francis W. Parker Charter Essential School | C46: C | D46: Devens | E46: 2187008.34 | F46: 33.95 | G46: 64418.50781
A47: 496 | B47: Global Learning Charter Public School | C47: C | D47: New Bedford | E47: 2410602 | F47: 40.669 | G47: 59273.69741
A48: 499 | B48: Hampden Charter School of Science | C48: C | D48: Chicopee | E48: 1560577.44 | F48: 27.466 | G48: 56818.5189
A49: 419 | B49: Helen Y Davis Leadership Academy Charter Public School | C49: C | D49: Boston | E49: 1235593 | F49: 15 | G49: 82372.86667
A50: 455 | B50: Hill View Montessori Charter Public School | C50: C | D50: Haverhill | E50: 1071501.75 | F50: 21.576 | G50: 49661.74221
A51: 450 | B51: Hilltown Cooperative Charter Public School | C51: C | D51: East Hampton | E51: 937827.64 | F51: 15.989 | G51: 58654.5525
A52: 453 | B52: Holyoke Community Charter School | C52: C | D52: Holyoke | E52: 2633049.34 | F52: 50.948 | G52: 51681.1129
A53: 435 | B53: Innovation Academy Charter School | C53: C | D53: Tyngsborough | E53: 3565444 | F53: 70.253 | G53: 50751.48392
A54: 463 | B54: KIPP Academy Boston Charter School | C54: C | D54: Boston | E54: 1853821 | F54: 26.979 | G54: 68713.48086
A55: 429 | B55: KIPP Academy Lynn Charter School | C55: C | D55: Lynn | E55: 4079950 | F55: 76.927 | G55: 53036.64513
A56: 454 | B56: Lawrence Family Development Charter School | C56: C | D56: Lawrence | E56: 3124151 | F56: 56 | G56: 55788.41071
A57: 3503 | B57: Lowell Collegiate Charter School | C57: C | D57: Lowell | E57: 951829.24 | F57: 21 | G57: 45325.2019
A58: 456 | B58: Lowell Community Charter Public School | C58: C | D58: Lowell | E58: 3189239.55 | F58: 49.94 | G58: 63861.42471
A59: 458 | B59: Lowell Middlesex Academy Charter School | C59: C | D59: Lowell | E59: 746944.23 | F59: 11.77 | G59: 63461.70178
A60: 464 | B60: Marblehead Community Charter Public School | C60: C | D60: Marblehead | E60: 1179151.5 | F60: 20.8 | G60: 56689.97596
A61: 466 | B61: Martha's Vineyard Public Charter School | C61: C | D61: West Tisbury | E61: 1605694 | F61: 18.07 | G61: 88859.65689
A62: 492 | B62: Martin Luther King, Jr. Charter School of Excellence | C62: C | D62: Springfield | E62: 1950757.02 | F62: 38.169 | G62: 51108.41311
A63: 469 | B63: Match Charter Public School | C63: C | D63: Boston | E63: 5463616 | F63: 53.29 | G63: 102526.1025
A64: 470 | B64: Mystic Valley Regional Charter School | C64: C | D64: Malden | E64: 5731916 | F64: 104.606 | G64: 54795.28899
A65: 444 | B65: Neighborhood House Charter School | C65: C | D65: Boston | E65: 2496489 | F65: 34.334 | G65: 72711.85996
A66: 467 | B66: New Liberty Charter School of Salem | C66: HM | D66: Salem | E66: 339178 | F66: 5.6 | G66: 60567.5
A67: 3501 | B67: Paulo Freire Social Justice Charter School | C67: C | D67: Holyoke | E67: 1133119.07 | F67: 33.067 | G67: 34267.36837
A68: 493 | B68: Phoenix Academy Charter Public High School, Chelsea | C68: C | D68: Chelsea | E68: 1004336.81 | F68: 13.8 | G68: 72778.02971
A69: 3508 | B69: Phoenix Academy Public Charter High School, Springfield | C69: C | D69: Springfield | E69: 421035.67 | F69: 7.4 | G69: 56896.71216
A70: 494 | B70: Pioneer Charter School of Science | C70: =VLOOKUP(A70, FACTS, 3, FALSE) -> C | D70: =VLOOKUP(A70, FACTS, 6, FALSE) -> Everett | E70: =VLOOKUP($A70&220, FE, 12, FALSE) -> 1615080.75 | F70: =VLOOKUP(A70, TEACHEREPIMS, 2, FALSE) -> 32.343 | G70: 49936.0217
A71: 3506 | B71: Pioneer Charter School of Science II | C71: C | D71: Saugus | E71: 942187.58 | F71: 22.292 | G71: =E71/F71 -> 42265.72672
A72: 497 | B72: Pioneer Valley Chinese Immersion Charter School | C72: C | D72: Hadley | E72: 2029333.57 | F72: 43.914 | G72: 46211.54006
A73: 479 | B73: Pioneer Valley Performing Arts Charter Public School | C73: C | D73: South Hadley | E73: 1954453 | F73: 35.696 | G73: 54752.71739
A74: 487 | B74: Prospect Hill Academy Charter School | C74: C | D74: Somerville (K-6); Cambridge (7-12) | E74: 6588213.36 | F74: 88.08 | G74: 74798.06267
A75: 483 | B75: Rising Tide Charter Public School | C75: C | D75: Plymouth | E75: 2283630.15 | F75: 49.133 | G75: 46478.5409
A76: 482 | B76: River Valley Charter School | C76: C | D76: Newburyport | E76: 1251953 | F76: 19.405 | G76: 64517.03169
A77: 484 | B77: Roxbury Preparatory Charter School | C77: C | D77: Boston | E77: 4855809 | F77: 78.14 | G77: 62142.42385
A78: 441 | B78: Sabis International Charter School | C78: C | D78: Springfield | E78: 4897966.85 | F78: 65.45 | G78: 74835.24599
A79: 485 | B79: Salem Academy Charter School | C79: C | D79: Salem | E79: 2096802 | F79: 37.64 | G79: 55706.74814
A80: 486 | B80: Seven Hills Charter Public School | C80: C | D80: Worcester | E80: 2826381 | F80: 55.3 | G80: 51109.96383
A81: 477 | B81: Silver Hill Horace Mann Charter School | C81: HM | D81: Haverhill | E81: 2608237.7 | F81: 36.943 | G81: 70601.67555
A82: 474 | B82: Sizer School, A North Central Charter Essential School | C82: C | D82: Fitchburg | E82: 1873736.98 | F82: 36.35 | G82: 51547.09711
A83: 488 | B83: South Shore Charter Public School | C83: C | D83: Norwell | E83: 3426482.5 | F83: 51.592 | G83: 66414.99651
A84: 489 | B84: Sturgis Charter Public School | C84: C | D84: Hyannis | E84: 5528253 | F84: 83.25 | G84: 66405.44144
A85: 480 | B85: UP Academy Charter School of Boston | C85: HM | D85: Boston | E85: 2811842 | F85: 42.98 | G85: 65422.1033
A86: 3505 | B86: UP Academy Charter School of Dorchester | C86: HM | D86: =VLOOKUP(A86, FACTS, 6, FALSE) -> Boston | E86: 3581553 | F86: =VLOOKUP(A86, TEACHEREPIMS, 2, FALSE) -> 41 | G86: =E86/F86 -> 87354.95122
A87: 498 | B87: Veritas Preparatory Charter School | C87: C | D87: Springfield | E87: 1084058.77 | F87: 19 | G87: 57055.72474
A88: C | B88: Commonwealth Charter Statewide Totals | C88: C | E88: =VLOOKUP($A88&220, FE, 12, FALSE) -> 161728831.2 | F88: =SUMIF($C12:$C85,"C",F12:F85) -> 2442.567 | G88: =E88/F88 -> 66212.64891
A89: HM | B89: Horace Mann Charter Statewide Totals | C89: HM | E89: =VLOOKUP($A89&220, FE, 12, FALSE) -> 18976053.25 | F89: =SUMIF($C12:$C85,"HM",F12:F85) -> 207.73 | G89: =E89/F89 -> 91349.60405
A90: ALL | B90: All Charter Schools Statewide Totals | C90: ALL | E90: 180704884.5 | F90: =SUM(F88:F89) -> 2650.297 | G90: =E90/F90 -> 68182.88081

Sheet BAL15 (hidden)
B3: 1 | C3: 2 | D3: 3 | E3: 4 | F3: 5 | G3: 6 | H3: 7 | I3: 8
A4: FY | B4: vlookup | C4: cha_code | D4: cha_type | E4: balance_id | F4: Line_Desc | G4: balance_sch | H4: balance_found | I4: balance_total
A5: 2015 | B5: =C5&E5 -> 4071 | C5: 407 | D5: =VLOOKUP(C5, TYPE, 3, FALSE) -> HM | E5: 1 | F5: Cash and Cash Equivalents | G5: 5672.62 | H5: 0 | I5: 5672.62 | J5: =D5&E5 -> HM1
A6: 2015 | B6: =C6&E6 -> 4072 | C6: 407 | D6: HM | E6: 2 | F6: Accounts Receivable net of doubtful accounts | G6: 27126.75 | H6: 0 | I6: 27126.75 | J6: HM2
A7: 2015 | B7: 4073 | C7: 407 | D7: HM | E7: 3 | F7: Grants Receivable - State | G7: 0 | H7: 0 | I7: 0 | J7: HM3
A8: 2015 | B8: 4074 | C8: 407 | D8: HM | E8: 4 | F8: Grants Receivable - Federal | G8: 0 | H8: 0 | I8: 0 | J8: HM4
A9: 2015 | B9: 4075 | C9: 407 | D9: HM | E9: 5 | F9: Grants Receivable - Private | G9: 0 | H9: 0 | I9: 0 | J9: HM5
A10: 2015 | B10: 4076 | C10: 407 | D10: HM | E10: 6 | F10: Contributions Receivable | G10: 0 | H10: 0 | I10: 0 | J10: HM6
A11: 2015 | B11: 4077 | C11: 407 | D11: HM | E11: 7 | F11: Due from related parties | G11: 0 | H11: 0 | I11: 0 | J11: HM7
A12: 2015 | B12: 4078 | C12: 407 | D12: HM | E12: 8 | F12: Prepaid Expenses / Inventory | G12: 3662.89 | H12: 0 | I12: 3662.89 | J12: HM8
A13: 2015 | B13: 4079 | C13: 407 | D13: HM | E13: 9 | F13: Short-Term Investments | G13: 0 | H13: 0 | I13: 0 | J13: HM9
A14: 2015 | B14: 40710 | C14: 407 | D14: HM | E14: 10 | F14: Deposit (Security, Other) | G14: 0 | H14: 0 | I14: 0 | J14: HM10
A15: 2015 | B15: 40711 | C15: 407 | D15: HM | E15: 11 | F15: Restricted Current Assets | G15: 0 | H15: 0 | I15: 0 | J15: HM11
A16: 2015 | B16: 40712 | C16: 407 | D16: HM | E16: 12 | F16: TOTAL CURRENT ASSETS | G16: 36462.26 | H16: 0 | I16: 36462.26 | J16: HM12
A17: 2015 | B17: 40713 | C17: 407 | D17: HM | E17: 13 | F17: - Land and Buildings | G17: 0 | H17: 0 | I17: 0 | J17: HM13
A18: 2015 | B18: 40714 | C18: 407 | D18: HM | E18: 14 | F18: - Building/Leasehold Improvement | G18: 0 | H18: 0 | I18: 0 | J18: HM14
A19: 2015 | B19: 40715 | C19: 407 | D19: HM | E19: 15 | F19: - Furniture and Equipment | G19: 97602.84 | H19: 0 | I19: 97602.84 | J19: HM15
A20: 2015 | B20: 40716 | C20: 407 | D20: HM | E20: 16 | F20: - Less Accumulated Depreciation | G20: -75406.52 | H20: 0 | I20: -75406.52 | J20: HM16
A21: 2015 | B21: 40717 | C21: 407 | D21: HM | E21: 17 | F21: Net Capital Assets | G21: 22196.32 | H21: 0 | I21: 22196.32 | J21: HM17
A22: 2015 | B22: 40718 | C22: 407 | D22: HM | E22: 18 | F22: Restricted Noncurrent Assets | G22: 0 | H22: 0 | I22: 0 | J22: HM18
A23: 2015 | B23: 40719 | C23: 407 | D23: HM | E23: 19 | F23: Long-Term Investments | G23: 0 | H23: 0 | I23: 0 | J23: HM19
A24: 2015 | B24: 40720 | C24: 407 | D24: HM | E24: 20 | F24: Building Acquisition / Financing Costs / Deferred Expenses | G24: 0 | H24: 0 | I24: 0 | J24: HM20
A25: 2015 | B25: 40721 | C25: 407 | D25: HM | E25: 21 | F25: Long-Term Grants / Contributions Receivable | G25: 0 | H25: 0 | I25: 0 | J25: HM21
A26: 2015 | B26: 40722 | C26: 407 | D26: HM | E26: 22 | F26: TOTAL NONCURRENT ASSETS | G26: 22196.32 | H26: 0 | I26: 22196.32 | J26: HM22
A27: 2015 | B27: 40723 | C27: 407 | D27: HM | E27: 23 | F27: TOTAL ASSETS | G27: 58659 | H27: 0 | I27: 58659 | J27: HM23
A28: 2015 | B28: 40724 | C28: 407 | D28: HM | E28: 24 | F28: Accounts Payable | G28: 6365 | H28: 0 | I28: 6365 | J28: HM24
A29: 2015 | B29: 40725 | C29: 407 | D29: HM | E29: 25 | F29: Accrued Expenses / Accrued Payroll | G29: 2106 | H29: 0 | I29: 2106 | J29: HM25
A30: 2015 | B30: 40726 | C30: 407 | D30: HM | E30: 26 | F30: Deferred Revenue | G30: 0 | H30: 0 | I30: 0 | J30: HM26
A31: 2015 | B31: 40727 | C31: 407 | D31: HM | E31: 27 | F31: Due to related parties | G31: 0 | H31: 0 | I31: 0 | J31: HM27
A32: 2015 | B32: 40728 | C32: 407 | D32: HM | E32: 28 | F32: Current Debt Payable | G32: 0 | H32: 0 | I32: 0 | J32: HM28
A33: 2015 | B33: 40729 | C33: 407 | D33: HM | E33: 29 | F33: Current Lease Obligations Payable | G33: 0 | H33: 0 | I33: 0 | J33: HM29
A34: 2015 | B34: 40730 | C34: 407 | D34: HM | E34: 30 | F34: TOTAL CURRENT LIABILITIES | G34: 8471 | H34: 0 | I34: 8471 | J34: HM30
A35: 2015 | B35: 40731 | C35: 407 | D35: HM | E35: 31 | F35: Noncurrent Lease Obligations | G35: 0 | H35: 0 | I35: 0 | J35: HM31
A36: 2015 | B36: 40732 | C36: 407 | D36: HM | E36: 32 | F36: Long-Term Debt | G36: 0 | H36: 0 | I36: 0 | J36: HM32
A37: 2015 | B37: 40733 | C37: 407 | D37: HM | E37: 33 | F37: Deferred Revenue | G37: 0 | H37: 0 | I37: 0 | J37: HM33
A38: 2015 | B38: 40734 | C38: 407 | D38: HM | E38: 34 | F38: TOTAL NONCURRENT LIABILITIES | G38: 0 | H38: 0 | I38: 0 | J38: HM34
A39: 2015 | B39: 40735 | C39: 407 | D39: HM | E39: 35 | F39: TOTAL LIABILITIES | G39: 8471 | H39: 0 | I39: 8471 | J39: HM35
A40: 2015 | B40: 40736 | C40: 407 | D40: HM | E40: 36 | F40: Investment in capital assets (net of related debt) | G40: 22197 | H40: 0 | I40: 22197 | J40: HM36
A41: 2015 | B41: 40737 | C41: 407 | D41: HM | E41: 37 | F41: Temporarily Restricted | G41: 0 | H41: 0 | I41: 0 | J41: HM37
A42: 2015 | B42: 40738 | C42: 407 | D42: HM | E42: 38 | F42: Permanently Restricted | G42: 0 | H42: 0 | I42: 0 | J42: HM38
A43: 2015 | B43: 40739 | C43: 407 | D43: HM | E43: 39 | F43: Unrestricted (non-capital) | G43: 27991.4 | H43: 0 | I43: 27991.4 | J43: HM39
A44: 2015 | B44: 40740 | C44: 407 | D44: HM | E44: 40 | F44: TOTAL NET ASSETS | G44: 50188 | H44: 0 | I44: 50188 | J44: HM40
A45: 2015 | B45: 40741 | C45: 407 | D45: HM | E45: 41 | F45: TOTAL LIABILITIES AND NET ASSETS | G45: 58659 | H45: 0 | I45: 58659 | J45: HM41
A46: 2015 | B46: 4091 | C46: 409 | D46: C | E46: 1 | F46: Cash and Cash Equivalents | G46: 518252.71 | H46: 1422065.74 | I46: 1940318.45 | J46: C1
A47: 2015 | B47: 4092 | C47: 409 | D47: C | E47: 2 | F47: Accounts Receivable net of doubtful accounts | G47: 49623.48 | H47: 852663.37 | I47: 902286.85 | J47: C2
A48: 2015 | B48: 4093 | C48: 409 | D48: C | E48: 3 | F48: Grants Receivable - State | G48: 0 | H48: 0 | I48: 0 | J48: C3
A49: 2015 | B49: 4094 | C49: 409 | D49: C | E49: 4 | F49: Grants Receivable - Federal | G49: 0 | H49: 0 | I49: 0 | J49: C4
A50: 2015 | B50: 4095 | C50: 409 | D50: C | E50: 5 | F50: Grants Receivable - Private | G50: 0 | H50: 0 | I50: 0 | J50: C5
A51: 2015 | B51: 4096 | C51: 409 | D51: C | E51: 6 | F51: Contributions Receivable | G51: 0 | H51: 0 | I51: 0 | J51: C6
A52: 2015 | B52: 4097 | C52: 409 | D52: C | E52: 7 | F52: Due from related parties | G52: 792593.23 | H52: 2725.95 | I52: 795319.18 | J52: C7
A53: 2015 | B53: 4098 | C53: 409 | D53: C | E53: 8 | F53: Prepaid Expenses / Inventory | G53: 35748.03 | H53: 0 | I53: 35748.03 | J53: C8
A54: 2015 | B54: 4099 | C54: 409 | D54: C | E54: 9 | F54: Short-Term Investments | G54: 0 | H54: 0 | I54: 0 | J54: C9
A55: 2015 | B55: 40910 | C55: 409 | D55: C | E55: 10 | F55: Deposit (Security, Other) | G55: 0 | H55: 0 | I55: 0 | J55: C10
A56: 2015 | B56: 40911 | C56: 409 | D56: C | E56: 11 | F56: Restricted Current Assets | G56: 0 | H56: 0 | I56: 0 | J56: C11
A57: 2015 | B57: 40912 | C57: 409 | D57: C | E57: 12 | F57: TOTAL CURRENT ASSETS | G57: 1396217.45 | H57: 2277455.06 | I57: 3673672.51 | J57: C12
A58: 2015 | B58: 40913 | C58: 409 | D58: C | E58: 13 | F58: - Land and Buildings | G58: 0 | H58: 1098308.45 | I58: 1098308.45 | J58: C13
A59: 2015 | B59: 40914 | C59: 409 | D59: C | E59: 14 | F59: - Building/Leasehold Improvement | G59: 218769.71 | H59: 0 | I59: 218769.71 | J59: C14
A60: 2015 | B60: 40915 | C60: 409 | D60: C | E60: 15 | F60: - Furniture and Equipment | G60: 48137.36 | H60: 0 | I60: 48137.36 | J60: C15
A61: 2015 | B61: 40916 | C61: 409 | D61: C | E61: 16 | F61: - Less Accumulated Depreciation | G61: -142053 | H61: 0 | I61: -142053 | J61: C16
A62: 2015 | B62: 40917 | C62: 409 | D62: C | E62: 17 | F62: Net Capital Assets | G62: 124854.07 | H62: 1098308.45 | I62: 1223162.52 | J62: C17
A63: 2015 | B63: 40918 | C63: 409 | D63: C | E63: 18 | F63: Restricted Noncurrent Assets | G63: 0 | H63: 0 | I63: 0 | J63: C18
A64: 2015 | B64: 40919 | C64: 409 | D64: C | E64: 19 | F64: Long-Term Investments | G64: 0 | H64: 0 | I64: 0 | J64: C19
A65: 2015 | B65: 40920 | C65: 409 | D65: C | E65: 20 | F65: Building Acquisition / Financing Costs / Deferred Expenses | G65: 0 | H65: 0 | I65: 0 | J65: C20
A66: 2015 | B66: 40921 | C66: 409 | D66: =VLOOKUP(C66, TYPE, 3, FALSE) -> C | E66: 21 | F66: Long-Term Grants / Contributions Receivable | G66: 0 | H66: 0 | I66: 0 | J66: =D66&E66 -> C21
A67: 2015 | B67: =C67&E67 -> 40922 | C67: 409 | D67: C | E67: 22 | F67: TOTAL NONCURRENT ASSETS | G67: 124854.07 | H67: 1098308.45 | I67: 1223162.52 | J67: C22
A68: 2015 | B68: 40923 | C68: 409 | D68: C | E68: 23 | F68: TOTAL ASSETS | G68: 1521072 | H68: 3375764 | I68: 4896835 | J68: C23
A69: 2015 | B69: 40924 | C69: 409 | D69: C | E69: 24 | F69: Accounts Payable | G69: 119277.17 | H69: 335729.84 | I69: 455007.01 | J69: C24
A70: 2015 | B70: 40925 | C70: 409 | D70: C | E70: 25 | F70: Accrued Expenses / Accrued Payroll | G70: 181840.3 | H70: 0 | I70: 181840.3 | J70: C25
A71: 2015 | B71: 40926 | C71: 409 | D71: C | E71: 26 | F71: Deferred Revenue | G71: 0 | H71: 0 | I71: 0 | J71: C26
A72: 2015 | B72: 40927 | C72: 409 | D72: C | E72: 27 | F72: Due to related parties | G72: 2725.95 | H72: 792593.23 | I72: 795319.18 | J72: C27
A73: 2015 | B73: 40928 | C73: 409 | D73: C | E73: 28 | F73: Current Debt Payable | G73: 0 | H73: 0 | I73: 0 | J73: C28
A74: 2015 | B74: 40929 | C74: 409 | D74: C | E74: 29 | F74: Current Lease Obligations Payable | G74: 0 | H74: 0 | I74: 0 | J74: C29
A75: 2015 | B75: 40930 | C75: 409 | D75: C | E75: 30 | F75: TOTAL CURRENT LIABILITIES | G75: 303843.42 | H75: 1128323.07 | I75: 1432166.49 | J75: C30
A76: 2015 | B76: 40931 | C76: 409 | D76: C | E76: 31 | F76: Noncurrent Lease Obligations | G76: 0 | H76: 0 | I76: 0 | J76: C31
A77: 2015 | B77: 40932 | C77: 409 | D77: C | E77: 32 | F77: Long-Term Debt | G77: 0 | H77: 0 | I77: 0 | J77: C32
A78: 2015 | B78: 40933 | C78: 409 | D78: C | E78: 33 | F78: Deferred Revenue | G78: 0 | H78: 0 | I78: 0 | J78: C33
A79: 2015 | B79: 40934 | C79: 409 | D79: C | E79: 34 | F79: TOTAL NONCURRENT LIABILITIES | G79: 0 | H79: 0 | I79: 0 | J79: C34
A80: 2015 | B80: 40935 | C80: 409 | D80: C | E80: 35 | F80: TOTAL LIABILITIES | G80: 303843.42 | H80: 1128323.07 | I80: 1432166.49 | J80: C35
A81: 2015 | B81: 40936 | C81: 409 | D81: C | E81: 36 | F81: Investment in capital assets (net of related debt) | G81: 124854.07 | H81: 0 | I81: 124854.07 | J81: C36
A82: 2015 | B82: 40937 | C82: 409 | D82: C | E82: 37 | F82: Temporarily Restricted | G82: 0 | H82: 877663.37 | I82: 877663.37 | J82: C37
A83: 2015 | B83: 40938 | C83: 409 | D83: C | E83: 38 | F83: Permanently Restricted | G83: 0 | H83: 0 | I83: 0 | J83: C38
A84: 2015 | B84: 40939 | C84: 409 | D84: C | E84: 39 | F84: Unrestricted (non-capital) | G84: 1092374.03 | H84: 1369777.07 | I84: 2462151.1 | J84: C39
A85: 2015 | B85: 40940 | C85: 409 | D85: C | E85: 40 | F85: TOTAL NET ASSETS | G85: 1217228 | H85: 2247440 | I85: 3464668 | J85: C40
A86: 2015 | B86: 40941 | C86: 409 | D86: C | E86: 41 | F86: TOTAL LIABILITIES AND NET ASSETS | G86: 1521071 | H86: 3375763 | I86: 4896834 | J86: C41
A87: 2015 | B87: 4101 | C87: 410 | D87: C | E87: 1 | F87: Cash and Cash Equivalents | G87: 887237 | H87: 1444889 | I87: 2332126 | J87: C1
A88: 2015 | B88: 4102 | C88: 410 | D88: C | E88: 2 | F88: Accounts Receivable net of doubtful accounts | G88: 180814 | H88: 0 | I88: 180814 | J88: C2
A89: 2015 | B89: 4103 | C89: 410 | D89: C | E89: 3 | F89: Grants Receivable - State | G89: 0 | H89: 0 | I89: 0 | J89: C3
A90: 2015 | B90: 4104 | C90: 410 | D90: C | E90: 4 | F90: Grants Receivable - Federal | G90: 0 | H90: 0 | I90: 0 | J90: C4
A91: 2015 | B91: 4105 | C91: 410 | D91: C | E91: 5 | F91: Grants Receivable - Private | G91: 0 | H91: 1512930 | I91: 1512930 | J91: C5
A92: 2015 | B92: 4106 | C92: 410 | D92: C | E92: 6 | F92: Contributions Receivable | G92: 0 | H92: 0 | I92: 0 | J92: C6
A93: 2015 | B93: 4107 | C93: 410 | D93: C | E93: 7 | F93: Due from related parties | G93: -2043000 | H93: 2043000 | I93: 0 | J93: C7
A94: 2015 | B94: 4108 | C94: 410 | D94: C | E94: 8 | F94: Prepaid Expenses / Inventory | G94: 264597 | H94: 0 | I94: 264597 | J94: C8
A95: 2015 | B95: 4109 | C95: 410 | D95: C | E95: 9 | F95: Short-Term Investments | G95: 0 | H95: 0 | I95: 0 | J95: C9
A96: 2015 | B96: 41010 | C96: 410 | D96: C | E96: 10 | F96: Deposit (Security, Other) | G96: 70917 | H96: 37050 | I96: 107967 | J96: C10
A97: 2015 | B97: 41011 | C97: 410 | D97: C | E97: 11 | F97: Restricted Current Assets | G97: 0 | H97: 0 | I97: 0 | J97: C11
A98: 2015 | B98: 41012 | C98: 410 | D98: C | E98: 12 | F98: TOTAL CURRENT ASSETS | G98: -639435 | H98: 5037869 | I98: 4398434 | J98: C12
A99: 2015 | B99: 41013 | C99: 410 | D99: C | E99: 13 | F99: - Land and Buildings | G99: 8151974 | H99: 7184603.34 | I99: 15336577.34 | J99: C13
A100: 2015 | B100: 41014 | C100: 410 | D100: C | E100: 14 | F100: - Building/Leasehold Improvement | G100: 396344 | H100: 0 | I100: 396344 | J100: C14
A101: 2015 | B101: 41015 | C101: 410 | D101: C | E101: 15 | F101: - Furniture and Equipment | G101: 32122 | H101: 0 | I101: 32122 | J101: C15
A102: 2015 | B102: 41016 | C102: 410 | D102: C | E102: 16 | F102: - Less Accumulated Depreciation | G102: -574945 | H102: 0 | I102: -574945 | J102: C16
A103: 2015 | B103: 41017 | C103: 410 | D103: C | E103: 17 | F103: Net Capital Assets | G103: 8005495 | H103: 7184603.34 | I103: 15190098.34 | J103: C17
A104: 2015 | B104: 41018 | C104: 410 | D104: C | E104: 18 | F104: Restricted Noncurrent Assets | G104: 964680 | H104: 344484 | I104: 1309164 | J104: C18
A105: 2015 | B105: 41019 | C105: 410 | D105: C | E105: 19 | F105: Long-Term Investments | G105: 3723495 | H105: 14636398 | I105: 18359893 | J105: C19
A106: 2015 | B106: 41020 | C106: 410 | D106: C | E106: 20 | F106: Building Acquisition / Financing Costs / Deferred Expenses | G106: 0 | H106: 0 | I106: 0 | J106: C20
A107: 2015 | B107: 41021 | C107: 410 | D107: C | E107: 21 | F107: Long-Term Grants / Contributions Receivable | G107: 0 | H107: 1355316 | I107: 1355316 | J107: C21
A108: 2015 | B108: 41022 | C108: 410 | D108: C | E108: 22 | F108: TOTAL NONCURRENT ASSETS | G108: 12693670 | H108: 23520801.34 | I108: 36214471.34 | J108: C22
A109: 2015 | B109: 41023 | C109: 410 | D109: C | E109: 23 | F109: TOTAL ASSETS | G109: 12054235 | H109: 28558670 | I109: 40612905 | J109: C23
A110: 2015 | B110: 41024 | C110: 410 | D110: C | E110: 24 | F110: Accounts Payable | G110: 433933 | H110: 1422645 | I110: 1856578 | J110: C24
A111: 2015 | B111: 41025 | C111: 410 | D111: C | E111: 25 | F111: Accrued Expenses / Accrued Payroll | G111: 609072 | H111: 18773 | I111: 627845 | J111: C25
A112: 2015 | B112: 41026 | C112: 410 | D112: C | E112: 26 | F112: Deferred Revenue | G112: 0 | H112: 0 | I112: 0 | J112: C26
A113: 2015 | B113: 41027 | C113: 410 | D113: C | E113: 27 | F113: Due to related parties | G113: 0 | H113: 0 | I113: 0 | J113: C27
A114: 2015 | B114: 41028 | C114: 410 | D114: C | E114: 28 | F114: Current Debt Payable | G114: 0 | H114: 115813 | I114: 115813 | J114: C28
A115: 2015 | B115: 41029 | C115: 410 | D115: C | E115: 29 | F115: Current Lease Obligations Payable | G115: 128800 | H115: 0 | I115: 128800 | J115: C29
A116: 2015 | B116: 41030 | C116: 410 | D116: C | E116: 30 | F116: TOTAL CURRENT LIABILITIES | G116: 1171805 | H116: 1557231 | I116: 2729036 | J116: C30
A117: 2015 | B117: 41031 | C117: 410 | D117: C | E117: 31 | F117: Noncurrent Lease Obligations | G117: 8352399 | H117: 0 | I117: 8352399 | J117: C31
A118: 2015 | B118: 41032 | C118: 410 | D118: C | E118: 32 | F118: Long-Term Debt | G118: 3723495 | H118: 16670929 | I118: 20394424 | J118: C32
A119: 2015 | B119: 41033 | C119: 410 | D119: C | E119: 33 | F119: Deferred Revenue | G119: 0 | H119: 0 | I119: 0 | J119: C33
A120: 2015 | B120: 41034 | C120: 410 | D120: C | E120: 34 | F120: TOTAL NONCURRENT LIABILITIES | G120: 12075894 | H120: 16670929 | I120: 28746823 | J120: C34
A121: 2015 | B121: 41035 | C121: 410 | D121: C | E121: 35 | F121: TOTAL LIABILITIES | G121: 13247699 | H121: 18228160 | I121: 31475859 | J121: C35
A122: 2015 | B122: 41036 | C122: 410 | D122: C | E122: 36 | F122: Investment in capital assets (net of related debt) | G122: -346802 | H122: 4911366 | I122: 4564564 | J122: C36
A123: 2015 | B123: 41037 | C123: 410 | D123: C | E123: 37 | F123: Temporarily Restricted | G123: 0 | H123: 3077466 | I123: 3077466 | J123: C37
A124: 2015 | B124: 41038 | C124: 410 | D124: C | E124: 38 | F124: Permanently Restricted | G124: 0 | H124: 0 | I124: 0 | J124: C38
A125: 2015 | B125: 41039 | C125: 410 | D125: C | E125: 39 | F125: Unrestricted (non-capital) | G125: -846662 | H125: 2341678 | I125: 1495016 | J125: C39
A126: 2015 | B126: 41040 | C126: 410 | D126: C | E126: 40 | F126: TOTAL NET ASSETS | G126: -1193464 | H126: 10330510 | I126: 9137046 | J126: C40
A127: 2015 | B127: 41041 | C127: 410 | D127: =VLOOKUP(C127, TYPE, 3, FALSE) -> C | E127: 41 | F127: TOTAL LIABILITIES AND NET ASSETS | G127: 12054235 | H127: 28558670 | I127: 40612905 | J127: =D127&E127 -> C41
A128: 2015 | B128: =C128&E128 -> 4111 | C128: 411 | D128: HM | E128: 1 | F128: Cash and Cash Equivalents | G128: 366818 | H128: 56391 | I128: 423209 | J128: HM1
A129: 2015 | B129: 4112 | C129: 411 | D129: HM | E129: 2 | F129: Accounts Receivable net of doubtful accounts | G129: 189320 | H129: 0 | I129: 189320 | J129: HM2
A130: 2015 | B130: 4113 | C130: 411 | D130: HM | E130: 3 | F130: Grants Receivable - State | G130: 0 | H130: 0 | I130: 0 | J130: HM3
A131: 2015 | B131: 4114 | C131: 411 | D131: HM | E131: 4 | F131: Grants Receivable - Federal | G131: 0 | H131: 0 | I131: 0 | J131: HM4
A132: 2015 | B132: 4115 | C132: 411 | D132: HM | E132: 5 | F132: Grants Receivable - Private | G132: 0 | H132: 0 | I132: 0 | J132: HM5
A133: 2015 | B133: 4116 | C133: 411 | D133: HM | E133: 6 | F133: Contributions Receivable | G133: 0 | H133: 0 | I133: 0 | J133: HM6
A134: 2015 | B134: 4117 | C134: 411 | D134: HM | E134: 7 | F134: Due from related parties | G134: 7132 | H134: -7132 | I134: 0 | J134: HM7
A135: 2015 | B135: 4118 | C135: 411 | D135: HM | E135: 8 | F135: Prepaid Expenses / Inventory | G135: 8459 | H135: 0 | I135: 8459 | J135: HM8
A136: 2015 | B136: 4119 | C136: 411 | D136: HM | E136: 9 | F136: Short-Term Investments | G136: 0 | H136: 0 | I136: 0 | J136: HM9
A137: 2015 | B137: 41110 | C137: 411 | D137: HM | E137: 10 | F137: Deposit (Security, Other) | G137: 0 | H137: 0 | I137: 0 | J137: HM10
A138: 2015 | B138: 41111 | C138: 411 | D138: HM | E138: 11 | F138: Restricted Current Assets | G138: 0 | H138: 0 | I138: 0 | J138: HM11
A139: 2015 | B139: 41112 | C139: 411 | D139: HM | E139: 12 | F139: TOTAL CURRENT ASSETS | G139: 571729 | H139: 49259 | I139: 620988 | J139: HM12
A140: 2015 | B140: 41113 | C140: 411 | D140: HM | E140: 13 | F140: - Land and Buildings | G140: 0 | H140: 0 | I140: 0 | J140: HM13
A141: 2015 | B141: 41114 | C141: 411 | D141: HM | E141: 14 | F141: - Building/Leasehold Improvement | G141: 0 | H141: 0 | I141: 0 | J141: HM14
A142: 2015 | B142: 41115 | C142: 411 | D142: HM | E142: 15 | F142: - Furniture and Equipment | G142: 22665 | H142: 0 | I142: 22665 | J142: HM15
A143: 2015 | B143: 41116 | C143: 411 | D143: HM | E143: 16 | F143: - Less Accumulated Depreciation | G143: -8771 | H143: 0 | I143: -8771 | J143: HM16
A144: 2015 | B144: 41117 | C144: 411 | D144: HM | E144: 17 | F144: Net Capital Assets | G144: 13894 | H144: 0 | I144: 13894 | J144: HM17
A145: 2015 | B145: 41118 | C145: 411 | D145: HM | E145: 18 | F145: Restricted Noncurrent Assets | G145: 0 | H145: 0 | I145: 0 | J145: HM18
A146: 2015 | B146: 41119 | C146: 411 | D146: HM | E146: 19 | F146: Long-Term Investments | G146: 0 | H146: 0 | I146: 0 | J146: HM19
A147: 2015 | B147: 41120 | C147: 411 | D147: HM | E147: 20 | F147: Building Acquisition / Financing Costs / Deferred Expenses | G147: 0 | H147: 0 | I147: 0 | J147: HM20
A148: 2015 | B148: 41121 | C148: 411 | D148: HM | E148: 21 | F148: Long-Term Grants / Contributions Receivable | G148: 0 | H148: 0 | I148: 0 | J148: HM21
A149: 2015 | B149: 41122 | C149: 411 | D149: HM | E149: 22 | F149: TOTAL NONCURRENT ASSETS | G149: 13894 | H149: 0 | I149: 13894 | J149: HM22
A150: 2015 | B150: 41123 | C150: 411 | D150: HM | E150: 23 | F150: TOTAL ASSETS | G150: 585623 | H150: 49259 | I150: 634882 | J150: HM23
A151: 2015 | B151: 41124 | C151: 411 | D151: HM | E151: 24 | F151: Accounts Payable | G151: 501267 | H151: 0 | I151: 501267 | J151: HM24
A152: 2015 | B152: 41125 | C152: 411 | D152: HM | E152: 25 | F152: Accrued Expenses / Accrued Payroll | G152: 19500 | H152: 0 | I152: 19500 | J152: HM25
A153: 2015 | B153: 41126 | C153: 411 | D153: HM | E153: 26 | F153: Deferred Revenue | G153: 0 | H153: 0 | I153: 0 | J153: HM26
A154: 2015 | B154: 41127 | C154: 411 | D154: HM | E154: 27 | F154: Due to related parties | G154: 0 | H154: 0 | I154: 0 | J154: HM27
A155: 2015 | B155: 41128 | C155: 411 | D155: HM | E155: 28 | F155: Current Debt Payable | G155: 0 | H155: 0 | I155: 0 | J155: HM28
A156: 2015 | B156: 41129 | C156: 411 | D156: HM | E156: 29 | F156: Current Lease Obligations Payable | G156: 0 | H156: 0 | I156: 0 | J156: HM29
A157: 2015 | B157: 41130 | C157: 411 | D157: HM | E157: 30 | F157: TOTAL CURRENT LIABILITIES | G157: 520767 | H157: 0 | I157: 520767 | J157: HM30
A158: 2015 | B158: 41131 | C158: 411 | D158: HM | E158: 31 | F158: Noncurrent Lease Obligations | G158: 0 | H158: 0 | I158: 0 | J158: HM31
A159: 2015 | B159: 41132 | C159: 411 | D159: HM | E159: 32 | F159: Long-Term Debt | G159: 0 | H159: 0 | I159: 0 | J159: HM32
A160: 2015 | B160: 41133 | C160: 411 | D160: HM | E160: 33 | F160: Deferred Revenue | G160: 0 | H160: 0 | I160: 0 | J160: HM33
A161: 2015 | B161: 41134 | C161: 411 | D161: HM | E161: 34 | F161: TOTAL NONCURRENT LIABILITIES | G161: 0 | H161: 0 | I161: 0 | J161: HM34
A162: 2015 | B162: 41135 | C162: 411 | D162: HM | E162: 35 | F162: TOTAL LIABILITIES | G162: 520767 | H162: 0 | I162: 520767 | J162: HM35
A163: 2015 | B163: 41136 | C163: 411 | D163: HM | E163: 36 | F163: Investment in capital assets (net of related debt) | G163: 13894 | H163: 0 | I163: 13894 | J163: HM36
A164: 2015 | B164: 41137 | C164: 411 | D164: HM | E164: 37 | F164: Temporarily Restricted | G164: 18685 | H164: 18480 | I164: 37165 | J164: HM37
A165: 2015 | B165: 41138 | C165: 411 | D165: HM | E165: 38 | F165: Permanently Restricted | G165: 0 | H165: 0 | I165: 0 | J165: HM38
A166: 2015 | B166: 41139 | C166: 411 | D166: HM | E166: 39 | F166: Unrestricted (non-capital) | G166: 32277 | H166: 30779 | I166: 63056 | J166: HM39
A167: 2015 | B167: 41140 | C167: 411 | D167: HM | E167: 40 | F167: TOTAL NET ASSETS | G167: 64856 | H167: 49259 | I167: 114115 | J167: HM40
A168: 2015 | B168: 41141 | C168: 411 | D168: HM | E168: 41 | F168: TOTAL LIABILITIES AND NET ASSETS | G168: 585623 | H168: 49259 | I168: 634882 | J168: HM41
A169: 2015 | B169: 4121 | C169: 412 | D169: C | E169: 1 | F169: Cash and Cash Equivalents | G169: 3258978 | H169: 193047 | I169: 3452025 | J169: C1
A170: 2015 | B170: 4122 | C170: 412 | D170: C | E170: 2 | F170: Accounts Receivable net of doubtful accounts | G170: 0 | H170: 0 | I170: 0 | J170: C2
A171: 2015 | B171: 4123 | C171: 412 | D171: C | E171: 3 | F171: Grants Receivable - State | G171: 0 | H171: 0 | I171: 0 | J171: C3
A172: 2015 | B172: 4124 | C172: 412 | D172: C | E172: 4 | F172: Grants Receivable - Federal | G172: 39679 | H172: 0 | I172: 39679 | J172: C4
A173: 2015 | B173: 4125 | C173: 412 | D173: C | E173: 5 | F173: Grants Receivable - Private | G173: 0 | H173: 0 | I173: 0 | J173: C5
A174: 2015 | B174: 4126 | C174: 412 | D174: C | E174: 6 | F174: Contributions Receivable | G174: 0 | H174: 0 | I174: 0 | J174: C6
A175: 2015 | B175: 4127 | C175: 412 | D175: C | E175: 7 | F175: Due from related parties | G175: 0 | H175: 0 | I175: 0 | J175: C7
A176: 2015 | B176: 4128 | C176: 412 | D176: C | E176: 8 | F176: Prepaid Expenses / Inventory | G176: 20595 | H176: 0 | I176: 20595 | J176: C8
A177: 2015 | B177: 4129 | C177: 412 | D177: C | E177: 9 | F177: Short-Term Investments | G177: 0 | H177: 14057 | I177: 14057 | J177: C9
A178: 2015 | B178: 41210 | C178: 412 | D178: C | E178: 10 | F178: Deposit (Security, Other) | G178: 19000 | H178: 0 | I178: 19000 | J178: C10
A179: 2015 | B179: 41211 | C179: 412 | D179: C | E179: 11 | F179: Restricted Current Assets | G179: 0 | H179: 0 | I179: 0 | J179: C11
A180: 2015 | B180: 41212 | C180: 412 | D180: C | E180: 12 | F180: TOTAL CURRENT ASSETS | G180: 3338252 | H180: 207104 | I180: 3545356 | J180: C12
A181: 2015 | B181: 41213 | C181: 412 | D181: C | E181: 13 | F181: - Land and Buildings | G181: 5000000 | H181: 0 | I181: 5000000 | J181: C13
A182: 2015 | B182: 41214 | C182: 412 | D182: C | E182: 14 | F182: - Building/Leasehold Improvement | G182: 10149957 | H182: 0 | I182: 10149957 | J182: C14
A183: 2015 | B183: 41215 | C183: 412 | D183: C | E183: 15 | F183: - Furniture and Equipment | G183: 1623514 | H183: 0 | I183: 1623514 | J183: C15
A184: 2015 | B184: 41216 | C184: 412 | D184: C | E184: 16 | F184: - Less Accumulated Depreciation | G184: -5078747 | H184: 0 | I184: -5078747 | J184: C16
A185: 2015 | B185: 41217 | C185: 412 | D185: =VLOOKUP(C185, TYPE, 3, FALSE) -> C | E185: 17 | F185: Net Capital Assets | G185: 11694724 | H185: 0 | I185: 11694724 | J185: =D185&E185 -> C17
A186: 2015 | B186: =C186&E186 -> 41218 | C186: 412 | D186: C | E186: 18 | F186: Restricted Noncurrent Assets | G186: 6876165 | H186: 0 | I186: 6876165 | J186: C18
A187: 2015 | B187: 41219 | C187: 412 | D187: C | E187: 19 | F187: Long-Term Investments | G187: 0 | H187: 0 | I187: 0 | J187: C19
A188: 2015 | B188: 41220 | C188: 412 | D188: C | E188: 20 | F188: Building Acquisition / Financing Costs / Deferred Expenses | G188: 1251343 | H188: 0 | I188: 1251343 | J188: C20
A189: 2015 | B189: 41221 | C189: 412 | D189: C | E189: 21 | F189: Long-Term Grants / Contributions Receivable | G189: 0 | H189: 0 | I189: 0 | J189: C21
A190: 2015 | B190: 41222 | C190: 412 | D190: C | E190: 22 | F190: TOTAL NONCURRENT ASSETS | G190: 19822232 | H190: 0 | I190: 19822232 | J190: C22
A191: 2015 | B191: 41223 | C191: 412 | D191: C | E191: 23 | F191: TOTAL ASSETS | G191: 23160484 | H191: 207104 | I191: 23367588 | J191: C23
A192: 2015 | B192: 41224 | C192: 412 | D192: C | E192: 24 | F192: Accounts Payable | G192: 86300 | H192: 0 | I192: 86300 | J192: C24
A193: 2015 | B193: 41225 | C193: 412 | D193: C | E193: 25 | F193: Accrued Expenses / Accrued Payroll | G193: 504361 | H193: 0 | I193: 504361 | J193: C25
A194: 2015 | B194: 41226 | C194: 412 | D194: C | E194: 26 | F194: Deferred Revenue | G194: 0 | H194: 0 | I194: 0 | J194: C26
A195: 2015 | B195: 41227 | C195: 412 | D195: C | E195: 27 | F195: Due to related parties | G195: 0 | H195: 0 | I195: 0 | J195: C27
A196: 2015 | B196: 41228 | C196: 412 | D196: C | E196: 28 | F196: Current Debt Payable | G196: 330000 | H196: 0 | I196: 330000 | J196: C28
A197: 2015 | B197: 41229 | C197: 412 | D197: C | E197: 29 | F197: Current Lease Obligations Payable | G197: 0 | H197: 0 | I197: 0 | J197: C29
A198: 2015 | B198: 41230 | C198: 412 | D198: C | E198: 30 | F198: TOTAL CURRENT LIABILITIES | G198: 920661 | H198: 0 | I198: 920661 | J198: C30
A199: 2015 | B199: 41231 | C199: 412 | D199: C | E199: 31 | F199: Noncurrent Lease Obligations | G199: 0 | H199: 0 | I199: 0 | J199: C31
A200: 2015 | B200: 41232 | C200: 412 | D200: C | E200: 32 | F200: Long-Term Debt | G200: 15150000 | H200: 0 | I200: 15150000 | J200: C32
A201: 2015 | B201: 41233 | C201: 412 | D201: C | E201: 33 | F201: Deferred Revenue | G201: 0 | H201: 0 | I201: 0 | J201: C33
A202: 2015 | B202: 41234 | C202: 412 | D202: C | E202: 34 | F202: TOTAL NONCURRENT LIABILITIES | G202: 15150000 | H202: 0 | I202: 15150000 | J202: C34
... 3164 more rows

Sheet INC15 (hidden)
B3: 1 | C3: 2 | D3: 3 | E3: 4 | F3: 5 | G3: 6 | H3: 7 | I3: 8
A4: FY | B4: vlookup | C4: cha_code | D4: cha_type | E4: income_id | F4: Line_Desc | G4: income_sch | H4: income_found | I4: income_total
A5: 2015 | B5: =C5&E5 -> 4071 | C5: 407 | D5: =VLOOKUP(C5, TYPE, 3, FALSE) -> HM | E5: 1 | F5: Tuition | G5: 3015752.46 | H5: 0 | I5: 3015752.46 | J5: =D5&E5 -> HM1
A6: 2015 | B6: =C6&E6 -> 4072a | C6: 407 | D6: HM | E6: 2a | F6: Grants - State - passed through ESE | G6: 200 | H6: 0 | I6: 200 | J6: HM2a
A7: 2015 | B7: 4072b | C7: 407 | D7: HM | E7: 2b | F7: Grants - State - other non-ESE pass-through | G7: 0 | H7: 0 | I7: 0 | J7: HM2b
A8: 2015 | B8: 4073 | C8: 407 | D8: HM | E8: 3 | F8: Grants - Federal - Passed through ESE | G8: 195024 | H8: 0 | I8: 195024 | J8: HM3
A9: 2015 | B9: 4074 | C9: 407 | D9: HM | E9: 4 | F9: Grants - Federal - Direct or other pass-through | G9: 165000 | H9: 0 | I9: 165000 | J9: HM4
A10: 2015 | B10: 4075a | C10: 407 | D10: HM | E10: 5a | F10: Grants - Private (restricted) | G10: 0 | H10: 0 | I10: 0 | J10: HM5a
A11: 2015 | B11: 4075b | C11: 407 | D11: HM | E11: 5b | F11: Grants - Private (unrestricted) | G11: 4340 | H11: 0 | I11: 4340 | J11: HM5b
A12: 2015 | B12: 4076 | C12: 407 | D12: HM | E12: 6 | F12: Nutrition Funding - State | G12: 0 | H12: 0 | I12: 0 | J12: HM6
A13: 2015 | B13: 4077 | C13: 407 | D13: HM | E13: 7 | F13: Nutrition Funding - Federal | G13: 0 | H13: 0 | I13: 0 | J13: HM7
A14: 2015 | B14: 4078 | C14: 407 | D14: HM | E14: 8 | F14: Nutrition Funding - Fees | G14: 0 | H14: 0 | I14: 0 | J14: HM8
A15: 2015 | B15: 4079 | C15: 407 | D15: HM | E15: 9 | F15: Other Program / Student Activity Fees | G15: 6382 | H15: 0 | I15: 6382 | J15: HM9
A16: 2015 | B16: 40710 | C16: 407 | D16: HM | E16: 10 | F16: Regional Transportation Aid | G16: 0 | H16: 0 | I16: 0 | J16: HM10
A17: 2015 | B17: 40711 | C17: 407 | D17: HM | E17: 11 | F17: Medicaid Reimbursements | G17: 0 | H17: 0 | I17: 0 | J17: HM11
A18: 2015 | B18: 40712 | C18: 407 | D18: HM | E18: 12 | F18: Circuit Breaker Reimbursements | G18: 0 | H18: 0 | I18: 0 | J18: HM12
A19: 2015 | B19: 40713a | C19: 407 | D19: HM | E19: 13a | F19: Contributions, in-kind, host district | G19: 0 | H19: 0 | I19: 0 | J19: HM13a
A20: 2015 | B20: 40713b | C20: 407 | D20: HM | E20: 13b | F20: Contributions, in-kind, other | G20: 824642.53 | H20: 0 | I20: 824642.53 | J20: HM13b
A21: 2015 | B21: 40714 | C21: 407 | D21: HM | E21: 14 | F21: Contributions, from Component Unit (restricted) | G21: 0 | H21: 0 | I21: 0 | J21: HM14
A22: 2015 | B22: 40714b | C22: 407 | D22: HM | E22: 14b | F22: Contributions, from Component Unit (unrestricted) | G22: 0 | H22: 0 | I22: 0 | J22: HM14b
A23: 2015 | B23: 40715 | C23: 407 | D23: HM | E23: 15 | F23: Contributions / Fundraising (restricted) | G23: 0 | H23: 0 | I23: 0 | J23: HM15
A24: 2015 | B24: 40715b | C24: 407 | D24: HM | E24: 15b | F24: Contributions / Fundraising (unrestricted) | G24: 0 | H24: 0 | I24: 0 | J24: HM15b
A25: 2015 | B25: 40716 | C25: 407 | D25: HM | E25: 16 | F25: Interest / Investment Income (restricted) | G25: 0 | H25: 0 | I25: 0 | J25: HM16
A26: 2015 | B26: 40716a | C26: 407 | D26: HM | E26: 16a | F26: Interest / Investment Income (unrestricted) | G26: 0 | H26: 0 | I26: 0 | J26: HM16a
A27: 2015 | B27: 40717 | C27: 407 | D27: HM | E27: 17 | F27: Rental Income | G27: 0 | H27: 0 | I27: 0 | J27: HM17
A28: 2015 | B28: 40718 | C28: 407 | D28: HM | E28: 18 | F28: Loan Forgiveness or Other Reimbursement | G28: 0 | H28: 0 | I28: 0 | J28: HM18
A29: 2015 | B29: 40719 | C29: 407 | D29: HM | E29: 19 | F29: Miscellaneous Income | G29: 0 | H29: 0 | I29: 0 | J29: HM19
A30: 2015 | B30: 40720 | C30: 407 | D30: HM | E30: 20 | F30: TOTAL REVENUES | G30: 4211340.99 | H30: 0 | I30: 4211340.99 | J30: HM20
A31: 2015 | B31: 40721 | C31: 407 | D31: HM | E31: 21 | F31: Administration | G31: 630301.09 | H31: 0 | I31: 630301.09 | J31: HM21
A32: 2015 | B32: 40722 | C32: 407 | D32: HM | E32: 22 | F32: Instructional Services | G32: 2257838.69 | H32: 0 | I32: 2257838.69 | J32: HM22
A33: 2015 | B33: 40723 | C33: 407 | D33: HM | E33: 23 | F33: Pupil Services | G33: 621663 | H33: 0 | I33: 621663 | J33: HM23
A34: 2015 | B34: 40724 | C34: 407 | D34: HM | E34: 24 | F34: Operation & Maintenance of Plant | G34: 89615.07 | H34: 0 | I34: 89615.07 | J34: HM24
A35: 2015 | B35: 40725 | C35: 407 | D35: HM | E35: 25 | F35: Benefits and Other Fixed Charges | G35: 604368.13 | H35: 0 | I35: 604368.13 | J35: HM25
A36: 2015 | B36: 40726 | C36: 407 | D36: HM | E36: 26 | F36: Community Services | G36: 0 | H36: 0 | I36: 0 | J36: HM26
A37: 2015 | B37: 40727 | C37: 407 | D37: HM | E37: 27 | F37: Non-Operating Financing Expenses | G37: 5942 | H37: 0 | I37: 5942 | J37: HM27
A38: 2015 | B38: 40728 | C38: 407 | D38: HM | E38: 28 | F38: Component Unit Expenses | G38: 0 | H38: 0 | I38: 0 | J38: HM28
A39: 2015 | B39: 40729 | C39: 407 | D39: HM | E39: 29 | F39: Contributions to School | G39: 0 | H39: 0 | I39: 0 | J39: HM29
A40: 2015 | B40: 40730 | C40: 407 | D40: HM | E40: 30 | F40: TOTAL EXPENSES | G40: 4209727.98 | H40: 0 | I40: 4209727.98 | J40: HM30
A41: 2015 | B41: 40731 | C41: 407 | D41: HM | E41: 31 | F41: TOTAL GAIN/(LOSS) | G41: 1613.01 | H41: 0 | I41: 1613.01 | J41: HM31
A42: 2015 | B42: 40732 | C42: 407 | D42: HM | E42: 32 | F42: Gain/Loss on Sale of Asset or Lease Transaction | G42: 0 | H42: 0 | I42: 0 | J42: HM32
A43: 2015 | B43: 40733 | C43: 407 | D43: HM | E43: 33 | F43: Other Gain/Loss | G43: 0 | H43: 0 | I43: 0 | J43: HM33
A44: 2015 | B44: 40734 | C44: 407 | D44: HM | E44: 34 | F44: TOTAL CHANGES IN NET ASSETS: | G44: 1613.01 | H44: 0 | I44: 1613.01 | J44: HM34
A45: 2015 | B45: 40735 | C45: 407 | D45: HM | E45: 35 | F45: NET ASSETS AT BEGINNING OF YEAR | G45: 48576 | H45: 0 | I45: 48576 | J45: HM35
A46: 2015 | B46: 40736 | C46: 407 | D46: HM | E46: 36 | F46: NET ASSETS AT END OF YEAR | G46: 50189 | H46: 0 | I46: 50189 | J46: HM36
A47: 2015 | B47: 4091 | C47: 409 | D47: C | E47: 1 | F47: Tuition | G47: 2854424 | H47: 0 | I47: 2854424 | J47: C1
A48: 2015 | B48: 4092a | C48: 409 | D48: C | E48: 2a | F48: Grants - State - passed through ESE | G48: 0 | H48: 0 | I48: 0 | J48: C2a
A49: 2015 | B49: 4092b | C49: 409 | D49: C | E49: 2b | F49: Grants - State - other non-ESE pass-through | G49: 0 | H49: 0 | I49: 0 | J49: C2b
A50: 2015 | B50: 4093 | C50: 409 | D50: C | E50: 3 | F50: Grants - Federal - Passed through ESE | G50: 198547 | H50: 0 | I50: 198547 | J50: C3
A51: 2015 | B51: 4094 | C51: 409 | D51: C | E51: 4 | F51: Grants - Federal - Direct or other pass-through | G51: 0 | H51: 0 | I51: 0 | J51: C4
A52: 2015 | B52: 4095a | C52: 409 | D52: C | E52: 5a | F52: Grants - Private (restricted) | G52: 118100 | H52: 347000 | I52: 465100 | J52: C5a
A53: 2015 | B53: 4095b | C53: 409 | D53: C | E53: 5b | F53: Grants - Private (unrestricted) | G53: 64000 | H53: 22350 | I53: 86350 | J53: C5b
A54: 2015 | B54: 4096 | C54: 409 | D54: C | E54: 6 | F54: Nutrition Funding - State | G54: 3584.12 | H54: 0 | I54: 3584.12 | J54: C6
A55: 2015 | B55: 4097 | C55: 409 | D55: C | E55: 7 | F55: Nutrition Funding - Federal | G55: 139995.68 | H55: 0 | I55: 139995.68 | J55: C7
A56: 2015 | B56: 4098 | C56: 409 | D56: C | E56: 8 | F56: Nutrition Funding - Fees | G56: 23.95 | H56: 0 | I56: 23.95 | J56: C8
A57: 2015 | B57: 4099 | C57: 409 | D57: C | E57: 9 | F57: Other Program / Student Activity Fees | G57: 1185.5 | H57: 0 | I57: 1185.5 | J57: C9
A58: 2015 | B58: 40910 | C58: 409 | D58: C | E58: 10 | F58: Regional Transportation Aid | G58: 0 | H58: 0 | I58: 0 | J58: C10
A59: 2015 | B59: 40911 | C59: 409 | D59: C | E59: 11 | F59: Medicaid Reimbursements | G59: 27944.87 | H59: 0 | I59: 27944.87 | J59: C11
A60: 2015 | B60: 40912 | C60: 409 | D60: C | E60: 12 | F60: Circuit Breaker Reimbursements | G60: 0 | H60: 0 | I60: 0 | J60: C12
A61: 2015 | B61: 40913a | C61: 409 | D61: C | E61: 13a | F61: Contributions, in-kind, host district | G61: 0 | H61: 0 | I61: 0 | J61: C13a
A62: 2015 | B62: 40913b | C62: 409 | D62: C | E62: 13b | F62: Contributions, in-kind, other | G62: 508255 | H62: 0 | I62: 508255 | J62: C13b
A63: 2015 | B63: 40914 | C63: 409 | D63: C | E63: 14 | F63: Contributions, from Component Unit (restricted) | G63: 0 | H63: 0 | I63: 0 | J63: C14
A64: 2015 | B64: 40914b | C64: 409 | D64: C | E64: 14b | F64: Contributions, from Component Unit (unrestricted) | G64: 0 | H64: 0 | I64: 0 | J64: C14b
A65: 2015 | B65: 40915 | C65: 409 | D65: C | E65: 15 | F65: Contributions / Fundraising (restricted) | G65: 0 | H65: 2706678.58 | I65: 2706678.58 | J65: C15
A66: 2015 | B66: 40915b | C66: 409 | D66: C | E66: 15b | F66: Contributions / Fundraising (unrestricted) | G66: 190806.89 | H66: 31964.42 | I66: 222771.31 | J66: C15b
A67: 2015 | B67: 40916 | C67: 409 | D67: C | E67: 16 | F67: Interest / Investment Income (restricted) | G67: 0 | H67: 0 | I67: 0 | J67: C16
A68: 2015 | B68: 40916a | C68: 409 | D68: =VLOOKUP(C68, TYPE, 3, FALSE) -> C | E68: 16a | F68: Interest / Investment Income (unrestricted) | G68: 865.43 | H68: 570.58 | I68: 1436.01 | J68: =D68&E68 -> C16a
A69: 2015 | B69: =C69&E69 -> 40917 | C69: 409 | D69: C | E69: 17 | F69: Rental Income | G69: 0 | H69: 0 | I69: 0 | J69: C17
A70: 2015 | B70: 40918 | C70: 409 | D70: C | E70: 18 | F70: Loan Forgiveness or Other Reimbursement | G70: 0 | H70: 0 | I70: 0 | J70: C18
A71: 2015 | B71: 40919 | C71: 409 | D71: C | E71: 19 | F71: Miscellaneous Income | G71: 0 | H71: 0 | I71: 0 | J71: C19
A72: 2015 | B72: 40920 | C72: 409 | D72: C | E72: 20 | F72: TOTAL REVENUES | G72: 4107732.44 | H72: 3108563.58 | I72: 7216296.02 | J72: C20
A73: 2015 | B73: 40921 | C73: 409 | D73: C | E73: 21 | F73: Administration | G73: 441459.81 | H73: 0 | I73: 441459.81 | J73: C21
A74: 2015 | B74: 40922 | C74: 409 | D74: C | E74: 22 | F74: Instructional Services | G74: 1824025.12 | H74: 0 | I74: 1824025.12 | J74: C22
A75: 2015 | B75: 40923 | C75: 409 | D75: C | E75: 23 | F75: Pupil Services | G75: 783730.66 | H75: 0 | I75: 783730.66 | J75: C23
A76: 2015 | B76: 40924 | C76: 409 | D76: C | E76: 24 | F76: Operation & Maintenance of Plant | G76: 160466.71 | H76: 0 | I76: 160466.71 | J76: C24
A77: 2015 | B77: 40925 | C77: 409 | D77: C | E77: 25 | F77: Benefits and Other Fixed Charges | G77: 384257.93 | H77: 0 | I77: 384257.93 | J77: C25
A78: 2015 | B78: 40926 | C78: 409 | D78: C | E78: 26 | F78: Community Services | G78: 9027.94 | H78: 0 | I78: 9027.94 | J78: C26
A79: 2015 | B79: 40927 | C79: 409 | D79: C | E79: 27 | F79: Non-Operating Financing Expenses | G79: 123546.32 | H79: 0 | I79: 123546.32 | J79: C27
A80: 2015 | B80: 40928 | C80: 409 | D80: C | E80: 28 | F80: Component Unit Expenses | G80: 0 | H80: 1006440.95 | I80: 1006440.95 | J80: C28
A81: 2015 | B81: 40929 | C81: 409 | D81: C | E81: 29 | F81: Contributions to School | G81: 0 | H81: 47000 | I81: 47000 | J81: C29
A82: 2015 | B82: 40930 | C82: 409 | D82: C | E82: 30 | F82: TOTAL EXPENSES | G82: 3726514.49 | H82: 1053440.95 | I82: 4779955.44 | J82: C30
A83: 2015 | B83: 40931 | C83: 409 | D83: C | E83: 31 | F83: TOTAL GAIN/(LOSS) | G83: 381217.95 | H83: 2055122.63 | I83: 2436340.58 | J83: C31
A84: 2015 | B84: 40932 | C84: 409 | D84: C | E84: 32 | F84: Gain/Loss on Sale of Asset or Lease Transaction | G84: 0 | H84: 0 | I84: 0 | J84: C32
A85: 2015 | B85: 40933 | C85: 409 | D85: C | E85: 33 | F85: Other Gain/Loss | G85: 0 | H85: 90 | I85: 90 | J85: C33
A86: 2015 | B86: 40934 | C86: 409 | D86: C | E86: 34 | F86: TOTAL CHANGES IN NET ASSETS: | G86: 381217.95 | H86: 2055212.63 | I86: 2436430.58 | J86: C34
A87: 2015 | B87: 40935 | C87: 409 | D87: C | E87: 35 | F87: NET ASSETS AT BEGINNING OF YEAR | G87: 836011 | H87: 192227 | I87: 1028238 | J87: C35
A88: 2015 | B88: 40936 | C88: 409 | D88: C | E88: 36 | F88: NET ASSETS AT END OF YEAR | G88: 1217229 | H88: 2247440 | I88: 3464669 | J88: C36
A89: 2015 | B89: 4101 | C89: 410 | D89: C | E89: 1 | F89: Tuition | G89: 8259632 | H89: 0 | I89: 8259632 | J89: C1
A90: 2015 | B90: 4102a | C90: 410 | D90: C | E90: 2a | F90: Grants - State - passed through ESE | G90: 0 | H90: 0 | I90: 0 | J90: C2a
A91: 2015 | B91: 4102b | C91: 410 | D91: C | E91: 2b | F91: Grants - State - other non-ESE pass-through | G91: 0 | H91: 0 | I91: 0 | J91: C2b
A92: 2015 | B92: 4103 | C92: 410 | D92: C | E92: 3 | F92: Grants - Federal - Passed through ESE | G92: 521144 | H92: 0 | I92: 521144 | J92: C3
A93: 2015 | B93: 4104 | C93: 410 | D93: C | E93: 4 | F93: Grants - Federal - Direct or other pass-through | G93: 22507 | H93: 0 | I93: 22507 | J93: C4
A94: 2015 | B94: 4105a | C94: 410 | D94: C | E94: 5a | F94: Grants - Private (restricted) | G94: 933750 | H94: 3093366 | I94: 4027116 | J94: C5a
A95: 2015 | B95: 4105b | C95: 410 | D95: C | E95: 5b | F95: Grants - Private (unrestricted) | G95: 0 | H95: 0 | I95: 0 | J95: C5b
A96: 2015 | B96: 4106 | C96: 410 | D96: C | E96: 6 | F96: Nutrition Funding - State | G96: 17433 | H96: 0 | I96: 17433 | J96: C6
A97: 2015 | B97: 4107 | C97: 410 | D97: C | E97: 7 | F97: Nutrition Funding - Federal | G97: 280603 | H97: 0 | I97: 280603 | J97: C7
A98: 2015 | B98: 4108 | C98: 410 | D98: C | E98: 8 | F98: Nutrition Funding - Fees | G98: 23163 | H98: 0 | I98: 23163 | J98: C8
A99: 2015 | B99: 4109 | C99: 410 | D99: C | E99: 9 | F99: Other Program / Student Activity Fees | G99: 0 | H99: 0 | I99: 0 | J99: C9
A100: 2015 | B100: 41010 | C100: 410 | D100: C | E100: 10 | F100: Regional Transportation Aid | G100: 0 | H100: 0 | I100: 0 | J100: C10
A101: 2015 | B101: 41011 | C101: 410 | D101: C | E101: 11 | F101: Medicaid Reimbursements | G101: 37504 | H101: 0 | I101: 37504 | J101: C11
A102: 2015 | B102: 41012 | C102: 410 | D102: C | E102: 12 | F102: Circuit Breaker Reimbursements | G102: 7443 | H102: 0 | I102: 7443 | J102: C12
A103: 2015 | B103: 41013a | C103: 410 | D103: C | E103: 13a | F103: Contributions, in-kind, host district | G103: 126032 | H103: 0 | I103: 126032 | J103: C13a
A104: 2015 | B104: 41013b | C104: 410 | D104: C | E104: 13b | F104: Contributions, in-kind, other | G104: 746598 | H104: 0 | I104: 746598 | J104: C13b
A105: 2015 | B105: 41014 | C105: 410 | D105: C | E105: 14 | F105: Contributions, from Component Unit (restricted) | G105: 0 | H105: 0 | I105: 0 | J105: C14
A106: 2015 | B106: 41014b | C106: 410 | D106: C | E106: 14b | F106: Contributions, from Component Unit (unrestricted) | G106: 197241 | H106: 0 | I106: 197241 | J106: C14b
A107: 2015 | B107: 41015 | C107: 410 | D107: C | E107: 15 | F107: Contributions / Fundraising (restricted) | G107: 0 | H107: 0 | I107: 0 | J107: C15
A108: 2015 | B108: 41015b | C108: 410 | D108: C | E108: 15b | F108: Contributions / Fundraising (unrestricted) | G108: 322 | H108: 0 | I108: 322 | J108: C15b
A109: 2015 | B109: 41016 | C109: 410 | D109: C | E109: 16 | F109: Interest / Investment Income (restricted) | G109: 0 | H109: 0 | I109: 0 | J109: C16
A110: 2015 | B110: 41016a | C110: 410 | D110: C | E110: 16a | F110: Interest / Investment Income (unrestricted) | G110: 0 | H110: 0 | I110: 0 | J110: C16a
A111: 2015 | B111: 41017 | C111: 410 | D111: C | E111: 17 | F111: Rental Income | G111: 0 | H111: 230554 | I111: 230554 | J111: C17
A112: 2015 | B112: 41018 | C112: 410 | D112: C | E112: 18 | F112: Loan Forgiveness or Other Reimbursement | G112: 0 | H112: 0 | I112: 0 | J112: C18
A113: 2015 | B113: 41019 | C113: 410 | D113: C | E113: 19 | F113: Miscellaneous Income | G113: 0 | H113: 0 | I113: 0 | J113: C19
A114: 2015 | B114: 41020 | C114: 410 | D114: C | E114: 20 | F114: TOTAL REVENUES | G114: 11173372 | H114: 3323920 | I114: 14497292 | J114: C20
A115: 2015 | B115: 41021 | C115: 410 | D115: C | E115: 21 | F115: Administration | G115: 1997662.85 | H115: 0 | I115: 1997662.85 | J115: C21
A116: 2015 | B116: 41022 | C116: 410 | D116: C | E116: 22 | F116: Instructional Services | G116: 5988250.28 | H116: 0 | I116: 5988250.28 | J116: C22
A117: 2015 | B117: 41023 | C117: 410 | D117: C | E117: 23 | F117: Pupil Services | G117: 1103455.08 | H117: 0 | I117: 1103455.08 | J117: C23
A118: 2015 | B118: 41024 | C118: 410 | D118: C | E118: 24 | F118: Operation & Maintenance of Plant | G118: 435523.09 | H118: 0 | I118: 435523.09 | J118: C24
A119: 2015 | B119: 41025 | C119: 410 | D119: C | E119: 25 | F119: Benefits and Other Fixed Charges | G119: 1474337.39 | H119: 0 | I119: 1474337.39 | J119: C25
A120: 2015 | B120: 41026 | C120: 410 | D120: C | E120: 26 | F120: Community Services | G120: 0 | H120: 0 | I120: 0 | J120: C26
A121: 2015 | B121: 41027 | C121: 410 | D121: C | E121: 27 | F121: Non-Operating Financing Expenses | G121: 1138639.54 | H121: 0 | I121: 1138639.54 | J121: C27
A122: 2015 | B122: 41028 | C122: 410 | D122: C | E122: 28 | F122: Component Unit Expenses | G122: 0 | H122: 1719300 | I122: 1719300 | J122: C28
A123: 2015 | B123: 41029 | C123: 410 | D123: C | E123: 29 | F123: Contributions to School | G123: 0 | H123: 0 | I123: 0 | J123: C29
A124: 2015 | B124: 41030 | C124: 410 | D124: C | E124: 30 | F124: TOTAL EXPENSES | G124: 12137868.23 | H124: 1719300 | I124: 13857168.23 | J124: C30
A125: 2015 | B125: 41031 | C125: 410 | D125: C | E125: 31 | F125: TOTAL GAIN/(LOSS) | G125: -964496.23 | H125: 1604620 | I125: 640123.77 | J125: C31
A126: 2015 | B126: 41032 | C126: 410 | D126: C | E126: 32 | F126: Gain/Loss on Sale of Asset or Lease Transaction | G126: 0 | H126: 0 | I126: 0 | J126: C32
A127: 2015 | B127: 41033 | C127: 410 | D127: C | E127: 33 | F127: Other Gain/Loss | G127: 110 | H127: 2966658 | I127: 2966768 | J127: C33
A128: 2015 | B128: 41034 | C128: 410 | D128: C | E128: 34 | F128: TOTAL CHANGES IN NET ASSETS: | G128: -964386.23 | H128: 4571278 | I128: 3606891.77 | J128: C34
A129: 2015 | B129: 41035 | C129: 410 | D129: C | E129: 35 | F129: NET ASSETS AT BEGINNING OF YEAR | G129: -229078 | H129: 5759232 | I129: 5530154 | J129: C35
A130: 2015 | B130: 41036 | C130: 410 | D130: C | E130: 36 | F130: NET ASSETS AT END OF YEAR | G130: -1193464 | H130: 10330510 | I130: 9137046 | J130: C36
A131: 2015 | B131: =C131&E131 -> 4111 | C131: 411 | D131: =VLOOKUP(C131, TYPE, 3, FALSE) -> HM | E131: 1 | F131: Tuition | G131: 4077072.23 | H131: 0 | I131: 4077072.23 | J131: =D131&E131 -> HM1
A132: 2015 | B132: 4112a | C132: 411 | D132: HM | E132: 2a | F132: Grants - State - passed through ESE | G132: 0 | H132: 0 | I132: 0 | J132: HM2a
A133: 2015 | B133: 4112b | C133: 411 | D133: HM | E133: 2b | F133: Grants - State - other non-ESE pass-through | G133: 0 | H133: 0 | I133: 0 | J133: HM2b
A134: 2015 | B134: 4113 | C134: 411 | D134: HM | E134: 3 | F134: Grants - Federal - Passed through ESE | G134: 387248 | H134: 0 | I134: 387248 | J134: HM3
A135: 2015 | B135: 4114 | C135: 411 | D135: HM | E135: 4 | F135: Grants - Federal - Direct or other pass-through | G135: 0 | H135: 0 | I135: 0 | J135: HM4
A136: 2015 | B136: 4115a | C136: 411 | D136: HM | E136: 5a | F136: Grants - Private (restricted) | G136: 0 | H136: 18480 | I136: 18480 | J136: HM5a
A137: 2015 | B137: 4115b | C137: 411 | D137: HM | E137: 5b | F137: Grants - Private (unrestricted) | G137: 92157 | H137: 64269 | I137: 156426 | J137: HM5b
A138: 2015 | B138: 4116 | C138: 411 | D138: HM | E138: 6 | F138: Nutrition Funding - State | G138: 0 | H138: 0 | I138: 0 | J138: HM6
A139: 2015 | B139: 4117 | C139: 411 | D139: HM | E139: 7 | F139: Nutrition Funding - Federal | G139: 0 | H139: 0 | I139: 0 | J139: HM7
A140: 2015 | B140: 4118 | C140: 411 | D140: HM | E140: 8 | F140: Nutrition Funding - Fees | G140: 0 | H140: 0 | I140: 0 | J140: HM8
A141: 2015 | B141: 4119 | C141: 411 | D141: HM | E141: 9 | F141: Other Program / Student Activity Fees | G141: 13891 | H141: 0 | I141: 13891 | J141: HM9
A142: 2015 | B142: 41110 | C142: 411 | D142: HM | E142: 10 | F142: Regional Transportation Aid | G142: 0 | H142: 0 | I142: 0 | J142: HM10
A143: 2015 | B143: 41111 | C143: 411 | D143: HM | E143: 11 | F143: Medicaid Reimbursements | G143: 0 | H143: 0 | I143: 0 | J143: HM11
A144: 2015 | B144: 41112 | C144: 411 | D144: HM | E144: 12 | F144: Circuit Breaker Reimbursements | G144: 0 | H144: 0 | I144: 0 | J144: HM12
A145: 2015 | B145: 41113a | C145: 411 | D145: HM | E145: 13a | F145: Contributions, in-kind, host district | G145: 1566719.8 | H145: 0 | I145: 1566719.8 | J145: HM13a
A146: 2015 | B146: 41113b | C146: 411 | D146: HM | E146: 13b | F146: Contributions, in-kind, other | G146: 29669 | H146: 0 | I146: 29669 | J146: HM13b
A147: 2015 | B147: 41114 | C147: 411 | D147: HM | E147: 14 | F147: Contributions, from Component Unit (restricted) | G147: 0 | H147: 0 | I147: 0 | J147: HM14
A148: 2015 | B148: 41114b | C148: 411 | D148: HM | E148: 14b | F148: Contributions, from Component Unit (unrestricted) | G148: 33490 | H148: -33490 | I148: 0 | J148: HM14b
A149: 2015 | B149: 41115 | C149: 411 | D149: HM | E149: 15 | F149: Contributions / Fundraising (restricted) | G149: 0 | H149: 0 | I149: 0 | J149: HM15
A150: 2015 | B150: 41115b | C150: 411 | D150: HM | E150: 15b | F150: Contributions / Fundraising (unrestricted) | G150: -10598 | H150: 0 | I150: -10598 | J150: HM15b
A151: 2015 | B151: 41116 | C151: 411 | D151: HM | E151: 16 | F151: Interest / Investment Income (restricted) | G151: 0 | H151: 0 | I151: 0 | J151: HM16
A152: 2015 | B152: 41116a | C152: 411 | D152: HM | E152: 16a | F152: Interest / Investment Income (unrestricted) | G152: 0 | H152: 0 | I152: 0 | J152: HM16a
A153: 2015 | B153: 41117 | C153: 411 | D153: HM | E153: 17 | F153: Rental Income | G153: 0 | H153: 0 | I153: 0 | J153: HM17
A154: 2015 | B154: 41118 | C154: 411 | D154: HM | E154: 18 | F154: Loan Forgiveness or Other Reimbursement | G154: 0 | H154: 0 | I154: 0 | J154: HM18
A155: 2015 | B155: 41119 | C155: 411 | D155: HM | E155: 19 | F155: Miscellaneous Income | G155: 93043 | H155: 0 | I155: 93043 | J155: HM19
A156: 2015 | B156: 41120 | C156: 411 | D156: HM | E156: 20 | F156: TOTAL REVENUES | G156: 6282692.03 | H156: 49259 | I156: 6331951.03 | J156: HM20
A157: 2015 | B157: 41121 | C157: 411 | D157: HM | E157: 21 | F157: Administration | G157: 536783 | H157: 0 | I157: 536783 | J157: HM21
A158: 2015 | B158: 41122 | C158: 411 | D158: HM | E158: 22 | F158: Instructional Services | G158: 4235480.99 | H158: 0 | I158: 4235480.99 | J158: HM22
A159: 2015 | B159: 41123 | C159: 411 | D159: HM | E159: 23 | F159: Pupil Services | G159: 668179 | H159: 0 | I159: 668179 | J159: HM23
A160: 2015 | B160: 41124 | C160: 411 | D160: HM | E160: 24 | F160: Operation & Maintenance of Plant | G160: 327999 | H160: 0 | I160: 327999 | J160: HM24
A161: 2015 | B161: 41125 | C161: 411 | D161: HM | E161: 25 | F161: Benefits and Other Fixed Charges | G161: 505167 | H161: 0 | I161: 505167 | J161: HM25
A162: 2015 | B162: 41126 | C162: 411 | D162: HM | E162: 26 | F162: Community Services | G162: 0 | H162: 0 | I162: 0 | J162: HM26
A163: 2015 | B163: 41127 | C163: 411 | D163: HM | E163: 27 | F163: Non-Operating Financing Expenses | G163: 0 | H163: 0 | I163: 0 | J163: HM27
A164: 2015 | B164: 41128 | C164: 411 | D164: HM | E164: 28 | F164: Component Unit Expenses | G164: 0 | H164: 0 | I164: 0 | J164: HM28
A165: 2015 | B165: 41129 | C165: 411 | D165: HM | E165: 29 | F165: Contributions to School | G165: 0 | H165: 0 | I165: 0 | J165: HM29
A166: 2015 | B166: 41130 | C166: 411 | D166: HM | E166: 30 | F166: TOTAL EXPENSES | G166: 6273608.99 | H166: 0 | I166: 6273608.99 | J166: HM30
A167: 2015 | B167: 41131 | C167: 411 | D167: HM | E167: 31 | F167: TOTAL GAIN/(LOSS) | G167: 9083.04 | H167: 49259 | I167: 58342.04 | J167: HM31
A168: 2015 | B168: 41132 | C168: 411 | D168: HM | E168: 32 | F168: Gain/Loss on Sale of Asset or Lease Transaction | G168: 0 | H168: 0 | I168: 0 | J168: HM32
A169: 2015 | B169: 41133 | C169: 411 | D169: HM | E169: 33 | F169: Other Gain/Loss | G169: 0 | H169: 0 | I169: 0 | J169: HM33
A170: 2015 | B170: 41134 | C170: 411 | D170: HM | E170: 34 | F170: TOTAL CHANGES IN NET ASSETS: | G170: 9083.04 | H170: 49259 | I170: 58342.04 | J170: HM34
A171: 2015 | B171: 41135 | C171: 411 | D171: HM | E171: 35 | F171: NET ASSETS AT BEGINNING OF YEAR | G171: 55773 | H171: 0 | I171: 55773 | J171: HM35
A172: 2015 | B172: 41136 | C172: 411 | D172: HM | E172: 36 | F172: NET ASSETS AT END OF YEAR | G172: 64856 | H172: 49259 | I172: 114115 | J172: HM36
A173: 2015 | B173: 4121 | C173: 412 | D173: C | E173: 1 | F173: Tuition | G173: 7504957 | H173: 0 | I173: 7504957 | J173: C1
A174: 2015 | B174: 4122a | C174: 412 | D174: C | E174: 2a | F174: Grants - State - passed through ESE | G174: 0 | H174: 0 | I174: 0 | J174: C2a
A175: 2015 | B175: 4122b | C175: 412 | D175: C | E175: 2b | F175: Grants - State - other non-ESE pass-through | G175: 0 | H175: 0 | I175: 0 | J175: C2b
A176: 2015 | B176: 4123 | C176: 412 | D176: C | E176: 3 | F176: Grants - Federal - Passed through ESE | G176: 329989 | H176: 0 | I176: 329989 | J176: C3
A177: 2015 | B177: 4124 | C177: 412 | D177: C | E177: 4 | F177: Grants - Federal - Direct or other pass-through | G177: 0 | H177: 0 | I177: 0 | J177: C4
A178: 2015 | B178: 4125a | C178: 412 | D178: C | E178: 5a | F178: Grants - Private (restricted) | G178: 0 | H178: 0 | I178: 0 | J178: C5a
A179: 2015 | B179: 4125b | C179: 412 | D179: C | E179: 5b | F179: Grants - Private (unrestricted) | G179: 0 | H179: 44009 | I179: 44009 | J179: C5b
A180: 2015 | B180: 4126 | C180: 412 | D180: C | E180: 6 | F180: Nutrition Funding - State | G180: 2640 | H180: 0 | I180: 2640 | J180: C6
A181: 2015 | B181: 4127 | C181: 412 | D181: C | E181: 7 | F181: Nutrition Funding - Federal | G181: 169707 | H181: 0 | I181: 169707 | J181: C7
A182: 2015 | B182: 4128 | C182: 412 | D182: C | E182: 8 | F182: Nutrition Funding - Fees | G182: 0 | H182: 0 | I182: 0 | J182: C8
A183: 2015 | B183: 4129 | C183: 412 | D183: C | E183: 9 | F183: Other Program / Student Activity Fees | G183: 0 | H183: 0 | I183: 0 | J183: C9
A184: 2015 | B184: 41210 | C184: 412 | D184: C | E184: 10 | F184: Regional Transportation Aid | G184: 0 | H184: 0 | I184: 0 | J184: C10
A185: 2015 | B185: 41211 | C185: 412 | D185: C | E185: 11 | F185: Medicaid Reimbursements | G185: 28372 | H185: 0 | I185: 28372 | J185: C11
A186: 2015 | B186: 41212 | C186: 412 | D186: C | E186: 12 | F186: Circuit Breaker Reimbursements | G186: 0 | H186: 0 | I186: 0 | J186: C12
A187: 2015 | B187: 41213a | C187: 412 | D187: C | E187: 13a | F187: Contributions, in-kind, host district | G187: 632880 | H187: 0 | I187: 632880 | J187: C13a
A188: 2015 | B188: 41213b | C188: 412 | D188: C | E188: 13b | F188: Contributions, in-kind, other | G188: 573324 | H188: 0 | I188: 573324 | J188: C13b
A189: 2015 | B189: 41214 | C189: 412 | D189: C | E189: 14 | F189: Contributions, from Component Unit (restricted) | G189: 0 | H189: 0 | I189: 0 | J189: C14
A190: 2015 | B190: 41214b | C190: 412 | D190: C | E190: 14b | F190: Contributions, from Component Unit (unrestricted) | G190: 0 | H190: 0 | I190: 0 | J190: C14b
A191: 2015 | B191: 41215 | C191: 412 | D191: C | E191: 15 | F191: Contributions / Fundraising (restricted) | G191: 0 | H191: 8101 | I191: 8101 | J191: C15
A192: 2015 | B192: 41215b | C192: 412 | D192: C | E192: 15b | F192: Contributions / Fundraising (unrestricted) | G192: 0 | H192: 11595 | I192: 11595 | J192: C15b
A193: 2015 | B193: 41216 | C193: 412 | D193: =VLOOKUP(C193, TYPE, 3, FALSE) -> C | E193: 16 | F193: Interest / Investment Income (restricted) | G193: 0 | H193: 0 | I193: 0 | J193: =D193&E193 -> C16
A194: 2015 | B194: =C194&E194 -> 41216a | C194: 412 | D194: C | E194: 16a | F194: Interest / Investment Income (unrestricted) | G194: 3694 | H194: -188 | I194: 3506 | J194: C16a
A195: 2015 | B195: 41217 | C195: 412 | D195: C | E195: 17 | F195: Rental Income | G195: 0 | H195: 0 | I195: 0 | J195: C17
A196: 2015 | B196: 41218 | C196: 412 | D196: C | E196: 18 | F196: Loan Forgiveness or Other Reimbursement | G196: 0 | H196: 0 | I196: 0 | J196: C18
A197: 2015 | B197: 41219 | C197: 412 | D197: C | E197: 19 | F197: Miscellaneous Income | G197: 2031 | H197: 0 | I197: 2031 | J197: C19
A198: 2015 | B198: 41220 | C198: 412 | D198: C | E198: 20 | F198: TOTAL REVENUES | G198: 9247594 | H198: 63517 | I198: 9311111 | J198: C20
A199: 2015 | B199: 41221 | C199: 412 | D199: C | E199: 21 | F199: Administration | G199: 753268 | H199: 0 | I199: 753268 | J199: C21
A200: 2015 | B200: 41222 | C200: 412 | D200: C | E200: 22 | F200: Instructional Services | G200: 4104642 | H200: 0 | I200: 4104642 | J200: C22
A201: 2015 | B201: 41223 | C201: 412 | D201: C | E201: 23 | F201: Pupil Services | G201: 1097495 | H201: 0 | I201: 1097495 | J201: C23
A202: 2015 | B202: 41224 | C202: 412 | D202: C | E202: 24 | F202: Operation & Maintenance of Plant | G202: 620708 | H202: 0 | I202: 620708 | J202: C24
... 3246 more rows

Sheet FE15 (hidden)
B3: 1 | C3: 2 | D3: 3 | E3: 4 | F3: 5 | G3: 6 | H3: 7 | I3: 8 | J3: 9 | K3: 10 | L3: 11 | M3: 12
A4: FY | B4: vlookup | C4: cha_code | D4: cha_type | E4: FuncExp_id | F4: Line_Desc | G4: general | H4: sped | I4: undist | J4: state | K4: federal | L4: private | M4: total
A5: 2015 | B5: =C5&E5 -> 407100 | C5: 407 | D5: =VLOOKUP(C5, TYPE, 3, FALSE) -> HM | E5: 100 | F5: Administration | G5: 0 | H5: 0 | I5: 622712.09 | J5: 0 | K5: 7589 | L5: 0 | M5: 630301.09 | N5: =D5&E5 -> HM100
A6: 2015 | B6: =C6&E6 -> 407110 | C6: 407 | D6: HM | E6: 110 | F6: Subtotal - Board of Trustees | G6: 0 | H6: 0 | I6: 0 | J6: 0 | K6: 0 | L6: 0 | M6: 0 | N6: HM110
A7: 2015 | B7: 407111 | C7: 407 | D7: HM | E7: 111 | F7: Contracted Services | G7: 0 | H7: 0 | I7: 0 | J7: 0 | K7: 0 | L7: 0 | M7: 0 | N7: HM111
A8: 2015 | B8: 407112 | C8: 407 | D8: HM | E8: 112 | F8: Travel and other expenses | G8: 0 | H8: 0 | I8: 0 | J8: 0 | K8: 0 | L8: 0 | M8: 0 | N8: HM112
A9: 2015 | B9: 407120 | C9: 407 | D9: HM | E9: 120 | F9: Subtotal - School Leaders | G9: 0 | H9: 0 | I9: 49452.2 | J9: 0 | K9: 0 | L9: 0 | M9: 49452.2 | N9: HM120
A10: 2015 | B10: 407121 | C10: 407 | D10: HM | E10: 121 | F10: Salaries - Professional | G10: 0 | H10: 0 | I10: 49452.2 | J10: 0 | K10: 0 | L10: 0 | M10: 49452.2 | N10: HM121
A11: 2015 | B11: 407122 | C11: 407 | D11: HM | E11: 122 | F11: Contracted Services | G11: 0 | H11: 0 | I11: 0 | J11: 0 | K11: 0 | L11: 0 | M11: 0 | N11: HM122
A12: 2015 | B12: 407130 | C12: 407 | D12: HM | E12: 130 | F12: Subtotal - Business and Finance | G12: 0 | H12: 0 | I12: 23300 | J12: 0 | K12: 3872 | L12: 0 | M12: 27172 | N12: HM130
A13: 2015 | B13: 407131 | C13: 407 | D13: HM | E13: 131 | F13: Salaries - Professional | G13: 0 | H13: 0 | I13: 0 | J13: 0 | K13: 0 | L13: 0 | M13: 0 | N13: HM131
A14: 2015 | B14: 407132 | C14: 407 | D14: HM | E14: 132 | F14: Contracted Services | G14: 0 | H14: 0 | I14: 23300 | J14: 0 | K14: 3872 | L14: 0 | M14: 27172 | N14: HM132
A15: 2015 | B15: 407140 | C15: 407 | D15: HM | E15: 140 | F15: Subtotal - Human Resources | G15: 0 | H15: 0 | I15: 3069.69 | J15: 0 | K15: 0 | L15: 0 | M15: 3069.69 | N15: HM140
A16: 2015 | B16: 407141 | C16: 407 | D16: HM | E16: 141 | F16: Salaries - Professional | G16: 0 | H16: 0 | I16: 3069.69 | J16: 0 | K16: 0 | L16: 0 | M16: 3069.69 | N16: HM141
A17: 2015 | B17: 407142 | C17: 407 | D17: HM | E17: 142 | F17: Contracted Services | G17: 0 | H17: 0 | I17: 0 | J17: 0 | K17: 0 | L17: 0 | M17: 0 | N17: HM142
A18: 2015 | B18: 407150 | C18: 407 | D18: HM | E18: 150 | F18: Subtotal - Legal Services | G18: 0 | H18: 0 | I18: 0 | J18: 0 | K18: 0 | L18: 0 | M18: 0 | N18: HM150
A19: 2015 | B19: 407151 | C19: 407 | D19: HM | E19: 151 | F19: Salaries - Professional | G19: 0 | H19: 0 | I19: 0 | J19: 0 | K19: 0 | L19: 0 | M19: 0 | N19: HM151
A20: 2015 | B20: 407152 | C20: 407 | D20: HM | E20: 152 | F20: Contracted Services | G20: 0 | H20: 0 | I20: 0 | J20: 0 | K20: 0 | L20: 0 | M20: 0 | N20: HM152
A21: 2015 | B21: 407160 | C21: 407 | D21: HM | E21: 160 | F21: Subtotal - Info. Management & Technology | G21: 0 | H21: 0 | I21: 33655 | J21: 0 | K21: 3717 | L21: 0 | M21: 37372 | N21: HM160
A22: 2015 | B22: 407161 | C22: 407 | D22: HM | E22: 161 | F22: Salaries - Professional | G22: 0 | H22: 0 | I22: 0 | J22: 0 | K22: 0 | L22: 0 | M22: 0 | N22: HM161
A23: 2015 | B23: 407162 | C23: 407 | D23: HM | E23: 162 | F23: Contracted Services | G23: 0 | H23: 0 | I23: 7064 | J23: 0 | K23: 3717 | L23: 0 | M23: 10781 | N23: HM162
A24: 2015 | B24: 407163 | C24: 407 | D24: HM | E24: 163 | F24: Supplies and Materials | G24: 0 | H24: 0 | I24: 0 | J24: 0 | K24: 0 | L24: 0 | M24: 0 | N24: HM163
A25: 2015 | B25: 407164 | C25: 407 | D25: HM | E25: 164 | F25: Depreciation for Information Technology | G25: 0 | H25: 0 | I25: 26591 | J25: 0 | K25: 0 | L25: 0 | M25: 26591 | N25: HM164
A26: 2015 | B26: 407170 | C26: 407 | D26: HM | E26: 170 | F26: Subtotal - Development (Private) | G26: 0 | H26: 0 | I26: 0 | J26: 0 | K26: 0 | L26: 0 | M26: 0 | N26: HM170
A27: 2015 | B27: 407170a | C27: 407 | D27: HM | E27: 170a | F27: Salaries - Professional - Private | G27: 0 | H27: 0 | I27: 0 | J27: 0 | K27: 0 | L27: 0 | M27: 0 | N27: HM170a
A28: 2015 | B28: 407170b | C28: 407 | D28: HM | E28: 170b | F28: Contracted Services - Private | G28: 0 | H28: 0 | I28: 0 | J28: 0 | K28: 0 | L28: 0 | M28: 0 | N28: HM170b
A29: 2015 | B29: 407170c | C29: 407 | D29: HM | E29: 170c | F29: Fundraising - Private | G29: 0 | H29: 0 | I29: 0 | J29: 0 | K29: 0 | L29: 0 | M29: 0 | N29: HM170c
A30: 2015 | B30: 407171 | C30: 407 | D30: HM | E30: 171 | F30: Subtotal - Development (Public) | G30: 0 | H30: 0 | I30: 0 | J30: 0 | K30: 0 | L30: 0 | M30: 0 | N30: HM171
A31: 2015 | B31: 407171a | C31: 407 | D31: HM | E31: 171a | F31: Salaries - Professional - Public | G31: 0 | H31: 0 | I31: 0 | J31: 0 | K31: 0 | L31: 0 | M31: 0 | N31: HM171a
A32: 2015 | B32: 407171b | C32: 407 | D32: HM | E32: 171b | F32: Contracted Services - Public | G32: 0 | H32: 0 | I32: 0 | J32: 0 | K32: 0 | L32: 0 | M32: 0 | N32: HM171b
A33: 2015 | B33: 407180 | C33: 407 | D33: HM | E33: 180 | F33: Subtotal - Other Administration | G33: 0 | H33: 0 | I33: 513235.2 | J33: 0 | K33: 0 | L33: 0 | M33: 513235.2 | N33: HM180
A34: 2015 | B34: 407181 | C34: 407 | D34: HM | E34: 181 | F34: Salaries | G34: 0 | H34: 0 | I34: 0 | J34: 0 | K34: 0 | L34: 0 | M34: 0 | N34: HM181
A35: 2015 | B35: 407182 | C35: 407 | D35: HM | E35: 182 | F35: Contracted Services | G35: 0 | H35: 0 | I35: 507068.88 | J35: 0 | K35: 0 | L35: 0 | M35: 507068.88 | N35: HM182
A36: 2015 | B36: 407183 | C36: 407 | D36: HM | E36: 183 | F36: Recruitment/Advertising | G36: 0 | H36: 0 | I36: 0 | J36: 0 | K36: 0 | L36: 0 | M36: 0 | N36: HM183
A37: 2015 | B37: 407184 | C37: 407 | D37: HM | E37: 184 | F37: Travel, Dues, and other expenses | G37: 0 | H37: 0 | I37: 0 | J37: 0 | K37: 0 | L37: 0 | M37: 0 | N37: HM184
A38: 2015 | B38: 407185 | C38: 407 | D38: HM | E38: 185 | F38: Supplies and Materials | G38: 0 | H38: 0 | I38: 6166.32 | J38: 0 | K38: 0 | L38: 0 | M38: 6166.32 | N38: HM185
A39: 2015 | B39: 407200 | C39: 407 | D39: HM | E39: 200 | F39: Instructional Services | G39: 1572123.23 | H39: 336080.87 | I39: 43637.59 | J39: 200 | K39: 305797 | L39: 0 | M39: 2257838.69 | N39: HM200
A40: 2015 | B40: 407210 | C40: 407 | D40: HM | E40: 210 | F40: Subtotal - Instructional Leadership | G40: 273202.34 | H40: 34178.3 | I40: 35819.59 | J40: 200 | K40: 59101 | L40: 0 | M40: 402501.23 | N40: HM210
A41: 2015 | B41: 407211 | C41: 407 | D41: HM | E41: 211 | F41: Salaries - Professional | G41: 210867.54 | H41: 27195.1 | I41: 34248.36 | J41: 0 | K41: 52376 | L41: 0 | M41: 324687 | N41: HM211
A42: 2015 | B42: 407212 | C42: 407 | D42: HM | E42: 212 | F42: Salaries - Clerical | G42: 52705.8 | H42: 5856.2 | I42: 0 | J42: 0 | K42: 0 | L42: 0 | M42: 58562 | N42: HM212
A43: 2015 | B43: 407213 | C43: 407 | D43: HM | E43: 213 | F43: Contracted Services | G43: 405 | H43: 45 | I43: 100 | J43: 0 | K43: 0 | L43: 0 | M43: 550 | N43: HM213
A44: 2015 | B44: 407214 | C44: 407 | D44: HM | E44: 214 | F44: Supplies and Materials | G44: 5321 | H44: 665 | I44: 776.83 | J44: 0 | K44: 6725 | L44: 0 | M44: 13487.83 | N44: HM214
A45: 2015 | B45: 407215 | C45: 407 | D45: HM | E45: 215 | F45: Travel and other expenses | G45: 3903 | H45: 417 | I45: 694.4 | J45: 200 | K45: 0 | L45: 0 | M45: 5214.4 | N45: HM215
A46: 2015 | B46: 407220 | C46: 407 | D46: HM | E46: 220 | F46: Subtotal - Classroom and Specialist Teachers | G46: 888860.8 | H46: 247652.87 | I46: 0 | J46: 0 | K46: 11106 | L46: 0 | M46: 1147619.67 | N46: HM220
A47: 2015 | B47: 407221 | C47: 407 | D47: HM | E47: 221 | F47: Salaries - Teachers, Classroom | G47: 843139 | H47: 242572.67 | I47: 0 | J47: 0 | K47: 11106 | L47: 0 | M47: 1096817.67 | N47: HM221
A48: 2015 | B48: 407222 | C48: 407 | D48: HM | E48: 222 | F48: Salaries - Teachers, Specialists | G48: 45721.8 | H48: 5080.2 | I48: 0 | J48: 0 | K48: 0 | L48: 0 | M48: 50802 | N48: HM222
A49: 2015 | B49: 407230 | C49: 407 | D49: HM | E49: 230 | F49: Subtotal - Other Teaching Services | G49: 317652.4 | H49: 37781.6 | I49: 0 | J49: 0 | K49: 120565 | L49: 0 | M49: 475999 | N49: HM230
A50: 2015 | B50: 407231 | C50: 407 | D50: HM | E50: 231 | F50: Salaries - Professional | G50: 12740.4 | H50: 1415.6 | I50: 0 | J50: 0 | K50: 0 | L50: 0 | M50: 14156 | N50: HM231
A51: 2015 | B51: 407232 | C51: 407 | D51: HM | E51: 232 | F51: Salaries - Nonclerical Paraprofessionals | G51: 304912 | H51: 36366 | I51: 0 | J51: 0 | K51: 120565 | L51: 0 | M51: 461843 | N51: HM232
A52: 2015 | B52: 407233 | C52: 407 | D52: HM | E52: 233 | F52: Salaries - Clerical | G52: 0 | H52: 0 | I52: 0 | J52: 0 | K52: 0 | L52: 0 | M52: 0 | N52: HM233
A53: 2015 | B53: 407234 | C53: 407 | D53: HM | E53: 234 | F53: Contracted Services | G53: 0 | H53: 0 | I53: 0 | J53: 0 | K53: 0 | L53: 0 | M53: 0 | N53: HM234
A54: 2015 | B54: 407240 | C54: 407 | D54: HM | E54: 240 | F54: Subtotal - Professional Development | G54: 31372 | H54: 3772 | I54: 0 | J54: 0 | K54: 40174 | L54: 0 | M54: 75318 | N54: HM240
A55: 2015 | B55: 407241 | C55: 407 | D55: HM | E55: 241 | F55: Salaries - Professional | G55: 31372 | H55: 3772 | I55: 0 | J55: 0 | K55: 40174 | L55: 0 | M55: 75318 | N55: HM241
A56: 2015 | B56: 407242 | C56: 407 | D56: HM | E56: 242 | F56: Contracted Services | G56: 0 | H56: 0 | I56: 0 | J56: 0 | K56: 0 | L56: 0 | M56: 0 | N56: HM242
A57: 2015 | B57: 407243 | C57: 407 | D57: HM | E57: 243 | F57: Supplies and Materials | G57: 0 | H57: 0 | I57: 0 | J57: 0 | K57: 0 | L57: 0 | M57: 0 | N57: HM243
A58: 2015 | B58: 407244 | C58: 407 | D58: HM | E58: 244 | F58: Travel and other expenses | G58: 0 | H58: 0 | I58: 0 | J58: 0 | K58: 0 | L58: 0 | M58: 0 | N58: HM244
A59: 2015 | B59: 407250 | C59: 407 | D59: HM | E59: 250 | F59: Subtotal - Guidance, Psychological & Testing | G59: 14058.9 | H59: 7112.1 | I59: 0 | J59: 0 | K59: 65000 | L59: 0 | M59: 86171 | N59: HM250
A60: 2015 | B60: 407251 | C60: 407 | D60: HM | E60: 251 | F60: Salaries - Professional | G60: 14058.9 | H60: 1562.1 | I60: 0 | J60: 0 | K60: 65000 | L60: 0 | M60: 80621 | N60: HM251
A61: 2015 | B61: 407252 | C61: 407 | D61: HM | E61: 252 | F61: Salaries - Clerical | G61: 0 | H61: 0 | I61: 0 | J61: 0 | K61: 0 | L61: 0 | M61: 0 | N61: HM252
A62: 2015 | B62: 407253 | C62: 407 | D62: HM | E62: 253 | F62: Contracted Services | G62: 0 | H62: 5550 | I62: 0 | J62: 0 | K62: 0 | L62: 0 | M62: 5550 | N62: HM253
A63: 2015 | B63: 407254 | C63: 407 | D63: HM | E63: 254 | F63: Supplies and Materials | G63: 0 | H63: 0 | I63: 0 | J63: 0 | K63: 0 | L63: 0 | M63: 0 | N63: HM254
A64: 2015 | B64: 407260 | C64: 407 | D64: HM | E64: 260 | F64: Subtotal - Materials, Equipment & Technology | G64: 46976.79 | H64: 5584 | I64: 7818 | J64: 0 | K64: 9851 | L64: 0 | M64: 70229.79 | N64: HM260
A65: 2015 | B65: 407261 | C65: 407 | D65: HM | E65: 261 | F65: Textbooks & Related Media/Materials | G65: 8404 | H65: 933 | I65: 0 | J65: 0 | K65: 1872 | L65: 0 | M65: 11209 | N65: HM261
A66: 2015 | B66: 407262 | C66: 407 | D66: HM | E66: 262 | F66: Other Instructional Materials | G66: 0 | H66: 0 | I66: 0 | J66: 0 | K66: 0 | L66: 0 | M66: 0 | N66: HM262
A67: 2015 | B67: 407263 | C67: 407 | D67: HM | E67: 263 | F67: Instructional Equipment | G67: 3157.79 | H67: 421 | I67: 0 | J67: 0 | K67: 0 | L67: 0 | M67: 3578.79 | N67: HM263
A68: 2015 | B68: 407264 | C68: 407 | D68: HM | E68: 264 | F68: General Supplies | G68: 30438 | H68: 4184 | I68: 0 | J68: 0 | K68: 6549 | L68: 0 | M68: 41171 | N68: HM264
A69: 2015 | B69: 407265 | C69: 407 | D69: =VLOOKUP(C69, TYPE, 3, FALSE) -> HM | E69: 265 | F69: Other Instructional Services | G69: 1168 | H69: 0 | I69: 0 | J69: 0 | K69: 0 | L69: 0 | M69: 1168 | N69: =D69&E69 -> HM265
A70: 2015 | B70: =C70&E70 -> 407266 | C70: 407 | D70: HM | E70: 266 | F70: Classroom Instructional Technology | G70: 0 | H70: 0 | I70: 30 | J70: 0 | K70: 1280 | L70: 0 | M70: 1310 | N70: HM266
A71: 2015 | B71: 407267 | C71: 407 | D71: HM | E71: 267 | F71: Other Instructional Hardware | G71: 0 | H71: 0 | I71: 7788 | J71: 0 | K71: 0 | L71: 0 | M71: 7788 | N71: HM267
A72: 2015 | B72: 407268 | C72: 407 | D72: HM | E72: 268 | F72: Instructional Software | G72: 3809 | H72: 46 | I72: 0 | J72: 0 | K72: 150 | L72: 0 | M72: 4005 | N72: HM268
A73: 2015 | B73: 407269 | C73: 407 | D73: HM | E73: 269 | F73: Depreciation for Instructional Equipment | G73: 0 | H73: 0 | I73: 0 | J73: 0 | K73: 0 | L73: 0 | M73: 0 | N73: HM269
A74: 2015 | B74: 407300 | C74: 407 | D74: HM | E74: 300 | F74: Pupil Services | G74: 221247 | H74: 27218 | I74: 334198 | J74: 0 | K74: 39000 | L74: 0 | M74: 621663 | N74: HM300
A75: 2015 | B75: 407310 | C75: 407 | D75: HM | E75: 310 | F75: Health Services | G75: 0 | H75: 0 | I75: 48140 | J75: 0 | K75: 0 | L75: 0 | M75: 48140 | N75: HM310
A76: 2015 | B76: 407315 | C76: 407 | D76: HM | E76: 315 | F76: Health Services - Contracted | G76: 0 | H76: 0 | I76: 0 | J76: 0 | K76: 0 | L76: 0 | M76: 0 | N76: HM315
A77: 2015 | B77: 407320 | C77: 407 | D77: HM | E77: 320 | F77: Athletic Services | G77: 0 | H77: 0 | I77: 0 | J77: 0 | K77: 0 | L77: 0 | M77: 0 | N77: HM320
A78: 2015 | B78: 407325 | C78: 407 | D78: HM | E78: 325 | F78: Athletic Services - Contracted | G78: 0 | H78: 0 | I78: 0 | J78: 0 | K78: 0 | L78: 0 | M78: 0 | N78: HM325
A79: 2015 | B79: 407330 | C79: 407 | D79: HM | E79: 330 | F79: Food Services | G79: 0 | H79: 0 | I79: 286058 | J79: 0 | K79: 0 | L79: 0 | M79: 286058 | N79: HM330
A80: 2015 | B80: 407335 | C80: 407 | D80: HM | E80: 335 | F80: Food Services - Contracted | G80: 0 | H80: 0 | I80: 0 | J80: 0 | K80: 0 | L80: 0 | M80: 0 | N80: HM335
A81: 2015 | B81: 407340 | C81: 407 | D81: HM | E81: 340 | F81: Student Transportation (to and from school) | G81: 0 | H81: 0 | I81: 0 | J81: 0 | K81: 39000 | L81: 0 | M81: 39000 | N81: HM340
A82: 2015 | B82: 407345 | C82: 407 | D82: HM | E82: 345 | F82: Student Transportation (to and from school) | G82: 221247 | H82: 27218 | I82: 0 | J82: 0 | K82: 0 | L82: 0 | M82: 248465 | N82: HM345
A83: 2015 | B83: 407350 | C83: 407 | D83: HM | E83: 350 | F83: Depreciation of Transportation Vehicles | G83: 0 | H83: 0 | I83: 0 | J83: 0 | K83: 0 | L83: 0 | M83: 0 | N83: HM350
A84: 2015 | B84: 407360 | C84: 407 | D84: HM | E84: 360 | F84: Other Student Activities | G84: 0 | H84: 0 | I84: 0 | J84: 0 | K84: 0 | L84: 0 | M84: 0 | N84: HM360
A85: 2015 | B85: 407400 | C85: 407 | D85: HM | E85: 400 | F85: Operation & Maintenance of Plant | G85: 0 | H85: 0 | I85: 89615.07 | J85: 0 | K85: 0 | L85: 0 | M85: 89615.07 | N85: HM400
A86: 2015 | B86: 407410 | C86: 407 | D86: HM | E86: 410 | F86: Operation & Maintenance of Buildings and Grounds | G86: 0 | H86: 0 | I86: 0 | J86: 0 | K86: 0 | L86: 0 | M86: 0 | N86: HM410
A87: 2015 | B87: 407420 | C87: 407 | D87: HM | E87: 420 | F87: Utilities | G87: 0 | H87: 0 | I87: 53164 | J87: 0 | K87: 0 | L87: 0 | M87: 53164 | N87: HM420
A88: 2015 | B88: 407430 | C88: 407 | D88: HM | E88: 430 | F88: Maintenance of Equipment | G88: 0 | H88: 0 | I88: 36451.07 | J88: 0 | K88: 0 | L88: 0 | M88: 36451.07 | N88: HM430
A89: 2015 | B89: 407440 | C89: 407 | D89: HM | E89: 440 | F89: Networking and Telecommunications | G89: 0 | H89: 0 | I89: 0 | J89: 0 | K89: 0 | L89: 0 | M89: 0 | N89: HM440
A90: 2015 | B90: 407500 | C90: 407 | D90: HM | E90: 500 | F90: Fixed Charges | G90: 0 | H90: 0 | I90: 596730.13 | J90: 0 | K90: 7638 | L90: 0 | M90: 604368.13 | N90: HM500
A91: 2015 | B91: 407510 | C91: 407 | D91: HM | E91: 510 | F91: Employee Retirement | G91: 0 | H91: 0 | I91: 0 | J91: 0 | K91: 0 | L91: 0 | M91: 0 | N91: HM510
A92: 2015 | B92: 407520 | C92: 407 | D92: HM | E92: 520 | F92: Fringe Benefits | G92: 0 | H92: 0 | I92: 588157 | J92: 0 | K92: 7638 | L92: 0 | M92: 595795 | N92: HM520
A93: 2015 | B93: 407530 | C93: 407 | D93: HM | E93: 530 | F93: Insurance (non-employee) | G93: 0 | H93: 0 | I93: 6060 | J93: 0 | K93: 0 | L93: 0 | M93: 6060 | N93: HM530
A94: 2015 | B94: 407550 | C94: 407 | D94: HM | E94: 550 | F94: Rental/Lease of Equipment | G94: 0 | H94: 0 | I94: 2502 | J94: 0 | K94: 0 | L94: 0 | M94: 2502 | N94: HM550
A95: 2015 | B95: 407560 | C95: 407 | D95: HM | E95: 560 | F95: Short-Term Interest | G95: 0 | H95: 0 | I95: 11.13 | J95: 0 | K95: 0 | L95: 0 | M95: 11.13 | N95: HM560
A96: 2015 | B96: 407600 | C96: 407 | D96: HM | E96: 600 | F96: Community Services | G96: 0 | H96: 0 | I96: 0 | J96: 0 | K96: 0 | L96: 0 | M96: 0 | N96: HM600
A97: 2015 | B97: 407610 | C97: 407 | D97: HM | E97: 610 | F97: Dissemination Activities | G97: 0 | H97: 0 | I97: 0 | J97: 0 | K97: 0 | L97: 0 | M97: 0 | N97: HM610
A98: 2015 | B98: 407620 | C98: 407 | D98: HM | E98: 620 | F98: Civic Activities | G98: 0 | H98: 0 | I98: 0 | J98: 0 | K98: 0 | L98: 0 | M98: 0 | N98: HM620
A99: 2015 | B99: 407700 | C99: 407 | D99: HM | E99: 700 | F99: Non-Operating / Capital Facilities Costs | G99: 0 | H99: 0 | I99: 5942 | J99: 0 | K99: 0 | L99: 0 | M99: 5942 | N99: HM700
A100: 2015 | B100: 407720 | C100: 407 | D100: HM | E100: 720 | F100: Long-Term Interest, facilities related | G100: 0 | H100: 0 | I100: 0 | J100: 0 | K100: 0 | L100: 0 | M100: 0 | N100: HM720
A101: 2015 | B101: 407725 | C101: 407 | D101: HM | E101: 725 | F101: Long-Term Interest, non-facilities related | G101: 0 | H101: 0 | I101: 0 | J101: 0 | K101: 0 | L101: 0 | M101: 0 | N101: HM725
A102: 2015 | B102: 407730 | C102: 407 | D102: HM | E102: 730 | F102: Other costs related to capital facilities acquisition | G102: 0 | H102: 0 | I102: 0 | J102: 0 | K102: 0 | L102: 0 | M102: 0 | N102: HM730
A103: 2015 | B103: 407740 | C103: 407 | D103: HM | E103: 740 | F103: Rental/Lease of Buildings & Grounds | G103: 0 | H103: 0 | I103: 0 | J103: 0 | K103: 0 | L103: 0 | M103: 0 | N103: HM740
A104: 2015 | B104: 407750 | C104: 407 | D104: HM | E104: 750 | F104: Depreciation of Equipment, Building, & Grounds | G104: 0 | H104: 0 | I104: 5942 | J104: 0 | K104: 0 | L104: 0 | M104: 5942 | N104: HM750
A105: 2015 | B105: 407760 | C105: 407 | D105: HM | E105: 760 | F105: Bad debt / loss on disposal of assets | G105: 0 | H105: 0 | I105: 0 | J105: 0 | K105: 0 | L105: 0 | M105: 0 | N105: HM760
A106: 2015 | B106: 407800 | C106: 407 | D106: HM | E106: 800 | F106: TOTALS | G106: 1793370.23 | H106: 363298.87 | I106: 1692834.88 | J106: 200 | K106: 360024 | L106: 0 | M106: 4209727.98 | N106: HM800
A107: 2015 | B107: 407910 | C107: 407 | D107: HM | E107: 910 | F107: Reference: Capitalized Expenditures | G107: 0 | H107: 0 | I107: 0 | J107: 0 | K107: 0 | L107: 0 | M107: 0 | N107: HM910
A108: 2015 | B108: 407920 | C108: 407 | D108: HM | E108: 920 | F108: Reference: Deferrals/Carryovers | G108: 0 | H108: 0 | I108: 0 | J108: 0 | K108: 0 | L108: 0 | M108: 0 | N108: HM920
A109: 2015 | B109: 407900 | C109: 407 | D109: HM | E109: 900 | F109: Reference: Totals | G109: 0 | H109: 0 | I109: 1692834.88 | J109: 200 | K109: 360024 | L109: 0 | M109: 4209727.98 | N109: HM900
A110: 2015
A111: 2015
A112: 2015 | B112: 409100 | C112: 409 | D112: C | E112: 100 | F112: Administration | G112: 0 | H112: 0 | I112: 431459.81 | J112: 0 | K112: 10000 | L112: 0 | M112: 441459.81 | N112: C100
A113: 2015 | B113: 409110 | C113: 409 | D113: C | E113: 110 | F113: Subtotal - Board of Trustees | G113: 0 | H113: 0 | I113: 8058.34 | J113: 0 | K113: 0 | L113: 0 | M113: 8058.34 | N113: C110
A114: 2015 | B114: 409111 | C114: 409 | D114: C | E114: 111 | F114: Contracted Services | G114: 0 | H114: 0 | I114: 7995 | J114: 0 | K114: 0 | L114: 0 | M114: 7995 | N114: C111
A115: 2015 | B115: 409112 | C115: 409 | D115: C | E115: 112 | F115: Travel and other expenses | G115: 0 | H115: 0 | I115: 63.34 | J115: 0 | K115: 0 | L115: 0 | M115: 63.34 | N115: C112
A116: 2015 | B116: 409120 | C116: 409 | D116: C | E116: 120 | F116: Subtotal - School Leaders | G116: 0 | H116: 0 | I116: 102917.7 | J116: 0 | K116: 0 | L116: 0 | M116: 102917.7 | N116: C120
A117: 2015 | B117: 409121 | C117: 409 | D117: C | E117: 121 | F117: Salaries - Professional | G117: 0 | H117: 0 | I117: 99240.75 | J117: 0 | K117: 0 | L117: 0 | M117: 99240.75 | N117: C121
A118: 2015 | B118: 409122 | C118: 409 | D118: C | E118: 122 | F118: Contracted Services | G118: 0 | H118: 0 | I118: 3676.95 | J118: 0 | K118: 0 | L118: 0 | M118: 3676.95 | N118: C122
A119: 2015 | B119: 409130 | C119: 409 | D119: C | E119: 130 | F119: Subtotal - Business and Finance | G119: 0 | H119: 0 | I119: 116634.08 | J119: 0 | K119: 0 | L119: 0 | M119: 116634.08 | N119: C130
A120: 2015 | B120: 409131 | C120: 409 | D120: C | E120: 131 | F120: Salaries - Professional | G120: 0 | H120: 0 | I120: 53136.26 | J120: 0 | K120: 0 | L120: 0 | M120: 53136.26 | N120: C131
A121: 2015 | B121: 409132 | C121: 409 | D121: C | E121: 132 | F121: Contracted Services | G121: 0 | H121: 0 | I121: 63497.82 | J121: 0 | K121: 0 | L121: 0 | M121: 63497.82 | N121: C132
A122: 2015 | B122: 409140 | C122: 409 | D122: C | E122: 140 | F122: Subtotal - Human Resources | G122: 0 | H122: 0 | I122: 22772.3 | J122: 0 | K122: 0 | L122: 0 | M122: 22772.3 | N122: C140
A123: 2015 | B123: 409141 | C123: 409 | D123: C | E123: 141 | F123: Salaries - Professional | G123: 0 | H123: 0 | I123: 0 | J123: 0 | K123: 0 | L123: 0 | M123: 0 | N123: C141
A124: 2015 | B124: 409142 | C124: 409 | D124: C | E124: 142 | F124: Contracted Services | G124: 0 | H124: 0 | I124: 22772.3 | J124: 0 | K124: 0 | L124: 0 | M124: 22772.3 | N124: C142
A125: 2015 | B125: 409150 | C125: 409 | D125: C | E125: 150 | F125: Subtotal - Legal Services | G125: 0 | H125: 0 | I125: 1490.55 | J125: 0 | K125: 0 | L125: 0 | M125: 1490.55 | N125: C150
A126: 2015 | B126: 409151 | C126: 409 | D126: C | E126: 151 | F126: Salaries - Professional | G126: 0 | H126: 0 | I126: 0 | J126: 0 | K126: 0 | L126: 0 | M126: 0 | N126: C151
A127: 2015 | B127: 409152 | C127: 409 | D127: C | E127: 152 | F127: Contracted Services | G127: 0 | H127: 0 | I127: 1490.55 | J127: 0 | K127: 0 | L127: 0 | M127: 1490.55 | N127: C152
A128: 2015 | B128: 409160 | C128: 409 | D128: C | E128: 160 | F128: Subtotal - Info. Management & Technology | G128: 0 | H128: 0 | I128: 35805.65 | J128: 0 | K128: 5000 | L128: 0 | M128: 40805.65 | N128: C160
A129: 2015 | B129: 409161 | C129: 409 | D129: C | E129: 161 | F129: Salaries - Professional | G129: 0 | H129: 0 | I129: 0 | J129: 0 | K129: 0 | L129: 0 | M129: 0 | N129: C161
A130: 2015 | B130: 409162 | C130: 409 | D130: C | E130: 162 | F130: Contracted Services | G130: 0 | H130: 0 | I130: 20998.75 | J130: 0 | K130: 0 | L130: 0 | M130: 20998.75 | N130: C162
A131: 2015 | B131: 409163 | C131: 409 | D131: C | E131: 163 | F131: Supplies and Materials | G131: 0 | H131: 0 | I131: 14806.9 | J131: 0 | K131: 5000 | L131: 0 | M131: 19806.9 | N131: C163
A132: 2015 | B132: 409164 | C132: 409 | D132: C | E132: 164 | F132: Depreciation for Information Technology | G132: 0 | H132: 0 | I132: 0 | J132: 0 | K132: 0 | L132: 0 | M132: 0 | N132: C164
A133: 2015 | B133: 409170 | C133: 409 | D133: =VLOOKUP(C133, TYPE, 3, FALSE) -> C | E133: 170 | F133: Subtotal - Development (Private) | G133: 0 | H133: 0 | I133: 52813.36 | J133: 0 | K133: 0 | L133: 0 | M133: 52813.36 | N133: =D133&E133 -> C170
A134: 2015 | B134: =C134&E134 -> 409170a | C134: 409 | D134: C | E134: 170a | F134: Salaries - Professional - Private | G134: 0 | H134: 0 | I134: 25536.32 | J134: 0 | K134: 0 | L134: 0 | M134: 25536.32 | N134: C170a
A135: 2015 | B135: 409170b | C135: 409 | D135: C | E135: 170b | F135: Contracted Services - Private | G135: 0 | H135: 0 | I135: 0 | J135: 0 | K135: 0 | L135: 0 | M135: 0 | N135: C170b
A136: 2015 | B136: 409170c | C136: 409 | D136: C | E136: 170c | F136: Fundraising - Private | G136: 0 | H136: 0 | I136: 27277.04 | J136: 0 | K136: 0 | L136: 0 | M136: 27277.04 | N136: C170c
A137: 2015 | B137: 409171 | C137: 409 | D137: C | E137: 171 | F137: Subtotal - Development (Public) | G137: 0 | H137: 0 | I137: 31601.33 | J137: 0 | K137: 0 | L137: 0 | M137: 31601.33 | N137: C171
A138: 2015 | B138: 409171a | C138: 409 | D138: C | E138: 171a | F138: Salaries - Professional - Public | G138: 0 | H138: 0 | I138: 25536.33 | J138: 0 | K138: 0 | L138: 0 | M138: 25536.33 | N138: C171a
A139: 2015 | B139: 409171b | C139: 409 | D139: C | E139: 171b | F139: Contracted Services - Public | G139: 0 | H139: 0 | I139: 6065 | J139: 0 | K139: 0 | L139: 0 | M139: 6065 | N139: C171b
A140: 2015 | B140: 409180 | C140: 409 | D140: C | E140: 180 | F140: Subtotal - Other Administration | G140: 0 | H140: 0 | I140: 59366.5 | J140: 0 | K140: 5000 | L140: 0 | M140: 64366.5 | N140: C180
A141: 2015 | B141: 409181 | C141: 409 | D141: C | E141: 181 | F141: Salaries | G141: 0 | H141: 0 | I141: 35829.33 | J141: 0 | K141: 0 | L141: 0 | M141: 35829.33 | N141: C181
A142: 2015 | B142: 409182 | C142: 409 | D142: C | E142: 182 | F142: Contracted Services | G142: 0 | H142: 0 | I142: 0 | J142: 0 | K142: 0 | L142: 0 | M142: 0 | N142: C182
A143: 2015 | B143: 409183 | C143: 409 | D143: C | E143: 183 | F143: Recruitment/Advertising | G143: 0 | H143: 0 | I143: 5471.88 | J143: 0 | K143: 5000 | L143: 0 | M143: 10471.88 | N143: C183
A144: 2015 | B144: 409184 | C144: 409 | D144: C | E144: 184 | F144: Travel, Dues, and other expenses | G144: 0 | H144: 0 | I144: 14339.85 | J144: 0 | K144: 0 | L144: 0 | M144: 14339.85 | N144: C184
A145: 2015 | B145: 409185 | C145: 409 | D145: C | E145: 185 | F145: Supplies and Materials | G145: 0 | H145: 0 | I145: 3725.44 | J145: 0 | K145: 0 | L145: 0 | M145: 3725.44 | N145: C185
A146: 2015 | B146: 409200 | C146: 409 | D146: C | E146: 200 | F146: Instructional Services | G146: 1278018.76 | H146: 255850.32 | I146: 42959.04 | J146: 0 | K146: 139597 | L146: 107600 | M146: 1824025.12 | N146: C200
A147: 2015 | B147: 409210 | C147: 409 | D147: C | E147: 210 | F147: Subtotal - Instructional Leadership | G147: 55645.97 | H147: 86249.9 | I147: 0 | J147: 0 | K147: 0 | L147: 19375 | M147: 161270.87 | N147: C210
A148: 2015 | B148: 409211 | C148: 409 | D148: C | E148: 211 | F148: Salaries - Professional | G148: 45674.49 | H148: 86249.9 | I148: 0 | J148: 0 | K148: 0 | L148: 19375 | M148: 151299.39 | N148: C211
A149: 2015 | B149: 409212 | C149: 409 | D149: C | E149: 212 | F149: Salaries - Clerical | G149: 0 | H149: 0 | I149: 0 | J149: 0 | K149: 0 | L149: 0 | M149: 0 | N149: C212
A150: 2015 | B150: 409213 | C150: 409 | D150: C | E150: 213 | F150: Contracted Services | G150: 9520.83 | H150: 0 | I150: 0 | J150: 0 | K150: 0 | L150: 0 | M150: 9520.83 | N150: C213
A151: 2015 | B151: 409214 | C151: 409 | D151: C | E151: 214 | F151: Supplies and Materials | G151: 254.71 | H151: 0 | I151: 0 | J151: 0 | K151: 0 | L151: 0 | M151: 254.71 | N151: C214
A152: 2015 | B152: 409215 | C152: 409 | D152: C | E152: 215 | F152: Travel and other expenses | G152: 195.94 | H152: 0 | I152: 0 | J152: 0 | K152: 0 | L152: 0 | M152: 195.94 | N152: C215
A153: 2015 | B153: 409220 | C153: 409 | D153: C | E153: 220 | F153: Subtotal - Classroom and Specialist Teachers | G153: 917021.16 | H153: 45450.9 | I153: 0 | J153: 0 | K153: 0 | L153: 25000 | M153: 987472.06 | N153: C220
A154: 2015 | B154: 409221 | C154: 409 | D154: C | E154: 221 | F154: Salaries - Teachers, Classroom | G154: 723400.7 | H154: 0 | I154: 0 | J154: 0 | K154: 0 | L154: 25000 | M154: 748400.7 | N154: C221
A155: 2015 | B155: 409222 | C155: 409 | D155: C | E155: 222 | F155: Salaries - Teachers, Specialists | G155: 193620.46 | H155: 45450.9 | I155: 0 | J155: 0 | K155: 0 | L155: 0 | M155: 239071.36 | N155: C222
A156: 2015 | B156: 409230 | C156: 409 | D156: C | E156: 230 | F156: Subtotal - Other Teaching Services | G156: 82022.58 | H156: 121676.23 | I156: 0 | J156: 0 | K156: 63568 | L156: 0 | M156: 267266.81 | N156: C230
A157: 2015 | B157: 409231 | C157: 409 | D157: C | E157: 231 | F157: Salaries - Professional | G157: 51050.5 | H157: 0 | I157: 0 | J157: 0 | K157: 0 | L157: 0 | M157: 51050.5 | N157: C231
A158: 2015 | B158: 409232 | C158: 409 | D158: C | E158: 232 | F158: Salaries - Nonclerical Paraprofessionals | G158: 28770.08 | H158: 44695.38 | I158: 0 | J158: 0 | K158: 32500 | L158: 0 | M158: 105965.46 | N158: C232
A159: 2015 | B159: 409233 | C159: 409 | D159: C | E159: 233 | F159: Salaries - Clerical | G159: 0 | H159: 0 | I159: 0 | J159: 0 | K159: 0 | L159: 0 | M159: 0 | N159: C233
A160: 2015 | B160: 409234 | C160: 409 | D160: C | E160: 234 | F160: Contracted Services | G160: 2202 | H160: 76980.85 | I160: 0 | J160: 0 | K160: 31068 | L160: 0 | M160: 110250.85 | N160: C234
A161: 2015 | B161: 409240 | C161: 409 | D161: C | E161: 240 | F161: Subtotal - Professional Development | G161: 37805.31 | H161: 60.34 | I161: 0 | J161: 0 | K161: 33200 | L161: 20625 | M161: 91690.65 | N161: C240
A162: 2015 | B162: 409241 | C162: 409 | D162: C | E162: 241 | F162: Salaries - Professional | G162: 0 | H162: 0 | I162: 0 | J162: 0 | K162: 0 | L162: 0 | M162: 0 | N162: C241
A163: 2015 | B163: 409242 | C163: 409 | D163: C | E163: 242 | F163: Contracted Services | G163: 29042.8 | H163: 0 | I163: 0 | J163: 0 | K163: 28336 | L163: 19900 | M163: 77278.8 | N163: C242
A164: 2015 | B164: 409243 | C164: 409 | D164: C | E164: 243 | F164: Supplies and Materials | G164: 4072.79 | H164: 0 | I164: 0 | J164: 0 | K164: 0 | L164: 0 | M164: 4072.79 | N164: C243
A165: 2015 | B165: 409244 | C165: 409 | D165: C | E165: 244 | F165: Travel and other expenses | G165: 4689.72 | H165: 60.34 | I165: 0 | J165: 0 | K165: 4864 | L165: 725 | M165: 10339.06 | N165: C244
A166: 2015 | B166: 409250 | C166: 409 | D166: C | E166: 250 | F166: Subtotal - Guidance, Psychological & Testing | G166: 12138.05 | H166: 322.4 | I166: 0 | J166: 0 | K166: 8822 | L166: 0 | M166: 21282.45 | N166: C250
A167: 2015 | B167: 409251 | C167: 409 | D167: C | E167: 251 | F167: Salaries - Professional | G167: 0 | H167: 0 | I167: 0 | J167: 0 | K167: 0 | L167: 0 | M167: 0 | N167: C251
A168: 2015 | B168: 409252 | C168: 409 | D168: C | E168: 252 | F168: Salaries - Clerical | G168: 0 | H168: 0 | I168: 0 | J168: 0 | K168: 0 | L168: 0 | M168: 0 | N168: C252
A169: 2015 | B169: 409253 | C169: 409 | D169: C | E169: 253 | F169: Contracted Services | G169: 5689 | H169: 110 | I169: 0 | J169: 0 | K169: 6160 | L169: 0 | M169: 11959 | N169: C253
A170: 2015 | B170: 409254 | C170: 409 | D170: C | E170: 254 | F170: Supplies and Materials | G170: 6449.05 | H170: 212.4 | I170: 0 | J170: 0 | K170: 2662 | L170: 0 | M170: 9323.45 | N170: C254
A171: 2015 | B171: 409260 | C171: 409 | D171: C | E171: 260 | F171: Subtotal - Materials, Equipment & Technology | G171: 173385.69 | H171: 2090.55 | I171: 42959.04 | J171: 0 | K171: 34007 | L171: 42600 | M171: 295042.28 | N171: C260
A172: 2015 | B172: 409261 | C172: 409 | D172: C | E172: 261 | F172: Textbooks & Related Media/Materials | G172: 18838.04 | H172: 0 | I172: 0 | J172: 0 | K172: 9978 | L172: 1584 | M172: 30400.04 | N172: C261
A173: 2015 | B173: 409262 | C173: 409 | D173: C | E173: 262 | F173: Other Instructional Materials | G173: 46686.85 | H173: 586.12 | I173: 0 | J173: 0 | K173: 2672 | L173: 10923 | M173: 60867.97 | N173: C262
A174: 2015 | B174: 409263 | C174: 409 | D174: C | E174: 263 | F174: Instructional Equipment | G174: 25000.19 | H174: 466.16 | I174: 0 | J174: 0 | K174: 15000 | L174: 15124 | M174: 55590.35 | N174: C263
A175: 2015 | B175: 409264 | C175: 409 | D175: C | E175: 264 | F175: General Supplies | G175: 49419.65 | H175: 158.27 | I175: 0 | J175: 0 | K175: 1360 | L175: 925 | M175: 51862.92 | N175: C264
A176: 2015 | B176: 409265 | C176: 409 | D176: C | E176: 265 | F176: Other Instructional Services | G176: 25583.74 | H176: 0 | I176: 0 | J176: 0 | K176: 0 | L176: 2100 | M176: 27683.74 | N176: C265
A177: 2015 | B177: 409266 | C177: 409 | D177: C | E177: 266 | F177: Classroom Instructional Technology | G177: 0 | H177: 0 | I177: 42959.04 | J177: 0 | K177: 4997 | L177: 11944 | M177: 59900.04 | N177: C266
A178: 2015 | B178: 409267 | C178: 409 | D178: C | E178: 267 | F178: Other Instructional Hardware | G178: 0 | H178: 0 | I178: 0 | J178: 0 | K178: 0 | L178: 0 | M178: 0 | N178: C267
A179: 2015 | B179: 409268 | C179: 409 | D179: C | E179: 268 | F179: Instructional Software | G179: 2116.22 | H179: 880 | I179: 0 | J179: 0 | K179: 0 | L179: 0 | M179: 2996.22 | N179: C268
A180: 2015 | B180: 409269 | C180: 409 | D180: C | E180: 269 | F180: Depreciation for Instructional Equipment | G180: 5741 | H180: 0 | I180: 0 | J180: 0 | K180: 0 | L180: 0 | M180: 5741 | N180: C269
A181: 2015 | B181: 409300 | C181: 409 | D181: C | E181: 300 | F181: Pupil Services | G181: 425767.41 | H181: 0 | I181: 163683.45 | J181: 3584.12 | K181: 180195.68 | L181: 10500 | M181: 783730.66 | N181: C300
A182: 2015 | B182: 409310 | C182: 409 | D182: C | E182: 310 | F182: Health Services | G182: 0 | H182: 0 | I182: 49498.64 | J182: 0 | K182: 0 | L182: 0 | M182: 49498.64 | N182: C310
A183: 2015 | B183: 409315 | C183: 409 | D183: C | E183: 315 | F183: Health Services - Contracted | G183: 0 | H183: 0 | I183: 2204.33 | J183: 0 | K183: 0 | L183: 0 | M183: 2204.33 | N183: C315
A184: 2015 | B184: 409320 | C184: 409 | D184: C | E184: 320 | F184: Athletic Services | G184: 0 | H184: 0 | I184: 0 | J184: 0 | K184: 0 | L184: 0 | M184: 0 | N184: C320
A185: 2015 | B185: 409325 | C185: 409 | D185: C | E185: 325 | F185: Athletic Services - Contracted | G185: 0 | H185: 0 | I185: 0 | J185: 0 | K185: 0 | L185: 0 | M185: 0 | N185: C325
A186: 2015 | B186: 409330 | C186: 409 | D186: C | E186: 330 | F186: Food Services | G186: 0 | H186: 0 | I186: 17769.15 | J186: 0 | K186: 0 | L186: 0 | M186: 17769.15 | N186: C330
A187: 2015 | B187: 409335 | C187: 409 | D187: C | E187: 335 | F187: Food Services - Contracted | G187: 0 | H187: 0 | I187: 65210.14 | J187: 3584.12 | K187: 139995.68 | L187: 0 | M187: 208789.94 | N187: C335
A188: 2015 | B188: 409340 | C188: 409 | D188: C | E188: 340 | F188: Student Transportation (to and from school) | G188: 0 | H188: 0 | I188: 0 | J188: 0 | K188: 0 | L188: 0 | M188: 0 | N188: C340
A189: 2015 | B189: 409345 | C189: 409 | D189: C | E189: 345 | F189: Student Transportation (to and from school) | G189: 425767.41 | H189: 0 | I189: 0 | J189: 0 | K189: 40200 | L189: 0 | M189: 465967.41 | N189: C345
A190: 2015 | B190: 409350 | C190: 409 | D190: C | E190: 350 | F190: Depreciation of Transportation Vehicles | G190: 0 | H190: 0 | I190: 0 | J190: 0 | K190: 0 | L190: 0 | M190: 0 | N190: C350
A191: 2015 | B191: 409360 | C191: 409 | D191: C | E191: 360 | F191: Other Student Activities | G191: 0 | H191: 0 | I191: 29001.19 | J191: 0 | K191: 0 | L191: 10500 | M191: 39501.19 | N191: C360
A192: 2015 | B192: 409400 | C192: 409 | D192: C | E192: 400 | F192: Operation & Maintenance of Plant | G192: 0 | H192: 0 | I192: 160466.71 | J192: 0 | K192: 0 | L192: 0 | M192: 160466.71 | N192: C400
A193: 2015 | B193: 409410 | C193: 409 | D193: C | E193: 410 | F193: Operation & Maintenance of Buildings and Grounds | G193: 0 | H193: 0 | I193: 115179.03 | J193: 0 | K193: 0 | L193: 0 | M193: 115179.03 | N193: C410
A194: 2015 | B194: 409420 | C194: 409 | D194: C | E194: 420 | F194: Utilities | G194: 0 | H194: 0 | I194: 42159.08 | J194: 0 | K194: 0 | L194: 0 | M194: 42159.08 | N194: C420
A195: 2015 | B195: 409430 | C195: 409 | D195: C | E195: 430 | F195: Maintenance of Equipment | G195: 0 | H195: 0 | I195: 0 | J195: 0 | K195: 0 | L195: 0 | M195: 0 | N195: C430
A196: 2015 | B196: 409440 | C196: 409 | D196: C | E196: 440 | F196: Networking and Telecommunications | G196: 0 | H196: 0 | I196: 3128.6 | J196: 0 | K196: 0 | L196: 0 | M196: 3128.6 | N196: C440
A197: 2015 | B197: 409500 | C197: 409 | D197: =VLOOKUP(C197, TYPE, 3, FALSE) -> C | E197: 500 | F197: Fixed Charges | G197: 0 | H197: 0 | I197: 375507.93 | J197: 0 | K197: 8750 | L197: 0 | M197: 384257.93 | N197: =D197&E197 -> C500
A198: 2015 | B198: =C198&E198 -> 409510 | C198: 409 | D198: C | E198: 510 | F198: Employee Retirement | G198: 0 | H198: 0 | I198: 210226.57 | J198: 0 | K198: 0 | L198: 0 | M198: 210226.57 | N198: C510
A199: 2015 | B199: 409520 | C199: 409 | D199: C | E199: 520 | F199: Fringe Benefits | G199: 0 | H199: 0 | I199: 150119.6 | J199: 0 | K199: 8750 | L199: 0 | M199: 158869.6 | N199: C520
A200: 2015 | B200: 409530 | C200: 409 | D200: C | E200: 530 | F200: Insurance (non-employee) | G200: 0 | H200: 0 | I200: 15026 | J200: 0 | K200: 0 | L200: 0 | M200: 15026 | N200: C530
A201: 2015 | B201: 409550 | C201: 409 | D201: C | E201: 550 | F201: Rental/Lease of Equipment | G201: 0 | H201: 0 | I201: 0 | J201: 0 | K201: 0 | L201: 0 | M201: 0 | N201: C550
A202: 2015 | B202: 409560 | C202: 409 | D202: C | E202: 560 | F202: Short-Term Interest | G202: 0 | H202: 0 | I202: 135.76 | J202: 0 | K202: 0 | L202: 0 | M202: 135.76 | N202: C560
... 4298 more rows

Sheet CSLIST (hidden)
B1: Select a Charter School | C1: LEA
A2: 2 | B2: Abby Kelley Foster Charter Public School | C2: 445
A3: 3 | B3: Academy of the Pacific Rim Charter Public School | C3: 412
A4: 4 | B4: Advanced Math and Science Academy Charter School | C4: 430
A5: 5 | B5: Alma del Mar Charter School | C5: 409
A6: 6 | B6: Amesbury Academy Charter Public School | C6: 415
A7: 7 | B7: Argosy Collegiate Charter School | C7: 3509
A8: 8 | B8: Atlantis Charter School | C8: 491
A9: 9 | B9: Barnstable Community Horace Mann Charter Public School | C9: 427
A10: 10 | B10: Baystate Academy Charter Public School | C10: 3502
A11: 11 | B11: Benjamin Banneker Charter Public School | C11: 420
A12: 12 | B12: Benjamin Franklin Classical Charter Public School | C12: 447
A13: 13 | B13: Berkshire Arts and Technology Charter Public School | C13: 414
A14: 14 | B14: Boston Collegiate Charter School | C14: 449
A15: 15 | B15: Boston Day and Evening Academy Charter School | C15: 424
A16: 16 | B16: Boston Green Academy Horace Mann Charter School | C16: 411
A17: 17 | B17: Boston Preparatory Charter Public School | C17: 416
A18: 18 | B18: Boston Renaissance Charter Public School | C18: 481
A19: 19 | B19: Bridge Boston Charter School | C19: 417
A20: 20 | B20: Brooke Charter School East Boston | C20: 457
A21: 21 | B21: Brooke Charter School Mattapan | C21: 443
A22: 22 | B22: Brooke Charter School Roslindale | C22: 428
A23: 23 | B23: Cape Cod Lighthouse Charter School | C23: 432
A24: 24 | B24: Christa McAuliffe Charter School | C24: 418
A25: 25 | B25: City On A Hill Charter Public School | C25: 437
A26: 26 | B26: City On A Hill Charter Public School II | C26: 3504
A27: 27 | B27: City On A Hill Charter Public School New Bedford | C27: 3507
A28: 28 | B28: Codman Academy Charter Public School | C28: 438
A29: 29 | B29: Community Charter School of Cambridge | C29: 436
A30: 30 | B30: Community Day Charter Public School - Gateway | C30: 426
A31: 31 | B31: Community Day Charter Public School - Prospect | C31: 440
A32: 32 | B32: Community Day Charter Public School - R. Kingman Webster | C32: 431
A33: 33 | B33: Conservatory Lab Charter School | C33: 439
A34: 34 | B34: Dorchester Collegiate Academy Charter School | C34: 475
A35: 35 | B35: Dudley Street Neighborhood Charter School | C35: 407
A36: 36 | B36: Edward M. Kennedy Academy for Health Careers: A Horace Mann Charter Public School | C36: 452
A37: 37 | B37: Excel Academy Charter School | C37: 410
A38: 38 | B38: Four Rivers Charter Public School | C38: 413
A39: 39 | B39: Foxborough Regional Charter School | C39: 446
A40: 40 | B40: Francis W. Parker Charter Essential School | C40: 478
A41: 41 | B41: Global Learning Charter Public School | C41: 496
A42: 42 | B42: Hampden Charter School of Science | C42: 499
A43: 43 | B43: Helen Y Davis Leadership Academy Charter Public School | C43: 419
A44: 44 | B44: Hill View Montessori Charter Public School | C44: 455
A45: 45 | B45: Hilltown Cooperative Charter Public School | C45: 450
A46: 46 | B46: Holyoke Community Charter School | C46: 453
A47: 47 | B47: Innovation Academy Charter School | C47: 435
A48: 48 | B48: KIPP Academy Boston Charter School | C48: 463
A49: 49 | B49: KIPP Academy Lynn Charter School | C49: 429
A50: 50 | B50: Lawrence Family Development Charter School | C50: 454
A51: 51 | B51: Lowell Collegiate Charter School | C51: 3503
A52: 52 | B52: Lowell Community Charter Public School | C52: 456
A53: 53 | B53: Lowell Middlesex Academy Charter School | C53: 458
A54: 54 | B54: Marblehead Community Charter Public School | C54: 464
A55: 55 | B55: Martha's Vineyard Public Charter School | C55: 466
A56: 56 | B56: Martin Luther King, Jr. Charter School of Excellence | C56: 492
A57: 57 | B57: Match Charter Public School | C57: 469
A58: 58 | B58: Mystic Valley Regional Charter School | C58: 470
A59: 59 | B59: Neighborhood House Charter School | C59: 444
A60: 60 | B60: New Liberty Charter School of Salem | C60: 467
A61: 61 | B61: Paulo Freire Social Justice Charter School | C61: 3501
A62: 62 | B62: Phoenix Academy Charter Public High School, Chelsea | C62: 493
A63: 63 | B63: Phoenix Academy Public Charter High School, Springfield | C63: 3508
A64: 64 | B64: Pioneer Charter School of Science | C64: 494
A65: 65 | B65: Pioneer Charter School of Science II | C65: 3506
A66: 66 | B66: Pioneer Valley Chinese Immersion Charter School | C66: 497
A67: 67 | B67: Pioneer Valley Performing Arts Charter Public School | C67: 479
A68: 68 | B68: Prospect Hill Academy Charter School | C68: 487
A69: 69 | B69: Rising Tide Charter Public School | C69: 483
A70: 70 | B70: River Valley Charter School | C70: 482
A71: 71 | B71: Roxbury Preparatory Charter School | C71: 484
A72: 72 | B72: Sabis International Charter School | C72: 441
A73: 73 | B73: Salem Academy Charter School | C73: 485
A74: 74 | B74: Seven Hills Charter Public School | C74: 486
A75: 75 | B75: Silver Hill Horace Mann Charter School | C75: 477
A76: 76 | B76: Sizer School, A North Central Charter Essential School | C76: 474
A77: 77 | B77: South Shore Charter Public School | C77: 488
A78: 78 | B78: Springfield Preparatory Charter School | C78: 3510
A79: 79 | B79: Sturgis Charter Public School | C79: 489
A80: 80 | B80: UP Academy Charter School of Boston | C80: 480
A81: 81 | B81: UP Academy Charter School of Dorchester | C81: 3505
A82: 82 | B82: Veritas Preparatory Charter School | C82: 498
A83: 83 | B83: Commonwealth Charter Statewide Totals | C83: C
A84: 84 | B84: Horace Mann Charter Statewide Totals | C84: HM
A85: 85 | B85: All Charter Schools Statewide Totals | C85: ALL

Sheet FACTS (hidden)
A1: LEA | B1: Charter School | C1: Type | D1: Acct. Cohort | E1: Acct. Liaison | F1: Location | G1: Charter Status as of 10/20/14 | H1: Charter Granted | I1: Year Opened (Fall) | J1: FY15 Year of Oper. | K1: 1st Charter Renewal | L1: 2nd Charter Renewal | M1: 3rd Charter Renewal | N1: 1st Charter Renewal | O1: 2nd Charter Renewal | P1: 3rd Charter Renewal | Q1: Charter Expires | R1: Year Closed | S1: Regional | T1: EMO | U1: Max Grade Span | V1: Max. Enroll # | W1: Location Type | X1: School Type | Y1: Notes | Z1: Vendor Code | AA1: Max Enroll Reference #1 | AB1: Max Enroll Reference #2 | AC1: Max Grade Span Reference #1 | AD1: Max Grade Span Reference #2 | AE1: Max Notes (*5th year #'s in bold) | AF1: Operating Status | AG1: TypeOperating | AH1: RegionalOperating | AI1: EMOOperating | AJ1: Max. Enroll #Operating | AK1: Location TypeOperating | AL1: School TypeOperating | AM1: Max if Operating
A2: 445 | B2: Abby Kelley Foster Charter Public School | C2: C | D2: 2 | E2: Claire | F2: Worcester | G2: No Status | H2: 1998 | I2: 1998 | J2: =2015-I2 -> 17 | K2: =I2+5 -> 2003 | L2: =K2+5 -> 2008 | M2: 2013 | N2: =IF(K2>2014, "NA", K2) -> 2003 | O2: =IF(L2>2014, "NA", L2) -> 2008 | P2: =IF(M2>2014, "NA", M2) -> 2013 | Q2: =MAX(I2,N2:P2)+5 -> 2018 | R2: NA | S2: Yes | T2: Former | U2: K-12 | V2: 1426 | W2: Urban | X2: K12 | Z2: VC6000186162 | AA2: BOE minutes 10/30/07 Renewal; BOE minutes 4/25/06 max enrollment increase amendment | AB2: charter app, page 13; BOE Minutes 2/25/03 pg.10 charter renewal | AC2: BOE minutes 10/30/07 Renewal | AD2: charter app, page 13; BOE Minutes 2/25/03 pg.10 charter renewal | AF2: =IF(J2="NA","Closed",IF(J2<=0,"Pending","Operating")) -> Operating | AG2: =C2&AF2 -> COperating | AH2: =S2&AF2 -> YesOperating | AI2: =T2&AF2 -> FormerOperating | AJ2: =V2&AF2 -> 1426Operating | AK2: =W2&AF2 -> UrbanOperating | AL2: =X2&AF2 -> K12Operating | AM2: =IF(AF2="Operating", V2, "Not Operating") -> 1426
A3: 412 | B3: Academy of the Pacific Rim Charter Public School | C3: C | D3: 1 | E3: Puja | F3: Boston | G3: No Status | H3: 1995 | I3: 1997 | J3: 18 | K3: 2002 | L3: 2007 | M3: 2012 | N3: 2002 | O3: 2007 | P3: 2012 | Q3: 2017 | R3: NA | S3: No | T3: No | U3: 05-12 | V3: 545 | W3: Boston | X3: MSHS | Y3: 500 to 545 (45 seats 2/2013 BESE) | Z3: VC6000181650 | AA3: BOE minutes 2/27/07 renewal; BOE minutes 11/29/05 p. XXX Amendment approval | AB3: charter application p. 8; BOE Minutes 2/26/02 p.29 makes no mention of enrollment max in charter renewal; BESE mtg. 11/17/09 - increase enrollment from 475 to 500 | AC3: BOE minutes 2/27/07 renewal; BOE minutes 11/29/05 p. XXX Amendment approval | AD3: charter application p. 8 | AF3: Operating | AG3: COperating | AH3: NoOperating | AI3: NoOperating | AJ3: 545Operating | AK3: BostonOperating | AL3: MSHSOperating | AM3: 545
A4: 430 | B4: Advanced Math and Science Academy Charter School | C4: C | D4: 4 | E4: Sara | F4: Marlborough | G4: No Status | H4: 2004 | I4: 2005 | J4: 10 | K4: 2010 | L4: 2015 | M4: 2020 | N4: 2010 | O4: NA | P4: NA | Q4: 2015 | R4: NA | S4: Yes | T4: No | U4: 06-12 | V4: 966 | W4: Suburb | X4: MSHS | Z4: VC6000306988 | AA4: BOE Minutes 2/24/04 pg. 11 charter approved | AB4: BESE approval 2/23/10 | AC4: BOE Minutes 2/24/04 pg. 11 charter approved | AE4: * | AF4: Operating | AG4: COperating | AH4: YesOperating | AI4: NoOperating | AJ4: 966Operating | AK4: SuburbOperating | AL4: MSHSOperating | AM4: 966
A5: 409 | B5: Alma del Mar Charter School | C5: C | D5: 5 | E5: Sara | F5: New Bedford | G5: No Status | H5: 2011 | I5: 2011 | J5: 4 | K5: 2016 | L5: 2021 | M5: 2026 | N5: NA | O5: NA | P5: NA | Q5: 2016 | R5: NA | S5: No | T5: No | U5: K-08 | V5: 360 | W5: Urban | X5: ESMS | Z5: VC0000546618 | AA5: BESE Minutes 2/28/11 | AC5: BESE Minutes 2/28/11 | AF5: Operating | AG5: COperating | AH5: NoOperating | AI5: NoOperating | AJ5: 360Operating | AK5: UrbanOperating | AL5: ESMSOperating | AM5: 360
A6: 415 | B6: Amesbury Academy Charter Public School | C6: HM | D6: 5 | E6: Sara | F6: Amesbury | G6: No Status | H6: 2001 | I6: 2001 | J6: 14 | K6: 2006 | L6: 2011 | M6: 2016 | N6: 2006 | O6: 2011 | P6: NA | Q6: 2016 | R6: NA | S6: NA | T6: No | U6: 9-12 | V6: 50 | W6: Rural | X6: HS | Z6: VC6000189819 | AA6: BOE minutes 02/28/06 p.6 | AB6: BOE minutes 02/27/01 pg.22 charter granted | AC6: BOE minutes 02/28/06 p.6 | AD6: BOE minutes 02/27/01 pg.22 charter granted | AF6: Operating | AG6: HMOperating | AH6: NAOperating | AI6: NoOperating | AJ6: 50Operating | AK6: RuralOperating | AL6: HSOperating | AM6: 50
A7: 3509 | B7: Argosy Collegiate Charter School | C7: C | D7: 3 | E7: Jane | F7: Fall River | G7: No Status | H7: 2014 | I7: 2014 | J7: 1 | K7: 2019 | L7: 2024 | M7: 2029 | N7: NA | O7: NA | P7: NA | Q7: 2019 | R7: NA | S7: No | T7: No | U7: 6-12 | V7: 644 | W7: Urban | X7: MSHS | Z7: VC0000723940 | AF7: Operating | AG7: COperating | AH7: NoOperating | AI7: NoOperating | AJ7: 644Operating | AK7: UrbanOperating | AL7: MSHSOperating | AM7: 644
A8: 491 | B8: Atlantis Charter School | C8: C | D8: 4 | E8: Claire | F8: Fall River | G8: No Status | H8: 1994 | I8: 1995 | J8: 20 | K8: 2000 | L8: 2005 | M8: 2010 | N8: 2000 | O8: 2005 | P8: 2010 | Q8: 2015 | R8: NA | S8: No | T8: No | U8: K-12 | V8: 1378 | W8: Urban | X8: K12 | Z8: VC6000181845 | AA8: BOE Minutes 2/14/05 p. 6-7 | AB8: BOE Minutes 2/23/2000 p.39 makes no mention of enrollment max in charter renewal; charter renewal application p.25 | AC8: charter application p. 40 | AF8: Operating | AG8: COperating | AH8: NoOperating | AI8: NoOperating | AJ8: 1378Operating | AK8: UrbanOperating | AL8: K12Operating | AM8: 1378
A9: 427 | B9: Barnstable Community Horace Mann Charter Public School | C9: HM | D9: 3 | E9: Ellie | F9: Barnstable | G9: Conditions | H9: 2004 | I9: 2004 | J9: 11 | K9: 2009 | L9: 2014 | M9: 2019 | N9: 2009 | O9: 2014 | P9: NA | Q9: 2019 | R9: NA | S9: NA | T9: No | U9: K-03 | V9: 475 | W9: Suburb | X9: ES | Y9: Grade span amended to K-3 in 4/09. | Z9: VC6000263084 | AA9: BESE Minutes 2/24/09 pg.10 charter renewed; BOE Minutes 3/29/05 pg. 6, amendment approved for 370 to 475 increase (described in 3/22/05 Memo) and reiterated in 4/1/05 MS Letter | AB9: BOE Minutes 2/24/04 pg. 12 charter granted | AC9: BESE Minutes 2/24/09 pg.10 charter renewed; BOE Minutes 2/24/04 pg. 11 charter approved | AE9: * | AF9: Operating | AG9: HMOperating | AH9: NAOperating | AI9: NoOperating | AJ9: 475Operating | AK9: SuburbOperating | AL9: ESOperating | AM9: 475
A10: 3502 | B10: Baystate Academy Charter Public School | C10: C | D10: 2 | E10: Claire | F10: Springfield | G10: No Status | H10: 2012 | I10: 2013 | J10: 2 | K10: 2018 | L10: 2023 | M10: 2028 | N10: NA | O10: NA | P10: NA | Q10: 2018 | R10: NA | S10: No | T10: No | U10: 6-12 | V10: 560 | W10: Urban | X10: MSHS | Z10: VC0000607947 | AA10: BESE minutes 2/12 | AF10: Operating | AG10: COperating | AH10: NoOperating | AI10: NoOperating | AJ10: 560Operating | AK10: UrbanOperating | AL10: MSHSOperating | AM10: 560
A11: 420 | B11: Benjamin Banneker Charter Public School | C11: C | D11: 5 | E11: Puja | F11: Cambridge | G11: No Status | H11: 1995 | I11: 1996 | J11: 19 | K11: 2001 | L11: 2006 | M11: 2011 | N11: 2001 | O11: 2006 | P11: 2011 | Q11: 2016 | R11: NA | S11: No | T11: No | U11: K-06 | V11: 350 | W11: Urban | X11: ESMS | Y11: Per BOE 1/24/06; restricted to 325 for FY07 until it meets renewal conditions. | Z11: VC6000182073 | AA11: BESE Minutes 2/24/09 pg.13 decrease enrollment to 325;BOE minutes 01/24/06, p.4 | AB11: BOE Minutes 2/27/01 p.25 makes no mention of enrollment max in charter renewal; 3/26/1999 amend letter - E. Kirby | AC11: BOE minutes 01/24/06, p.4 | AD11: charter application p. 16 says max enrollment of 1340 | AF11: Operating | AG11: COperating | AH11: NoOperating | AI11: NoOperating | AJ11: 350Operating | AK11: UrbanOperating | AL11: ESMSOperating | AM11: 350
A12: 447 | B12: Benjamin Franklin Classical Charter Public School | C12: C | D12: 4 | E12: Sara | F12: Franklin | G12: No Status | H12: 1994 | I12: 1995 | J12: 20 | K12: 2000 | L12: 2005 | M12: 2010 | N12: 2000 | O12: 2005 | P12: 2010 | Q12: 2015 | R12: NA | S12: Yes | T12: No | U12: K-08 | V12: 900 | W12: Suburb | X12: ESMS | Z12: VC6000181823 | AA12: charter renewal app pg. 24 states 9 grades of 2 classes of 20-25 students each (9*2*25=450) | AB12: BOE Minutes 4/27991 p.19 makes no mention of enrollment max in charter renewal | AC12: charter renewal app pg. 24 | AF12: Operating | AG12: COperating | AH12: YesOperating | AI12: NoOperating | AJ12: 900Operating | AK12: SuburbOperating | AL12: ESMSOperating | AM12: 900
A13: 414 | B13: Berkshire Arts and Technology Charter Public School | C13: C | D13: 3 | E13: Sara | F13: Adams | G13: No Status | H13: 2003 | I13: 2004 | J13: 11 | K13: 2009 | L13: 2014 | M13: 2019 | N13: =IF(K13>2014, "NA", K13) -> 2009 | O13: 2013 | P13: =IF(M13>2014, "NA", M13) -> NA | Q13: 2018 | R13: NA | S13: Yes | T13: No | U13: 06-12 | V13: 363 | W13: Rural | X13: MSHS | Z13: VC6000246485 | AA13: BESE Minutes 1/27/09 pg.5-6 charter renewed; BOE Minutes 2/25/03 pg.8 charter granted | AC13: BESE Minutes 1/27/09 pg.5-6 charter renewed;BOE Minutes 2/25/03 pg.8 charter granted | AE13: * | AF13: Operating | AG13: COperating | AH13: YesOperating | AI13: NoOperating | AJ13: 363Operating | AK13: RuralOperating | AL13: MSHSOperating | AM13: 363
A14: 449 | B14: Boston Collegiate Charter School | C14: C | D14: 2 | E14: Ellie | F14: Boston | G14: No Status | H14: 1998 | I14: 1998 | J14: 17 | K14: 2003 | L14: 2008 | M14: 2013 | N14: 2003 | O14: =IF(L14>2014, "NA", L14) -> 2008 | P14: 2013 | Q14: 2018 | R14: NA | S14: No | T14: No | U14: 05-12 | V14: 665 | W14: Boston | X14: MSHS | Y14: Formerly South Boston Harbor Academy; will not add second 05-08 campus until FY08 | Z14: VC6000185891 | AA14: BOE minutes 01/22/08 renewal vote; BOE minutes 11/29/05 p. XXX Amendment approval | AB14: BOE Minutes 01/28/03 p. 5 charter renewal | AC14: BOE minutes 01/22/08 renewal vote; BOE Minutes 01/28/03 p. 5 charter renewal | AF14: Operating | AG14: COperating | AH14: NoOperating | AI14: NoOperating | AJ14: 665Operating | AK14: BostonOperating | AL14: MSHSOperating | AM14: 665
A15: 424 | B15: Boston Day and Evening Academy Charter School | C15: HM | D15: 2 | E15: Alison | F15: Boston | G15: No Status | H15: 1998 | I15: 1998 | J15: 17 | K15: 2003 | L15: 2008 | M15: 2013 | N15: 2003 | O15: 2008 | P15: 2013 | Q15: 2018 | R15: NA | S15: NA | T15: No | U15: 09-12 | V15: 405 | W15: Boston | X15: HS | Y15: Ungrade ages 16-23 | Z15: VC6000197778 | AA15: BOE minutes 01/22/08 renewal vote; BOE Minutes 06/22/04 p. 5 charter amendment to add day program and increase enrollment from 205-405;and 6/15/04 Commissioner's rec. in file | AB15: BOE Minutes 01/28/03 p. 6 charter renewal | AC15: BOE minutes 01/22/08 renewal vote; BOE Minutes 06/22/04 p. 5 charter amendment to add day program and increase enrollment from 205-405;and 6/15/04 Commissioner's rec. in file | AD15: BOE Minutes 01/28/03 p. 6 charter renewal | AF15: Operating | AG15: HMOperating | AH15: NAOperating | AI15: NoOperating | AJ15: 405Operating | AK15: BostonOperating | AL15: HSOperating | AM15: 405
A16: 411 | B16: Boston Green Academy Horace Mann Charter School | C16: HM | D16: 5 | E16: Claire | F16: Boston | G16: Probation | H16: 2011 | I16: 2011 | J16: 4 | K16: 2016 | L16: 2021 | M16: 2026 | N16: NA | O16: NA | P16: NA | Q16: 2016 | R16: NA | S16: NA | T16: No | U16: 6-12 | V16: 595 | W16: Boston | X16: MSHS | Z16: VC0000551592 | AA16: BESE Minutes 2/28/11 | AC16: BESE Minutes 2/28/11 | AF16: Operating | AG16: HMOperating | AH16: NAOperating | AI16: NoOperating | AJ16: 595Operating | AK16: BostonOperating | AL16: MSHSOperating | AM16: 595
A17: 416 | B17: Boston Preparatory Charter Public School | C17: C | D17: 3 | E17: Jane | F17: Boston | G17: No Status | H17: 2003 | I17: 2004 | J17: 11 | K17: 2009 | L17: 2014 | M17: 2019 | N17: 2009 | O17: 2014 | P17: NA | Q17: 2019 | R17: NA | S17: No | T17: No | U17: 06-12 | V17: 400 | W17: Boston | X17: MSHS | Z17: VC6000237205 | AA17: BESE Minutes 2/24/09 pg.10 charter renewed; BOE Minutes 10/25/05 p.8-9 Amendment approval (details in Board Memo dated 10/25/05) | AB17: BOE Minutes 2/25/03 pg.8 charter granted; BESE mtg 11/17/09 increase from 350 to 400 | AC17: BESE Minutes 2/24/09 pg.10 charter renewed; BOE Minutes for 02/26/08 | AD17: BOE Minutes 2/25/03 pg.8 charter granted | AE17: * | AF17: Operating | AG17: COperating | AH17: NoOperating | AI17: =T17&AF17 -> NoOperating | AJ17: 400Operating | AK17: BostonOperating | AL17: MSHSOperating | AM17: 400
A18: 481 | B18: Boston Renaissance Charter Public School | C18: C | D18: 4 | E18: Alison | F18: Boston | G18: Probation | H18: 1994 | I18: 1995 | J18: 20 | K18: 2000 | L18: 2005 | M18: 2010 | N18: 2000 | O18: 2005 | P18: 2010 | Q18: 2015 | R18: NA | S18: No | T18: Former | U18: PK-06 | V18: 944 | W18: Boston | X18: ESMS | Z18: VC6000182082 | AA18: BOE Minutes 02/27/07 Additional Conditions | AB18: BOE Minutes 09/26/06 Amendment; BOE Minutes 2/15/05 p. 8; BOE Minutes 12/21/1999 p. 23 charter renewal makes no mention of enro. max in ; charter renewal application p. 24 | AC18: BOE Minutes 2/15/05 p. 8; charter application p. 10 plans for K-12 | AD18: charter renewal application p. 24 indications K-8 | AF18: Operating | AG18: COperating | AH18: NoOperating | AI18: =T18&AF18 -> FormerOperating | AJ18: 944Operating | AK18: BostonOperating | AL18: ESMSOperating | AM18: 944
A19: 417 | B19: Bridge Boston Charter School | C19: C | D19: 5 | E19: Ellie | F19: Boston | G19: No Status | H19: 2011 | I19: 2011 | J19: 4 | K19: 2016 | L19: 2021 | M19: 2026 | N19: NA | O19: NA | P19: NA | Q19: 2016 | R19: NA | S19: No | T19: No | U19: PK-8 | V19: 335 | W19: Boston | X19: ESMS | Z19: VC0000546498 | AA19: SY 2011-12 max enroll is 72 per MDC | AC19: BESE Minutes 2/28/11 | AF19: Operating | AG19: COperating | AH19: NoOperating | AI19: NoOperating | AJ19: 335Operating | AK19: BostonOperating | AL19: ESMSOperating | AM19: 335
A20: 457 | B20: Brooke Charter School East Boston | C20: C | D20: 1 | E20: Jane | F20: Boston | G20: No Status | H20: 2011 | I20: 2012 | J20: 3 | K20: 2017 | L20: 2022 | M20: 2027 | N20: NA | O20: NA | P20: NA | Q20: 2017 | R20: NA | S20: Yes | T20: No | U20: K-08 | V20: =475+35 -> 510 | W20: Boston | X20: ESMS | Y20: 475 to 510 (35 seats 2/2013 BESE). No more than 340 students may enroll from Boston. | Z20: VC0000571755 | AA20: SY 2012-13 max enroll TBD by MDC | AC20: BESE Minutes 2/28/11 | AF20: Operating | AG20: COperating | AH20: YesOperating | AI20: =T20&AF20 -> NoOperating | AJ20: 510Operating | AK20: BostonOperating | AL20: ESMSOperating | AM20: 510
A21: 443 | B21: Brooke Charter School Mattapan | C21: C | D21: 5 | E21: Jane | F21: Boston | G21: No Status | H21: 2011 | I21: 2011 | J21: 4 | K21: 2016 | L21: 2021 | M21: 2026 | N21: NA | O21: NA | P21: NA | Q21: 2016 | R21: NA | S21: No | T21: No | U21: K-08 | V21: =475+35 -> 510 | W21: Boston | X21: ESMS | Y21: 475 to 510 (35 seats 2/2013 BESE) | Z21: VC0000549165 | AA21: SY 2011-12 max enroll is 168 per MDC | AC21: BESE Minutes 2/28/11 | AF21: Operating | AG21: COperating | AH21: NoOperating | AI21: NoOperating | AJ21: 510Operating | AK21: BostonOperating | AL21: ESMSOperating | AM21: 510
A22: 428 | B22: Brooke Charter School Roslindale | C22: C | D22: 1 | E22: Jane | F22: Boston | G22: No Status | H22: 2001 | I22: 2002 | J22: 13 | K22: 2007 | L22: =K22+5 -> 2012 | M22: 2017 | N22: 2007 | O22: 2012 | P22: NA | Q22: 2017 | R22: NA | S22: No | T22: No | U22: K-08 | V22: =475+35 -> 510 | W22: Boston | X22: ESMS | Y22: 475 to 510 (35 seats 2/2013 BESE) | Z22: VC6000189753 | AA22: BOE minutes 2/27/07 renewal; BOE minutes 10/24/06 pp. 10-11 | AB22: BOE minutes 02/27/01 pg.22 charter granted; BESE mtg. 11/17/09 - increase enrollment from 450-475 | AC22: BOE minutes 2/27/07 renewal; BOE Minutes 10/25/05 p.8-9 Amendment approval (details in Board Memo dated 10/25/05) | AD22: BOE minutes 02/27/01 pg.22 charter granted | AF22: Operating | AG22: COperating | AH22: NoOperating | AI22: NoOperating | AJ22: 510Operating | AK22: BostonOperating | AL22: ESMSOperating | AM22: 510
A23: 432 | B23: Cape Cod Lighthouse Charter School | C23: C | D23: 4 | E23: Jane | F23: Harwich | G23: No Status | H23: 1994 | I23: 1995 | J23: 20 | K23: 2000 | L23: 2005 | M23: 2010 | N23: 2000 | O23: 2005 | P23: 2010 | Q23: 2015 | R23: NA | S23: Yes | T23: No | U23: 06-12 | V23: 400 | W23: Suburb | X23: MSHS | Z23: VC6000190146 | AA23: BOE Minutes 03/29/05 p.4 | AB23: BOE 9/28/99 Charter Renewal No online Minutes; amend approval 11/5/02 KM letter | AC23: BOE Minutes 03/29/05 p.4 | AD23: amend approval 11/5/02 KM letter | AF23: Operating | AG23: COperating | AH23: YesOperating | AI23: NoOperating | AJ23: 400Operating | AK23: SuburbOperating | AL23: MSHSOperating | AM23: 400
A24: 418 | B24: Christa McAuliffe Charter School | C24: C | D24: 1 | E24: Sara | F24: Framingham | G24: No Status | H24: 2001 | I24: 2002 | J24: 13 | K24: 2007 | L24: 2012 | M24: 2017 | N24: 2007 | O24: 2012 | P24: NA | Q24: 2017 | R24: NA | S24: Yes | T24: No | U24: 06-08 | V24: 396 | W24: Suburb | X24: MS | Y24: Formerly Framingham Community CS | Z24: VC6000189786 | AA24: BOE minutes 2/27/07 renewal; BOE minutes 02/27/01 pg.22 charter granted | AC24: BOE minutes 2/27/07 renewal; BOE minutes 02/27/01 pg.22 charter granted | AF24: Operating | AG24: COperating | AH24: YesOperating | AI24: NoOperating | AJ24: 396Operating | AK24: SuburbOperating | AL24: MSOperating | AM24: 396
A25: 437 | B25: City On A Hill Charter Public School | C25: C | D25: 4 | E25: Puja | F25: Boston | G25: No Status | H25: 1994 | I25: 1995 | J25: 20 | K25: 2000 | L25: 2005 | M25: 2010 | N25: 2000 | O25: 2005 | P25: 2010 | Q25: 2015 | R25: NA | S25: No | T25: Former | U25: 09-12 | V25: 280 | W25: Boston | X25: HS | Z25: VC6000179704 | AA25: BOE minutes 10/24/06 pp. 10-11 | AB25: BOE Minutes 2/15/05 p. 9; BOE Minutes 01/25/00 p.19 charter renewal makes no mention of enrollment max | AC25: BOE Minutes 2/15/05 p. 9 | AD25: charter app | AF25: Operating | AG25: COperating | AH25: NoOperating | AI25: FormerOperating | AJ25: 280Operating | AK25: BostonOperating | AL25: HSOperating | AM25: 280
A26: 3504 | B26: City On A Hill Charter Public School II | C26: C | D26: 2 | E26: Puja | F26: Boston | G26: No Status | H26: 2013 | I26: 2013 | J26: 2 | K26: 2018 | L26: 2023 | M26: 2028 | N26: NA | O26: NA | P26: NA | Q26: 2018 | R26: NA | S26: No | T26: No | U26: 09-12 | V26: 280 | W26: Boston | X26: HS | Z26: VC0000663070 | AA26: BESE minutes 2/13 | AF26: Operating | AG26: COperating | AH26: NoOperating | AI26: NoOperating | AJ26: 280Operating | AK26: BostonOperating | AL26: HSOperating | AM26: 280
A27: 3507 | B27: City On A Hill Charter Public School New Bedford | C27: C | D27: 3 | E27: Puja | F27: New Bedford | G27: No Status | H27: 2013 | I27: 2014 | J27: 1 | K27: 2019 | L27: 2024 | M27: 2029 | N27: NA | O27: NA | P27: NA | Q27: 2019 | R27: NA | S27: No | T27: No | U27: 09-12 | V27: 280 | W27: Urban | X27: HS | Z27: VC0000663075 | AA27: BESE minutes 2/13 | AF27: Operating | AG27: COperating | AH27: NoOperating | AI27: NoOperating | AJ27: 280Operating | AK27: UrbanOperating | AL27: HSOperating | AM27: 280
A28: 438 | B28: Codman Academy Charter Public School | C28: C | D28: 5 | E28: Puja | F28: Boston | G28: No Status | H28: 2001 | I28: 2001 | J28: 14 | K28: 2006 | L28: 2011 | M28: 2016 | N28: 2006 | O28: 2011 | P28: NA | Q28: 2016 | R28: NA | S28: No | T28: No | U28: PK-12 | V28: 345 | W28: Boston | X28: K12 | Y28: 200 to 345 and also added K1-08 (145 seats 2/13 BESE). | Z28: VC6000189729 | AA28: BOE minutes 12/20/05 Renewal | AB28: BOE minutes 02/27/01 pg.22 charter granted; BESE mtg. 11/17/09 increase enrollment from 120 to 145 | AC28: BOE minutes 02/27/01 pg.22 charter granted | AF28: Operating | AG28: COperating | AH28: NoOperating | AI28: NoOperating | AJ28: 345Operating | AK28: BostonOperating | AL28: K12Operating | AM28: 345
A29: 436 | B29: Community Charter School of Cambridge | C29: C | D29: 4 | E29: Claire | F29: Cambridge | G29: No Status | H29: 2004 | I29: 2005 | J29: 10 | K29: 2010 | L29: 2015 | M29: 2020 | N29: 2010 | O29: NA | P29: NA | Q29: 2015 | R29: NA | S29: No | T29: No | U29: 06-12 | V29: 360 | W29: Urban | X29: MSHS | Y29: limited to 300 students from Cambridge | Z29: VC6000307227 | AA29: BOE Minutes 2/24/04 pg. 10 charter approved | AC29: BOE Minutes 2/24/04 pg. 10 charter approved | AE29: * | AF29: Operating | AG29: COperating | AH29: NoOperating | AI29: NoOperating | AJ29: 360Operating | AK29: UrbanOperating | AL29: MSHSOperating | AM29: 360
A30: 426 | B30: Community Day Charter Public School - Gateway | C30: C | D30: 1 | E30: Puja | F30: Lawrence | G30: No Status | H30: 2011 | I30: 2012 | J30: 3 | K30: 2017 | L30: 2022 | M30: 2027 | N30: NA | O30: NA | P30: NA | Q30: 2017 | R30: NA | S30: No | T30: Yes | U30: PK-08 | V30: 400 | W30: Urban | X30: ESMS | Z30: VC0000550018 | AA30: BESE Minutes 2/28/11 | AC30: BESE Minutes 2/28/11 | AF30: Operating | AG30: COperating | AH30: NoOperating | AI30: YesOperating | AJ30: 400Operating | AK30: UrbanOperating | AL30: ESMSOperating | AM30: 400
A31: 440 | B31: Community Day Charter Public School - Prospect | C31: C | D31: 4 | E31: Puja | F31: Lawrence | G31: No Status | H31: 1994 | I31: 1995 | J31: 20 | K31: 2000 | L31: 2005 | M31: 2010 | N31: 2000 | O31: 2005 | P31: 2010 | Q31: 2015 | R31: NA | S31: No | T31: Yes | U31: PK-08 | V31: 400 | W31: Urban | X31: ESMS | Y31: 331 to 400 (69 seats 2/2013 BESE) | Z31: VC6000181392 | AA31: BOE minutes 10/24/06 pp. 10-11 | AB31: amend approval 3/7/00- SMB letter; BOE Minutes 4/27/99 p.19 makes no mention of enrollment max in charter renewal | AC31: charter application p. 19 | AF31: Operating | AG31: COperating | AH31: NoOperating | AI31: YesOperating | AJ31: 400Operating | AK31: UrbanOperating | AL31: ESMSOperating | AM31: 400
A32: 431 | B32: Community Day Charter Public School - R. Kingman Webster | C32: C | D32: 1 | E32: Puja | F32: Lawrence | G32: No Status | H32: 2011 | I32: 2012 | J32: 3 | K32: 2017 | L32: 2022 | M32: 2027 | N32: NA | O32: NA | P32: NA | Q32: 2017 | R32: NA | S32: No | T32: Yes | U32: PK-08 | V32: 400 | W32: Urban | X32: ESMS | Z32: VC0000550028 | AA32: BESE Minutes 2/28/11 | AC32: BESE Minutes 2/28/11 | AF32: Operating | AG32: COperating | AH32: NoOperating | AI32: YesOperating | AJ32: 400Operating | AK32: UrbanOperating | AL32: ESMSOperating | AM32: 400
A33: 439 | B33: Conservatory Lab Charter School | C33: C | D33: 3 | E33: Claire | F33: Boston | G33: No Status | H33: 1998 | I33: 1999 | J33: 16 | K33: 2004 | L33: 2009 | M33: 2014 | N33: 2004 | O33: 2009 | P33: 2014 | Q33: 2019 | R33: NA | S33: No | T33: No | U33: PK-08 | V33: =169+275 -> 444 | W33: Boston | X33: ESMS | Y33: 154 to 169 (15 seats 2/2011 BESE) added gr 6 2/2011. 160 to 444, added grade 7 and 8 (275 seats 2/2013 BESE) | Z33: VC6000185936 | AA33: BOE Minutes 10/25/05 p.8-9 Amendment approval (details in Board Memo dated 10/25/05) | AB33: BESE Minutes 1/27/09 pg.6 charter renewed; charter amend 4/3/03- KM letter; BOE Minutes 2/24/04 pg. 6 charter renewal | AC33: BESE Minutes 06/25/08 - grade span change to PK-05; BOE Minutes 10/25/05 p.8-9 Amendment approval (details in Board Memo dated 10/25/05) | AD33: BESE Minutes 1/27/09 pg.6 charter renewed; BOE Minutes 2/24/04 pg. 6 charter renewal | AF33: Operating | AG33: COperating | AH33: NoOperating | AI33: NoOperating | AJ33: 444Operating | AK33: BostonOperating | AL33: ESMSOperating | AM33: 444
A34: 475 | B34: Dorchester Collegiate Academy Charter School | C34: C | D34: 3 | E34: Alison | F34: Boston | G34: Probation | H34: 2008 | I34: 2009 | J34: =2015-I34 -> 6 | K34: =I34+5 -> 2014 | L34: 2019 | M34: 2024 | N34: 2014 | O34: NA | P34: NA | Q34: =MAX(I34,N34:P34)+5 -> 2019 | R34: NA | S34: No | T34: No | U34: 04-08 | V34: 238 | W34: Boston | X34: ESMS | Z34: VC0000400784 | AA34: BOE minutes 2/26/08 charter granting | AC34: BOE minutes 2/26/08 charter granting | AF34: =IF(J34="NA","Closed",IF(J34<=0,"Pending","Operating")) -> Operating | AG34: =C34&AF34 -> COperating | AH34: =S34&AF34 -> NoOperating | AI34: NoOperating | AJ34: =V34&AF34 -> 238Operating | AK34: =W34&AF34 -> BostonOperating | AL34: =X34&AF34 -> ESMSOperating | AM34: =IF(AF34="Operating", V34, "Not Operating") -> 238
A35: 407 | B35: Dudley Street Neighborhood Charter School | C35: HM | D35: 1 | E35: Puja | F35: Boston | G35: No Status | H35: 2012 | I35: 2012 | J35: 3 | K35: 2017 | L35: 2022 | M35: 2027 | N35: NA | O35: NA | P35: NA | Q35: 2017 | R35: NA | S35: NA | T35: No | U35: PK-5 | V35: 308 | W35: Boston | X35: ES | Z35: VC0000621215 | AA35: BESE minutes 2/12 | AF35: Operating | AG35: HMOperating | AH35: NAOperating | AI35: NoOperating | AJ35: 308Operating | AK35: BostonOperating | AL35: ESOperating | AM35: 308
A36: 452 | B36: Edward M. Kennedy Academy for Health Careers: A Horace Mann Charter Public School | C36: HM | D36: 2 | E36: Ellie | F36: Boston | G36: No Status | H36: 1998 | I36: 1998 | J36: 17 | K36: 2003 | L36: 2008 | M36: 2013 | N36: 2003 | O36: 2008 | P36: 2013 | Q36: 2018 | R36: NA | S36: NA | T36: No | U36: 09-12 | V36: 448 | W36: Boston | X36: HS | Z36: VC6000186031 | AA36: BOE minutes 01/22/08 renewal vote; BOE Minutes 2/25/2003 p.10 charter renewal | AB36: charter app | AC36: BOE minutes 01/22/08 renewal vote; BOE Minutes 2/25/2003 p.10 charter renewal | AD36: charter app | AF36: Operating | AG36: HMOperating | AH36: NAOperating | AI36: NoOperating | AJ36: 448Operating | AK36: BostonOperating | AL36: HSOperating | AM36: 448
A37: 410 | B37: Excel Academy Charter School | C37: C | D37: 2 | E37: Claire | F37: Boston | G37: No Status | H37: 2003 | I37: 2003 | J37: 12 | K37: 2008 | L37: 2013 | M37: 2018 | N37: 2008 | O37: 2013 | P37: NA | Q37: 2018 | R37: NA | S37: Yes | T37: No | U37: 05-12 | V37: 1344 | W37: Boston | X37: MSHS | Y37: limited to 200 students from Boston. 300 to 448 (148 seats 2/2013 BESE) and added grades 9-12. | Z37: VC6000244691 | AA37: BOE minutes 01/22/08 renewal vote; BOE Minutes 10/25/05 p.8-9 Amendment approval (details in Board Memo dated 10/25/05) | AB37: BOE Minutes 2/25/03 pg.8 charter granted | AC37: BOE minutes 01/22/08 renewal vote; BOE Minutes 12/21/04 pg.6 amendment to add grade 5 granted | AD37: BOE Minutes 2/25/03 pg.8 charter granted | AE37: * | AF37: Operating | AG37: COperating | AH37: YesOperating | AI37: NoOperating | AJ37: 1344Operating | AK37: BostonOperating | AL37: MSHSOperating | AM37: 1344
A38: 413 | B38: Four Rivers Charter Public School | C38: C | D38: 2 | E38: Sara | F38: Greenfield | G38: No Status | H38: 2002 | I38: 2003 | J38: 12 | K38: 2008 | L38: 2013 | M38: 2018 | N38: 2008 | O38: 2013 | P38: NA | Q38: 2018 | R38: NA | S38: Yes | T38: No | U38: 07-12 | V38: 220 | W38: Urban | X38: MSHS | Y38: 212 to 220 (8 seats 2/2013 BESE) | Z38: VC6000235268 | AA38: BESE Minutes 10/21/08 add 20 students to 212 max; BOE minutes 01/22/08 renewal vote; 4/3/03 KM letter approving charter amendment "on or about November 12, 2002" to increase max to 192 (from 180) | AB38: BOE Minutes 2/27/02 pg.26 charter granted for 180* max enroll. | AC38: BOE minutes 01/22/08 renewal vote; 4/3/03 KM letter approving charter amendment "on or about November 12, 2002" to increase max to 192 (from 180) | AD38: BOE Minutes 2/27/02 pg.26 charter granted for 7-12* | AE38: * | AF38: Operating | AG38: COperating | AH38: YesOperating | AI38: NoOperating | AJ38: 220Operating | AK38: UrbanOperating | AL38: MSHSOperating | AM38: 220
A39: 446 | B39: Foxborough Regional Charter School | C39: C | D39: 2 | E39: Puja | F39: Foxborough | G39: No Status | H39: 1998 | I39: 1998 | J39: 17 | K39: 2003 | L39: 2008 | M39: 2013 | N39: 2003 | O39: 2008 | P39: 2013 | Q39: 2018 | R39: NA | S39: Yes | T39: Former | U39: K-12 | V39: 1300 | W39: Suburb | X39: K12 | Z39: VC6000186153 | AA39: BOE minutes 10/30/07 Renewal | AB39: charter app; BOE Minutes 2/25/03 pg.10 charter renewal | AC39: BOE minutes 10/30/07 Renewal | AD39: charter app; BOE Minutes 2/25/03 pg.10 charter renewal | AF39: Operating | AG39: COperating | AH39: YesOperating | AI39: FormerOperating | AJ39: 1300Operating | AK39: SuburbOperating | AL39: K12Operating | AM39: 1300
A40: 478 | B40: Francis W. Parker Charter Essential School | C40: C | D40: 4 | E40: Jane | F40: Devens | G40: No Status | H40: 1994 | I40: 1995 | J40: 20 | K40: 2000 | L40: 2005 | M40: 2010 | N40: 2000 | O40: 2005 | P40: 2010 | Q40: 2015 | R40: NA | S40: Yes | T40: No | U40: 07-12 | V40: 400 | W40: Suburb | X40: MSHS | Z40: VC6000182144 | AA40: charter application p. 19 (states 350-400 students) | AB40: BOE Charter renewal on 6/29/99 Minutes can't be found!! | AC40: charter application p. 19 (states 350-400 students) | AF40: Operating | AG40: COperating | AH40: YesOperating | AI40: NoOperating | AJ40: 400Operating | AK40: SuburbOperating | AL40: MSHSOperating | AM40: 400
A41: 496 | B41: Global Learning Charter Public School | C41: C | D41: 1 | E41: Alison | F41: New Bedford | G41: Probation | H41: 2006 | I41: 2007 | J41: 8 | K41: 2012 | L41: 2017 | M41: 2022 | N41: 2012 | O41: NA | P41: NA | Q41: 2017 | R41: NA | S41: No | T41: No | U41: 05-12 | V41: 500 | W41: Urban | X41: MSHS | Z41: VC0000270629 | AA41: BESE Minutes 10/21/08 add 50 students to 500 max; BOE Minutes 2/28/06, p.5 | AC41: BOE Minutes 2/28/06, p.5 | AF41: Operating | AG41: COperating | AH41: NoOperating | AI41: NoOperating | AJ41: 500Operating | AK41: UrbanOperating | AL41: MSHSOperating | AM41: 500
A42: 499 | B42: Hampden Charter School of Science | C42: C | D42: 3 | E42: Jane | F42: Chicopee | G42: Conditions | H42: 2008 | I42: 2009 | J42: 6 | K42: 2014 | L42: =K42+5 -> 2019 | M42: 2024 | N42: 2014 | O42: NA | P42: NA | Q42: 2019 | R42: NA | S42: Yes | T42: No | U42: 06-12 | V42: 350 | W42: Urban | X42: MSHS | Z42: VC0000401908 | AA42: BOE minutes 2/26/08 charter granting | AC42: BOE minutes 2/26/08 charter granting | AF42: Operating | AG42: COperating | AH42: YesOperating | AI42: NoOperating | AJ42: 350Operating | AK42: UrbanOperating | AL42: MSHSOperating | AM42: 350
A43: 419 | B43: Helen Y Davis Leadership Academy Charter Public School | C43: C | D43: 2 | E43: Alison | F43: Boston | G43: No Status | H43: 2002 | I43: 2003 | J43: 12 | K43: 2008 | L43: 2013 | M43: 2018 | N43: 2008 | O43: 2013 | P43: NA | Q43: 2018 | R43: NA | S43: No | T43: No | U43: 06-08 | V43: 216 | W43: Boston | X43: MS | Z43: VC6000190485 | AA43: BOE minutes 01/22/08 renewal vote; BOE Minutes 2/26/02 p. 28 charter granted | AC43: BOE minutes 01/22/08 renewal vote; BOE Minutes 2/26/02 p. 28 charter granted | AE43: * | AF43: Operating | AG43: COperating | AH43: NoOperating | AI43: NoOperating | AJ43: 216Operating | AK43: BostonOperating | AL43: MSOperating | AM43: 216
A44: 455 | B44: Hill View Montessori Charter Public School | C44: C | D44: 3 | E44: Sara | F44: Haverhill | G44: No Status | H44: 2003 | I44: 2004 | J44: 11 | K44: 2009 | L44: 2014 | M44: 2019 | N44: 2009 | O44: 2014 | P44: NA | Q44: 2019 | R44: NA | S44: No | T44: No | U44: K-08 | V44: 306 | W44: Urban | X44: ESMS | Z44: VC6000067658 | AA44: BESE Minutes 1/27/09 pg.7 charter renewed;BOE Minutes 9/27/07 - amendment to increase from 243 to 296 | AB44: BOE Minutes 2/25/03 pg.8-9 charter granted | AC44: BESE Minutes 1/27/09 pg.7 charter renewed; BOE Minutes 9/27/07- amendment to add grade 8 | AD44: BOE Minutes 2/25/03 pg.8-9 charter granted for 1-7; BOE Minutes 8/26/03 pg.4 amendment approved for addition of grade K | AE44: * | AF44: Operating | AG44: COperating | AH44: NoOperating | AI44: NoOperating | AJ44: 306Operating | AK44: UrbanOperating | AL44: ESMSOperating | AM44: 306
A45: 450 | B45: Hilltown Cooperative Charter Public School | C45: C | D45: 4 | E45: Alison | F45: East Hampton | G45: No Status | H45: 1994 | I45: 1995 | J45: 20 | K45: 2000 | L45: 2005 | M45: 2010 | N45: =IF(K45>2014, "NA", K45) -> 2000 | O45: 2005 | P45: =IF(M45>2014, "NA", M45) -> 2010 | Q45: 2015 | R45: NA | S45: Yes | T45: No | U45: K-08 | V45: 218 | W45: Rural | X45: ESMS | Z45: VC6000181849 | AA45: BESE Minutes 10/21/08 add 26 students to 180 max; BOE Minutes 2/24/04 p.12 amendment approved for increased enrollment - (to 154 as documented in board pkg.; amendment letter 3/15/03 KM) | AB45: 8/14/02 letter- KM | AC45: BOE Minutes 2/24/04 p.12 amendment approved for increased enrollment - (to 154 as documented in board pkg.; amendment letter 3/15/03 KM) | AD45: charter amend letter 2/25/00- SMB | AF45: Operating | AG45: COperating | AH45: YesOperating | AI45: NoOperating | AJ45: 218Operating | AK45: RuralOperating | AL45: ESMSOperating | AM45: 218
A46: 453 | B46: Holyoke Community Charter School | C46: C | D46: 4 | E46: Puja | F46: Holyoke | G46: No Status | H46: 2001 | I46: 2005 | J46: 10 | K46: 2010 | L46: 2015 | M46: 2020 | N46: 2010 | O46: =IF(L46>2014, "NA", L46) -> NA | P46: NA | Q46: 2015 | R46: NA | S46: No | T46: Yes | U46: K-08 | V46: 702 | W46: Urban | X46: ESMS | Z46: VC6000189756 | AA46: BOE minutes 02/27/01 pg.23 charter granted | AC46: BOE minutes 02/27/01 pg.23 charter granted | AF46: Operating | AG46: COperating | AH46: NoOperating | AI46: YesOperating | AJ46: 702Operating | AK46: UrbanOperating | AL46: ESMSOperating | AM46: 702
A47: 435 | B47: Innovation Academy Charter School | C47: C | D47: 5 | E47: Jane | F47: Tyngsborough | G47: No Status | H47: 1995 | I47: 1996 | J47: 19 | K47: 2001 | L47: 2006 | M47: 2011 | N47: 2001 | O47: 2006 | P47: 2011 | Q47: 2016 | R47: NA | S47: Yes | T47: Former | U47: 05-12 | V47: 800 | W47: Suburb | X47: MSHS | Z47: VC6000182149 | AA47: Reginalization in BOE minutes for 02/26/08; BOE minutes for 01/24/06 | AB47: BOE Minutes 11/28/00 p. 29 charter renewal makes no mention of enrollment max; 4/3/03 charter amend- KM letter | AC47: BOE minutes for 01/24/06 | AD47: charter; 4/3/03 charter amend- KM letter | AF47: Operating | AG47: COperating | AH47: YesOperating | AI47: FormerOperating | AJ47: 800Operating | AK47: SuburbOperating | AL47: MSHSOperating | AM47: 800
A48: 463 | B48: KIPP Academy Boston Charter School | C48: C | D48: 1 | E48: Claire | F48: Boston | G48: No Status | H48: 2011 | I48: 2012 | J48: 3 | K48: 2017 | L48: 2022 | M48: 2027 | N48: NA | O48: NA | P48: NA | Q48: 2017 | R48: NA | S48: No | T48: No | U48: K-08 | V48: 588 | W48: Boston | X48: ESMS | Z48: VC0000553212 | AA48: SY 2012-13 max enroll TBD by MDC | AC48: BESE Minutes 2/28/11 | AF48: Operating | AG48: COperating | AH48: NoOperating | AI48: NoOperating | AJ48: 588Operating | AK48: BostonOperating | AL48: ESMSOperating | AM48: 588
A49: 429 | B49: KIPP Academy Lynn Charter School | C49: C | D49: 3 | E49: Claire | F49: Lynn | G49: No Status | H49: 2004 | I49: 2004 | J49: 11 | K49: 2009 | L49: 2014 | M49: 2019 | N49: 2009 | O49: 2014 | P49: NA | Q49: 2019 | R49: NA | S49: No | T49: No | U49: 05-12 | V49: 850 | W49: Urban | X49: MSHS | Y49: 750 to 850 12/2010 BESE. On conditions Feb2014 off OCt2014 | Z49: VC6000237973 | AA49: BESE Minutes 1/27/09 pg.7 charter renewed; BOE Minutes 2/24/04 pg. 9 charter granted; BESE mtg 12/15 | AC49: BOE Minutes 2/24/04 pg. 9 charter granted; BESE mtg 12/15/09 | AE49: * | AF49: Operating | AG49: COperating | AH49: NoOperating | AI49: NoOperating | AJ49: 850Operating | AK49: UrbanOperating | AL49: MSHSOperating | AM49: 850
A50: 454 | B50: Lawrence Family Development Charter School | C50: C | D50: 4 | E50: Puja | F50: Lawrence | G50: No Status | H50: 1995 | I50: 1995 | J50: 20 | K50: 2000 | L50: 2005 | M50: 2010 | N50: 2000 | O50: 2005 | P50: 2010 | Q50: 2015 | R50: NA | S50: No | T50: No | U50: PK-08 | V50: 800 | W50: Urban | X50: ESMS | Y50: 600 to 800 BESE 12/2010 | Z50: VC6000182258 | AA50: BOE Minutes 10/25/05 p.8-9 Amendment approval (details in Board Memo dated 10/25/05) | AB50: BOE Minutes 11/23/99 p.27 makes no mention of enrollment max in charter renewal; charter renewal application p. 25; BOE Minutes 2/15/05 p. 10 | AC50: BOE Minutes 10/25/05 p.8-9 Amendment approval (details in Board Memo dated 10/25/05) | AD50: charter renewal application p. 25 | AF50: Operating | AG50: COperating | AH50: NoOperating | AI50: NoOperating | AJ50: 800Operating | AK50: UrbanOperating | AL50: ESMSOperating | AM50: 800
A51: 3503 | B51: Lowell Collegiate Charter School | C51: C | D51: 2 | E51: Puja | F51: Lowell | G51: No Status | H51: 2012 | I51: 2013 | J51: 2 | K51: 2018 | L51: 2023 | M51: 2028 | N51: NA | O51: NA | P51: NA | Q51: 2018 | R51: NA | S51: No | T51: Yes | U51: K-12 | V51: 1200 | W51: Urban | X51: K12 | Z51: VC0000626033 | AA51: BESE minutes 2/12 | AF51: Operating | AG51: COperating | AH51: NoOperating | AI51: YesOperating | AJ51: 1200Operating | AK51: UrbanOperating | AL51: K12Operating | AM51: 1200
A52: 456 | B52: Lowell Community Charter Public School | C52: C | D52: 4 | E52: Jane | F52: Lowell | G52: No Status | H52: 1999 | I52: 2000 | J52: 15 | K52: 2005 | L52: 2010 | M52: 2015 | N52: 2005 | O52: 2010 | P52: NA | Q52: 2015 | R52: NA | S52: No | T52: Former | U52: PK-08 | V52: 800 | W52: Urban | X52: ESMS | Y52: K-8 to K-6 in 2011 and from 610 to 653 max, req for amendment of conditions | Z52: VC6000187218 | AA52: BOE minutes 1/26/99 p. 36 charter granted for max enrollment of 900; BESE minutes 2/23/10, p.8-10 | AB52: charter application p. 8 projects 632 max. | AC52: BOE minutes 1/26/99 p. 30 charter granted for K-8; BESE minutes 2/23/10, p.8-10 | AD52: charter application p. 8 says K-7 | AF52: Operating | AG52: COperating | AH52: NoOperating | AI52: =T52&AF52 -> FormerOperating | AJ52: 800Operating | AK52: UrbanOperating | AL52: ESMSOperating | AM52: 800
A53: 458 | B53: Lowell Middlesex Academy Charter School | C53: C | D53: 4 | E53: Claire | F53: Lowell | G53: No Status | H53: 1994 | I53: 1995 | J53: 20 | K53: 2000 | L53: 2005 | M53: 2010 | N53: 2000 | O53: 2005 | P53: 2010 | Q53: 2015 | R53: NA | S53: No | T53: No | U53: 09-12 | V53: 150 | W53: Urban | X53: HS | Y53: Ungraded | Z53: VC6000181847 | AA53: charter renewal application p. 17 | AB53: BOE Minutes 11/23/99 p.28 charter renewal makes no mention of enrollment max | AC53: charter application p. 5 | AF53: Operating | AG53: COperating | AH53: NoOperating | AI53: NoOperating | AJ53: 150Operating | AK53: UrbanOperating | AL53: HSOperating | AM53: 150
A54: 464 | B54: Marblehead Community Charter Public School | C54: C | D54: 4 | E54: Claire | F54: Marblehead | G54: No Status | H54: 1994 | I54: 1995 | J54: 20 | K54: 2000 | L54: 2005 | M54: 2010 | N54: 2000 | O54: 2005 | P54: 2010 | Q54: 2015 | R54: NA | S54: No | T54: No | U54: 04-08 | V54: 230 | W54: Suburb | X54: MS | Z54: VC6000181784 | AA54: BOE Minutes 3/29/05 pg. 6, amendment approved for 220 to 230 increase (described in 3/22/05 Memo) and reiterated in 4/1/05 MS Letter | AB54: charter amend 9/12/02- KM letter, added 4th grade | AC54: charter amend 9/12/02- KM letter, added 4th grade | AF54: Operating | AG54: COperating | AH54: NoOperating | AI54: NoOperating | AJ54: 230Operating | AK54: SuburbOperating | AL54: MSOperating | AM54: 230
A55: 466 | B55: Martha's Vineyard Public Charter School | C55: C | D55: 5 | E55: Sara | F55: West Tisbury | G55: No Status | H55: 1995 | I55: 1996 | J55: 19 | K55: 2001 | L55: 2006 | M55: 2011 | N55: 2001 | O55: 2006 | P55: 2011 | Q55: 2016 | R55: NA | S55: Yes | T55: No | U55: K-12 | V55: 180 | W55: Suburb | X55: K12 | Z55: VC6000181634 | AA55: BOE Minutes 3/28/06 | AB55: BOE minutes 5/23/00 p.28 charter renewal makes now mention of enrollment maximum; 3/27/98 amend- SH letter | AC55: BOE Minutes 3/28/06 | AD55: 3/27/98 amend- SH letter | AF55: Operating | AG55: COperating | AH55: YesOperating | AI55: NoOperating | AJ55: 180Operating | AK55: SuburbOperating | AL55: K12Operating | AM55: 180
A56: 492 | B56: Martin Luther King, Jr. Charter School of Excellence | C56: C | D56: 5 | E56: Alison | F56: Springfield | G56: Conditions | H56: 2005 | I56: 2006 | J56: 9 | K56: 2011 | L56: 2016 | M56: 2021 | N56: 2011 | O56: NA | P56: NA | Q56: 2016 | R56: NA | S56: No | T56: No | U56: K-05 | V56: 360 | W56: Urban | X56: ES | Z56: VC0000192497 | AA56: BOE Minutes 2/15/05; BESE mtg 11/17/09 temporarily increase enrollment from 360 to 368 for 2010 and 2011 | AC56: BOE Minutes 2/15/05 | AF56: Operating | AG56: COperating | AH56: NoOperating | AI56: NoOperating | AJ56: 360Operating | AK56: UrbanOperating | AL56: ESOperating | AM56: 360
A57: 469 | B57: Match Charter Public School | C57: C | D57: 4 | E57: Ellie | F57: Boston | G57: No Status | H57: 1999 | I57: 2000 | J57: 15 | K57: 2005 | L57: 2010 | M57: 2015 | N57: 2005 | O57: 2010 | P57: NA | Q57: 2015 | R57: NA | S57: No | T57: No | U57: PK-12 | V57: 1250 | W57: Boston | X57: MSHS | Y57: max enroll 500 to 550 BESE approved major amendment 2/28/11 | Z57: VC6000187112 | AA57: BESE Meeting 03/24/09 vote to increase from ; BOE Minutes 9/27/07 - amendment to increase from 220 to 460 | AB57: BOE Minutes (offline) 1/26/99 p. 36 charter granted for max enrollment of 160; 4/3/03 charter amend- KM letter | AC57: BOE Minutes 9/27/07 - amendment to go from 9-12 to 6-12 | AD57: charter app; 4/3/03 charter amend- KM letter | AF57: Operating | AG57: COperating | AH57: NoOperating | AI57: NoOperating | AJ57: 1250Operating | AK57: BostonOperating | AL57: MSHSOperating | AM57: 1250
A58: 470 | B58: Mystic Valley Regional Charter School | C58: C | D58: 2 | E58: Jane | F58: Malden | G58: Conditions | H58: 1998 | I58: 1998 | J58: 17 | K58: 2003 | L58: 2008 | M58: 2013 | N58: 2003 | O58: 2008 | P58: 2013 | Q58: 2018 | R58: NA | S58: Yes | T58: Former | U58: K-12 | V58: 1500 | W58: Urban | X58: K12 | Z58: VC6000186087 | AA58: BOE minutes 10/30/07 Renewal | AB58: BOE Minutes 11/26/02 p. 8 charter renewal; charter app, page 13; BOE Minutes 10/25/05 p.8-9 Amendment approval (details in Board Memo dated 10/25/05); increase maximum enrollment from 1400 to 1500 (BESE mtg. 11/17/09) | AC58: BOE minutes 10/30/07 Renewal | AD58: BOE Minutes 11/26/02 p. 8 charter renewal; charter app, page 13; BOE Minutes 10/25/05 p.8-9 Amendment approval (details in Board Memo dated 10/25/05) | AF58: Operating | AG58: COperating | AH58: YesOperating | AI58: FormerOperating | AJ58: 1500Operating | AK58: UrbanOperating | AL58: K12Operating | AM58: 1500
A59: 444 | B59: Neighborhood House Charter School | C59: C | D59: 4 | E59: Sara | F59: Boston | G59: No Status | H59: 1994 | I59: 1995 | J59: 20 | K59: 2000 | L59: 2005 | M59: 2010 | N59: 2000 | O59: 2005 | P59: 2010 | Q59: 2015 | R59: NA | S59: No | T59: No | U59: PK-08 | V59: 400 | W59: Boston | X59: ESMS | Z59: VC6000182032 | AA59: charter amend 9/12/02- KM letter | AB59: BOE Charter renewal on 6/29/99 no minutes online | AC59: charter amend 9/12/02- KM letter | AD59: charter app | AF59: Operating | AG59: COperating | AH59: NoOperating | AI59: NoOperating | AJ59: 400Operating | AK59: BostonOperating | AL59: ESMSOperating | AM59: 400
A60: 467 | B60: New Liberty Charter School of Salem | C60: HM | D60: 5 | E60: Claire | F60: Salem | G60: Conditions | H60: 2011 | I60: 2011 | J60: 4 | K60: 2016 | L60: 2021 | M60: 2026 | N60: NA | O60: NA | P60: NA | Q60: 2016 | R60: NA | S60: NA | T60: No | U60: 09-12 | V60: 125 | W60: Urban | X60: HS | Z60: City of Salem | AA60: BESE Minutes 2/28/11 | AC60: BESE Minutes 2/28/11 | AF60: Operating | AG60: HMOperating | AH60: NAOperating | AI60: NoOperating | AJ60: 125Operating | AK60: UrbanOperating | AL60: HSOperating | AM60: 125
A61: 3501 | B61: Paulo Freire Social Justice Charter School | C61: C | D61: 2 | E61: Jane | F61: Holyoke | G61: No Status | H61: 2012 | I61: 2013 | J61: 2 | K61: 2018 | L61: 2023 | M61: 2028 | N61: NA | O61: NA | P61: NA | Q61: 2018 | R61: NA | S61: Yes | T61: No | U61: 9-12 | V61: 500 | W61: Urban | X61: HS | Z61: VC0000615618 | AA61: BESE minutes 2/12 | AF61: Operating | AG61: COperating | AH61: YesOperating | AI61: NoOperating | AJ61: 500Operating | AK61: UrbanOperating | AL61: HSOperating | AM61: 500
A62: 493 | B62: Phoenix Academy Charter Public High School, Chelsea | C62: C | D62: 5 | E62: Jane | F62: Chelsea | G62: No Status | H62: 2005 | I62: 2006 | J62: 9 | K62: 2011 | L62: =K62+5 -> 2016 | M62: 2021 | N62: 2011 | O62: NA | P62: NA | Q62: 2016 | R62: NA | S62: Yes | T62: No | U62: 09-12 | V62: 225 | W62: Urban | X62: HS | Y62: Ungraded ages 15-21 | Z62: VC0000194828 | AA62: BOE Minutes 2/15/05 | AC62: BOE Minutes 2/15/05 | AF62: Operating | AG62: COperating | AH62: YesOperating | AI62: NoOperating | AJ62: 225Operating | AK62: UrbanOperating | AL62: HSOperating | AM62: 225
A63: 3508 | B63: Phoenix Academy Public Charter High School, Springfield | C63: C | D63: 3 | E63: Jane | F63: Springfield | G63: No Status | H63: 2013 | I63: 2014 | J63: 1 | K63: 2019 | L63: 2024 | M63: 2029 | N63: NA | O63: NA | P63: NA | Q63: 2019 | R63: NA | S63: Yes | T63: No | U63: 9-12 | V63: 250 | W63: Urban | X63: HS | Z63: VC0000728344 | AA63: BESE minutes 2/13 | AF63: Operating | AG63: COperating | AH63: YesOperating | AI63: NoOperating | AJ63: 250Operating | AK63: UrbanOperating | AL63: HSOperating | AM63: 250
A64: 494 | B64: Pioneer Charter School of Science | C64: C | D64: 1 | E64: Sara | F64: Everett | G64: No Status | H64: 2006 | I64: 2007 | J64: 8 | K64: 2012 | L64: 2017 | M64: 2022 | N64: 2012 | O64: NA | P64: NA | Q64: 2017 | R64: NA | S64: Yes | T64: No | U64: 07-12 | V64: 360 | W64: Urban | X64: MSHS | Z64: VC0000282719 | AA64: BOE Minutes 2/28/06, p.4 | AC64: BOE Minutes 2/28/06, p.4 | AF64: Operating | AG64: COperating | AH64: YesOperating | AI64: NoOperating | AJ64: 360Operating | AK64: UrbanOperating | AL64: MSHSOperating | AM64: 360
A65: 3506 | B65: Pioneer Charter School of Science II | C65: C | D65: 3 | E65: Sara | F65: Saugus | G65: No Status | H65: 2013 | I65: 2013 | J65: 2 | K65: 2018 | L65: 2023 | M65: 2028 | N65: NA | O65: NA | P65: NA | Q65: 2018 | R65: NA | S65: Yes | T65: No | U65: 07-12 | V65: 360 | W65: Urban | X65: MSHS | Z65: VC0000657874 | AA65: BESE minutes 2/13 | AF65: Operating | AG65: COperating | AH65: YesOperating | AI65: NoOperating | AJ65: 360Operating | AK65: UrbanOperating | AL65: MSHSOperating | AM65: 360
A66: 497 | B66: Pioneer Valley Chinese Immersion Charter School | C66: C | D66: 1 | E66: Jane | F66: Hadley | G66: No Status | H66: 2007 | I66: 2007 | J66: =2015-I66 -> 8 | K66: =I66+5 -> 2012 | L66: 2017 | M66: 2022 | N66: 2012 | O66: NA | P66: NA | Q66: =MAX(I66,N66:P66)+5 -> 2017 | R66: NA | S66: Yes | T66: No | U66: K-12 | V66: =300+284 -> 584 | W66: Suburb | X66: K12 | Y66: 300 to 584 and added grades 9-12 (284 seats 2/2013 BESE) | Z66: VC0000334763 | AA66: BOE Minutes 2/27/07 | AC66: BOE Minutes 2/27/07 | AF66: =IF(J66="NA","Closed",IF(J66<=0,"Pending","Operating")) -> Operating | AG66: =C66&AF66 -> COperating | AH66: =S66&AF66 -> YesOperating | AI66: NoOperating | AJ66: =V66&AF66 -> 584Operating | AK66: =W66&AF66 -> SuburbOperating | AL66: =X66&AF66 -> K12Operating | AM66: =IF(AF66="Operating", V66, "Not Operating") -> 584
A67: 479 | B67: Pioneer Valley Performing Arts Charter Public School | C67: C | D67: 5 | E67: Ellie | F67: South Hadley | G67: Conditions | H67: 1996 | I67: 1996 | J67: 19 | K67: 2001 | L67: 2006 | M67: 2011 | N67: 2001 | O67: 2006 | P67: 2011 | Q67: 2016 | R67: NA | S67: Yes | T67: No | U67: 07-12 | V67: 400 | W67: Suburb | X67: MSHS | Z67: VC6000182999 | AA67: BOE minutes 12/20/05 Renewal | AB67: BOE Minutes 11/28/00 p.29 amendment granted to increase max enroll. To 300 and grade span to 7-12; charter amend 4/3/03- KM letter\ | AC67: BOE Minutes 11/28/00 p.29 amendment grated to increase max enroll. To 300 and grade span to 7-12 | AF67: Operating | AG67: COperating | AH67: YesOperating | AI67: NoOperating | AJ67: 400Operating | AK67: SuburbOperating | AL67: MSHSOperating | AM67: 400
A68: 487 | B68: Prospect Hill Academy Charter School | C68: C | D68: 5 | E68: Claire | F68: Somerville (K-6); Cambridge (7-12) | G68: No Status | H68: 1996 | I68: 1996 | J68: 19 | K68: 2001 | L68: 2006 | M68: 2011 | N68: 2001 | O68: 2006 | P68: 2011 | Q68: 2016 | R68: NA | S68: Yes | T68: Former | U68: PK-12 | V68: 1200 | W68: Urban | X68: K12 | Z68: VC6000182989 | AA68: BOE Minutes 3/28/06 | AB68: 1996 charter application estimates 1,000-1200 K-12 students on page 33; BOE Minutes 2/27/01 p.27 makes no mention of enrollment max or gradespan in charter renewal; charter renewal application p. 23 projects 1290 in 2005-2006 | AC68: BOE Minutes 3/28/06 | AD68: 1996 charter application estimates 1,000-1200 K-12 students on page 33; BOE Minutes 2/27/01 p.27 makes no mention of enrollment max or gradespan in charter renewal; charter renewal application p. 23 projects 1290 in 2005-2006; BESE mtg 11/17/09 - increase grades from k-12 to k1-12) | AF68: Operating | AG68: COperating | AH68: YesOperating | AI68: FormerOperating | AJ68: 1200Operating | AK68: UrbanOperating | AL68: K12Operating | AM68: 1200
A69: 483 | B69: Rising Tide Charter Public School | C69: C | D69: 2 | E69: Puja | F69: Plymouth | G69: No Status | H69: 1998 | I69: 1998 | J69: 17 | K69: 2003 | L69: 2008 | M69: 2013 | N69: 2003 | O69: 2008 | P69: 2013 | Q69: 2018 | R69: NA | S69: Yes | T69: Former | U69: 05-12 | V69: 700 | W69: Suburb | X69: MSHS | Z69: VC6000185859 | AA69: BESE Minutes 11/18/08 incrase to 700 + high school; BOE minutes 01/22/08 renewal vote; BOE Minutes 9/27/07, amendment to increase from 300 to 320 | AB69: BOE Minutes 2/25/03 pg.9 charter renewal for max of 228; BOE Minutes 2/24/04 p.12 amendment approved for increased enrollment (to 300 as documented in board pkg) | AC69: BESE Minutes 11/18/08 incrase to 700 + high school; BOE minutes 01/22/08 renewal vote; BOE Minutes 2/24/04 p.12 amendment approved for increased enrollment (to 300 as documented in board pkg--*Growth plan: 250 for 04-05, 280 for 05-06, 300 for 06-07) | AD69: BOE Minutes 2/25/03 pg.9 charter granted for grade span of 5-8 | AF69: Operating | AG69: COperating | AH69: YesOperating | AI69: FormerOperating | AJ69: 700Operating | AK69: SuburbOperating | AL69: MSHSOperating | AM69: 700
A70: 482 | B70: River Valley Charter School | C70: C | D70: 3 | E70: Sara | F70: Newburyport | G70: No Status | H70: 1999 | I70: 1999 | J70: 16 | K70: 2004 | L70: 2009 | M70: 2014 | N70: 2004 | O70: 2009 | P70: 2014 | Q70: 2019 | R70: NA | S70: Yes | T70: No | U70: K-08 | V70: 288 | W70: Rural | X70: ESMS | Y70: Renewal granted very early in 11/2002 | Z70: VC6000187184 | AA70: charter amend 4/3/03- KM letter | AB70: BESE Minutes 2/24/09 pg.10 charter renewed; BOE Minutes 11/26/02 p. 8 charter renewal says max enroll. 256 grades 1-8 | AC70: charter amend 4/3/03- KM letter | AD70: BESE Minutes 2/24/09 pg.10 charter renewed; BOE Minutes 11/26/02 p. 8 charter renewal says max enroll. 256 grades 1-8 | AF70: Operating | AG70: COperating | AH70: YesOperating | AI70: NoOperating | AJ70: 288Operating | AK70: RuralOperating | AL70: ESMSOperating | AM70: 288
A71: 484 | B71: Roxbury Preparatory Charter School | C71: C | D71: 3 | E71: Sara | F71: Boston | G71: No Status | H71: 1998 | I71: 1999 | J71: 16 | K71: 2004 | L71: 2009 | M71: 2014 | N71: 2004 | O71: 2009 | P71: 2014 | Q71: 2019 | R71: NA | S71: No | T71: Yes | U71: 05-12 | V71: 1800 | W71: Boston | X71: MSHS | Y71: max enroll from 300 to 600 2/2011 BESE and add gr 5-12 (from 6-8) 2/2011 | Z71: VC6000185928 | AA71: BESE Minutes 2/24/09 pg.10 charter renewed; BESE Minutes 06/25/08, reduce to 300 max enro; BOE Minutes 2/24/04 pg. 6 charter renewal | AB71: charter app | AC71: BESE Minutes 2/24/09 pg.10 charter renewed; BESE Minutes 06/25/08, grade span 6-8; BOE Minutes 2/24/04 pg. 6 charter renewal | AD71: charter app say 5-12 | AF71: Operating | AG71: COperating | AH71: NoOperating | AI71: YesOperating | AJ71: 1800Operating | AK71: BostonOperating | AL71: MSHSOperating | AM71: 1800
A72: 441 | B72: Sabis International Charter School | C72: C | D72: 4 | E72: Puja | F72: Springfield | G72: No Status | H72: 1995 | I72: 1995 | J72: 20 | K72: 2000 | L72: 2005 | M72: 2010 | N72: 2000 | O72: 2005 | P72: 2010 | Q72: 2015 | R72: NA | S72: No | T72: Yes | U72: K-12 | V72: 1574 | W72: Urban | X72: K12 | Z72: VC6000181490 | AA72: BOE minutes 10/24/06 pp. 10-11 | AB72: renewal app pg. 19; BOE Minutes 4/27/1999 p.19 makes no mention of enrollment max in charter renewal | AC72: renewal app pg. 19 | AF72: Operating | AG72: COperating | AH72: NoOperating | AI72: YesOperating | AJ72: 1574Operating | AK72: UrbanOperating | AL72: K12Operating | AM72: 1574
A73: 485 | B73: Salem Academy Charter School | C73: C | D73: 3 | E73: Puja | F73: Salem | G73: No Status | H73: 2003 | I73: 2004 | J73: 11 | K73: 2009 | L73: 2014 | M73: 2019 | N73: 2009 | O73: 2014 | P73: NA | Q73: 2019 | R73: NA | S73: No | T73: No | U73: 06-12 | V73: 372 | W73: Urban | X73: MSHS | Z73: VC6000233570 | AA73: BESE Minutes 2/24/09 pg.12 charter renewed; BOE Minutes 2/25/03 pg.9 charter granted | AC73: BESE Minutes 2/24/09 pg.12 charter renewed; BOE Minutes 2/25/03 pg.9 charter granted | AE73: * | AF73: Operating | AG73: COperating | AH73: NoOperating | AI73: NoOperating | AJ73: 372Operating | AK73: UrbanOperating | AL73: MSHSOperating | AM73: 372
A74: 486 | B74: Seven Hills Charter Public School | C74: C | D74: 5 | E74: Ellie | F74: Worcester | G74: Conditions | H74: 1994 | I74: 1996 | J74: 19 | K74: 2001 | L74: 2006 | M74: 2011 | N74: 2001 | O74: 2006 | P74: 2011 | Q74: 2016 | R74: NA | S74: No | T74: Former | U74: K-08 | V74: 666 | W74: Urban | X74: ESMS | Z74: VC6000183109 | AA74: BOE Minutes 2/28/06 p.6 | AB74: BOE Minutes 2/27/01 p.25 makes no mention of enrollment max in charter renewal; 6/3/96 amend approval - S. Hamilton | AC74: BOE Minutes 2/28/06 p.6 | AD74: charter application p. 5 | AF74: Operating | AG74: COperating | AH74: NoOperating | AI74: FormerOperating | AJ74: 666Operating | AK74: UrbanOperating | AL74: ESMSOperating | AM74: 666
A75: 477 | B75: Silver Hill Horace Mann Charter School | C75: HM | D75: 2 | E75: Claire | F75: Haverhill | G75: Conditions | H75: 2008 | I75: 2008 | J75: 7 | K75: 2013 | L75: 2018 | M75: 2023 | N75: 2013 | O75: NA | P75: NA | Q75: 2018 | R75: NA | S75: NA | T75: No | U75: K-05 | V75: 580 | W75: Urban | X75: ES | Z75: VC0000401017 | AA75: BOE minutes 2/26/08 charter granting | AC75: BOE minutes 2/26/08 charter granting | AF75: Operating | AG75: HMOperating | AH75: NAOperating | AI75: NoOperating | AJ75: 580Operating | AK75: UrbanOperating | AL75: ESOperating | AM75: 580
A76: 474 | B76: Sizer School, A North Central Charter Essential School | C76: C | D76: 1 | E76: Claire | F76: Fitchburg | G76: No Status | H76: 2001 | I76: 2002 | J76: 13 | K76: 2007 | L76: 2012 | M76: 2017 | N76: 2007 | O76: 2012 | P76: NA | Q76: 2017 | R76: NA | S76: Yes | T76: No | U76: 07-12 | V76: 400 | W76: Urban | X76: MSHS | Z76: VC6000189774 | AA76: BOE minutes 2/27/07 renewal; BOE minutes 02/27/01 pg.23 charter granted | AC76: BOE minutes 2/27/07 renewal; BOE minutes 02/27/01 pg.23 charter granted | AF76: Operating | AG76: COperating | AH76: YesOperating | AI76: NoOperating | AJ76: 400Operating | AK76: UrbanOperating | AL76: MSHSOperating | AM76: 400
A77: 488 | B77: South Shore Charter Public School | C77: C | D77: 4 | E77: Claire | F77: Norwell | G77: No Status | H77: 1994 | I77: 1995 | J77: 20 | K77: 2000 | L77: 2005 | M77: 2010 | N77: =IF(K77>2014, "NA", K77) -> 2000 | O77: 2005 | P77: =IF(M77>2014, "NA", M77) -> 2010 | Q77: 2015 | R77: NA | S77: Yes | T77: No | U77: K-12 | V77: 610 | W77: Rural | X77: K12 | Z77: VC6000181836 | AA77: BOE minutes 11/29/05 p. XXX Amendment approval | AB77: charter renewal application p. 24; BOE Minutes 01/25/00 p.19 charter renewal makes no mention of enrollment max; BOE Minutes 3/29/05 p.6 Remewal | AC77: BOE Minutes 3/29/05 p.6 Remewal | AD77: charter renewal application p. 24; BOE Minutes 01/25/00 p.19 charter renewal makes no mention of enrollment max; | AF77: Operating | AG77: COperating | AH77: YesOperating | AI77: NoOperating | AJ77: 610Operating | AK77: RuralOperating | AL77: K12Operating | AM77: 610
A78: 3510 | B78: Springfield Preparatory Charter School | C78: C | D78: 4 | E78: Claire | F78: Springfield | G78: No Status | H78: 2014 | I78: 2015 | J78: 0 | K78: 2020 | L78: 2025 | M78: 2030 | N78: NA | O78: NA | P78: NA | Q78: 2020 | R78: NA | S78: No | T78: No | U78: K-08 | V78: 486 | W78: Urban | X78: ESMS | AF78: Pending | AG78: CPending | AH78: NoPending | AI78: NoPending | AJ78: 486Pending | AK78: UrbanPending | AL78: ESMSPending | AM78: Not Operating
A79: 489 | B79: Sturgis Charter Public School | C79: C | D79: 2 | E79: Sara | F79: Hyannis | G79: No Status | H79: 1998 | I79: 1998 | J79: 17 | K79: 2003 | L79: 2008 | M79: 2013 | N79: 2003 | O79: 2008 | P79: 2013 | Q79: 2018 | R79: NA | S79: Yes | T79: No | U79: 09-12 | V79: 800 | W79: Suburb | X79: HS | Z79: VC6000185821 | AA79: BOE minutes 10/30/07 Renewal | AB79: BOE Minutes 9/24/02 p. 6 charter renewal; charter app. Had max of 350; BOE Minutes 9/28/04 p. 6, Amendment to reduce max from 540 to 425 and change to regional; BESE mtg. 11/17/09 - increase enrollment from 425 to 800 | AC79: BOE minutes 10/30/07 Renewal | AD79: charter app | AF79: Operating | AG79: COperating | AH79: YesOperating | AI79: NoOperating | AJ79: 800Operating | AK79: SuburbOperating | AL79: HSOperating | AM79: 800
A80: 480 | B80: UP Academy Charter School of Boston | C80: HM | D80: 5 | E80: Sara | F80: Boston | G80: No Status | H80: 2011 | I80: 2011 | J80: 4 | K80: 2016 | L80: 2021 | M80: 2026 | N80: NA | O80: NA | P80: NA | Q80: 2016 | R80: NA | S80: NA | T80: Yes | U80: 06-08 | V80: 500 | W80: Boston | X80: MS | Z80: VC0000546000 | AA80: BESE Minutes 2/28/11 | AC80: BESE Minutes 2/28/11 | AF80: Operating | AG80: HMOperating | AH80: NAOperating | AI80: YesOperating | AJ80: 500Operating | AK80: BostonOperating | AL80: MSOperating | AM80: 500
A81: 3505 | B81: UP Academy Charter School of Dorchester | C81: HM | D81: 2 | E81: Sara | F81: Boston | G81: No Status | H81: 2013 | I81: 2013 | J81: 2 | K81: 2018 | L81: 2023 | M81: 2028 | N81: NA | O81: NA | P81: NA | Q81: 2018 | R81: NA | S81: NA | T81: Yes | U81: PK-08 | V81: 750 | W81: Boston | X81: ESMS | Z81: VC0000666898 | AA81: BESE minutes 2/13 | AF81: Operating | AG81: HMOperating | AH81: NAOperating | AI81: YesOperating | AJ81: 750Operating | AK81: BostonOperating | AL81: ESMSOperating | AM81: 750
A82: 498 | B82: Veritas Preparatory Charter School | C82: C | D82: 1 | E82: Ellie | F82: Springfield | G82: No Status | H82: 2011 | I82: 2012 | J82: 3 | K82: 2017 | L82: =K82+5 -> 2022 | M82: 2027 | N82: NA | O82: NA | P82: NA | Q82: 2017 | R82: NA | S82: No | T82: No | U82: 05-08 | V82: 324 | W82: Urban | X82: MS | Z82: VC0000546960 | AA82: BESE Minutes 2/28/11 | AC82: BESE Minutes 2/28/11 | AF82: Operating | AG82: COperating | AH82: NoOperating | AI82: NoOperating | AJ82: 324Operating | AK82: UrbanOperating | AL82: MSOperating | AM82: 324
A83: 459 | B83: Excel Academy Charter School - Boston II | C83: C | D83: NA | E83: NA | F83: Boston | G83: NA | H83: 2011 | I83: 2012 | J83: NA
A84: 461 | B84: Excel Academy Charter School - Chelsea | C84: C | D84: NA | E84: NA | F84: Chelsea | G84: NA | H84: 2011 | I84: 2011 | J84: NA
A85: 465 | B85: MATCH Community Day Charter Public School | C85: C | D85: 5 | E85: NA | F85: Boston | G85: NA | H85: 2011 | I85: 2011 | J85: NA

Sheet TEACHEREPIMS (hidden)
A1: Teachers only
A2: NE = Not Existing
A3: Closed = Closed District
A5: ORG_CODE | B5: ORG_NAME | C5: LEA | D5: FTE_15d | E5: HC_15d | F5: FTE_15a | G5: HC_15a | H5: FTE_14d | I5: HC_14d | J5: FTE_14a | K5: HC_14a | L5: FTE_13d | M5: HC_13d | N5: FTE_13a | O5: HC_13a | P5: FTE_12d | Q5: HC_12d | R5: FTE_12a | S5: HC_12a | T5: FTE_11d | U5: HC_11d | V5: FTE_11a | W5: HC_11a | X5: FTE_10a | Y5: HC_10a
A6: 04070000 | B6: Dudley Street Neighborhood Charter School (District) | C6: 407 | D6: 15.94 | E6: 16 | F6: 14.98 | G6: 15 | H6: 9.999 | I6: 10 | J6: 12.998 | K6: 13 | L6: 7.994 | M6: 8 | N6: 7.994 | O6: 8 | P6: NE | Q6: NE | R6: NE | S6: NE | T6: NE | U6: NE | V6: NE | W6: NE | X6: NE | Y6: NE
A7: 04090000 | B7: Alma del Mar Charter School (District) | C7: 409 | D7: 17.03 | E7: 17 | F7: 22.38 | G7: 23 | H7: 18.99 | I7: 19 | J7: 18.99 | K7: 19 | L7: 15.24 | M7: 15 | N7: 16.28 | O7: 16 | P7: 13.88 | Q7: 14 | R7: 13.88 | S7: 14 | T7: NE | U7: NE | V7: NE | W7: NE | X7: NE | Y7: NE
A8: 04100000 | B8: Excel Academy Charter (District) | C8: 410 | D8: 51.625 | E8: 65 | F8: 56.596 | G8: 68 | H8: 19.297 | I8: 26 | J8: 22.369 | K8: 26 | L8: 19.602 | M8: 24 | N8: 18.97 | O8: 22 | P8: 18.887 | Q8: 22 | R8: 18.97 | S8: 22 | T8: 16 | U8: 19 | V8: 16 | W8: 19 | X8: 17.8 | Y8: 18
A9: 04110000 | B9: Boston Green Academy Horace Mann Charter School (District) | C9: 411 | D9: 37 | E9: 39 | F9: 35.01 | G9: 38 | H9: 27.334 | I9: 39 | J9: 33.084 | K9: 44 | L9: 27.659 | M9: 42 | N9: 30.85 | O9: 40 | P9: 25.36 | Q9: 32 | R9: 25.3 | S9: 32 | T9: NE | U9: NE | V9: NE | W9: NE | X9: NE | Y9: NE
A10: 04120000 | B10: Academy Of the Pacific Rim Charter Public (District) | C10: 412 | D10: 42.334 | E10: 45 | F10: 42.5 | G10: 45 | H10: 36.65 | I10: 39 | J10: 38.65 | K10: 41 | L10: 36.1 | M10: 38 | N10: 35.917 | O10: 38 | P10: 36.8 | Q10: 38 | R10: 36.8 | S10: 38 | T10: 33.997 | U10: 36 | V10: 34.8 | W10: 37 | X10: 35.05 | Y10: 36
A11: 04130000 | B11: Four Rivers Charter Public (District) | C11: 413 | D11: 21.955 | E11: 30 | F11: 21.11 | G11: 29 | H11: 21.81 | I11: 28 | J11: 22.36 | K11: 30 | L11: 21.855 | M11: 28 | N11: 21.268 | O11: 28 | P11: 21.86 | Q11: 29 | R11: 21.66 | S11: 30 | T11: 20.214 | U11: 28 | V11: 21.227 | W11: 30 | X11: 19.064 | Y11: 23
A12: 04140000 | B12: Berkshire Arts and Technology Charter Public (District) | C12: 414 | D12: 28.99 | E12: 37 | F12: 29.59 | G12: 34 | H12: 30.11 | I12: 37 | J12: 30.34 | K12: 37 | L12: 27.88 | M12: 34 | N12: 27.55 | O12: 33 | P12: 24.057 | Q12: 28 | R12: 24.866 | S12: 29 | T12: 23.2 | U12: 26 | V12: 23.416 | W12: 26 | X12: 22.2 | Y12: 23
A13: 04150000 | B13: Amesbury Academy Charter Public (District) | C13: 415 | D13: 4.37 | E13: 6 | F13: 5.3 | G13: 7 | H13: 4.777 | I13: 8 | J13: 6.071 | K13: 8 | L13: 5.658 | M13: 7 | N13: 7.203 | O13: 9 | P13: 4.772 | Q13: 9 | R13: 5.473 | S13: 9 | T13: 5.235 | U13: 8 | V13: 5.9 | W13: 8 | X13: 5.36 | Y13: 7
A14: 04160000 | B14: Boston Preparatory Charter Public (District) | C14: 416 | D14: 30.433 | E14: 33 | F14: 33.05 | G14: 37 | H14: 34 | I14: 35 | J14: 34.5 | K14: 36 | L14: 32.895 | M14: 34 | N14: 32.895 | O14: 34 | P14: 35 | Q14: 35 | R14: 35 | S14: 35 | T14: 33.7 | U14: 34 | V14: 33.7 | W14: 34 | X14: 31.2 | Y14: 32
A15: 04170000 | B15: Bridge Boston Charter School (District) | C15: 417 | D15: 14 | E15: 14 | F15: 14 | G15: 14 | H15: 11.625 | I15: 12 | J15: 11.625 | K15: 12 | L15: 6.488 | M15: 7 | N15: 7.488 | O15: 8 | P15: 4.87 | Q15: 6 | R15: 5.15 | S15: 6 | T15: NE | U15: NE | V15: NE | W15: NE | X15: NE | Y15: NE
A16: 04180000 | B16: Christa McAuliffe Charter Public (District) | C16: 418 | D16: 37.014 | E16: 40 | F16: 38.1 | G16: 39 | H16: 32.888 | I16: 34 | J16: 30.3 | K16: 32 | L16: 30.726 | M16: 34 | N16: 27.224 | O16: 36 | P16: 26.293 | Q16: 32 | R16: 26.45 | S16: 31 | T16: 23.444 | U16: 25 | V16: 23 | W16: 24 | X16: 22.4 | Y16: 24
A17: 04190000 | B17: Helen Y. Davis Leadership Academy Charter Public (District) | C17: 419 | D17: 15 | E17: 15 | F17: 18 | G17: 18 | H17: 17 | I17: 17 | J17: 19 | K17: 19 | L17: 19.72 | M17: 20 | N17: 20.22 | O17: 20 | P17: 15.098 | Q17: 16 | R17: 18.093 | S17: 19 | T17: 27.253 | U17: 29 | V17: 17.892 | W17: 19 | X17: 15.273 | Y17: 17
A18: 04200000 | B18: Benjamin Banneker Charter Public (District) | C18: 420 | D18: 19.97 | E18: 20 | F18: 19.97 | G18: 20 | H18: 20 | I18: 20 | J18: 20 | K18: 20 | L18: 21.973 | M18: 22 | N18: 22.473 | O18: 23 | P18: 23.473 | Q18: 24 | R18: 23.473 | S18: 24 | T18: 23.06 | U18: 23 | V18: 23 | W18: 23 | X18: 22 | Y18: 22
A19: 04230000 | B19: Barnstable Horace Mann Charter (District) | C19: 423 | D19: Closed | E19: Closed | F19: Closed | G19: Closed | H19: Closed | I19: Closed | J19: Closed | K19: Closed | L19: Closed | M19: Closed | N19: Closed | O19: Closed | P19: 57.239 | Q19: 60 | R19: 57.239 | S19: 60 | T19: 49.305 | U19: 60 | V19: 48.012 | W19: 59 | X19: 57.067 | Y19: 62
A20: 04240000 | B20: Boston Day and Evening Academy Charter (District) | C20: 424 | D20: 20.6 | E20: 21 | F20: 22.6 | G20: 23 | H20: 24.65 | I20: 27 | J20: 26.4 | K20: 28 | L20: 26.55 | M20: 27 | N20: 27.5 | O20: 28 | P20: 23.3 | Q20: 23 | R20: 25.55 | S20: 27 | T20: 20.7 | U20: 21 | V20: 24.6 | W20: 25 | X20: 21.8 | Y20: 22
A21: 04260000 | B21: Community Day Charter Public School - Gateway (District) | C21: 426 | D21: 21.6 | E21: 26 | F21: 22.6 | G21: 27 | H21: 18.09 | I21: 20 | J21: 18.09 | K21: 20 | L21: 12.836 | M21: 14 | N21: 12.836 | O21: 14 | P21: NE | Q21: NE | R21: NE | S21: NE | T21: NE | U21: NE | V21: NE | W21: NE | X21: NE | Y21: NE
A22: 04270000 | B22: Barnstable Community Horace Mann Charter Public (District) | C22: 427 | D22: 24.392 | E22: 26 | F22: 23.608 | G22: 24 | H22: 23.608 | I22: 24 | J22: 23.741 | K22: 24 | L22: 23.608 | M22: 24 | N22: 23.608 | O22: 24 | P22: 22.992 | Q22: 23 | R22: 22.992 | S22: 23 | T22: 22.3 | U22: 23 | V22: 22.3 | W22: 23 | X22: 25.4 | Y22: 26
A23: 04280000 | B23: Brooke Charter School Roslindale (District) | C23: 428 | D23: 42 | E23: 42 | F23: 41 | G23: 41 | H23: 40 | I23: 41 | J23: 41 | K23: 42 | L23: 38 | M23: 38 | N23: 38 | O23: 38 | P23: 36 | Q23: 36 | R23: 36 | S23: 36 | T23: 33.373 | U23: 33 | V23: 34.995 | W23: 35 | X23: 36 | Y23: 36
A24: 04290000 | B24: KIPP Academy Lynn Charter (District) | C24: 429 | D24: 76.927 | E24: 80 | F24: 76.72 | G24: 80 | H24: 49.04 | I24: 54 | J24: 65.63 | K24: 69 | L24: 48.69 | M24: 52 | N24: 49.24 | O24: 53 | P24: 31.945 | Q24: 34 | R24: 32.945 | S24: 35 | T24: 25.86 | U24: 26 | V24: 25.86 | W24: 26 | X24: 26 | Y24: 28
A25: 04300000 | B25: Advanced Math and Science Academy Charter (District) | C25: 430 | D25: 80.781 | E25: 85 | F25: 81.392 | G25: 86 | H25: 86.35 | I25: 89 | J25: 86.96 | K25: 90 | L25: 81.544 | M25: 86 | N25: 80.463 | O25: 87 | P25: 80.509 | Q25: 83 | R25: 80.358 | S25: 83 | T25: 72.392 | U25: 74 | V25: 70.433 | W25: 72 | X25: 61.17 | Y25: 62
A26: 04310000 | B26: Community Day Charter Public School - R. Kingman Webster (District) | C26: 431 | D26: 23.6 | E26: 28 | F26: 22.6 | G26: 27 | H26: 18.08 | I26: 20 | J26: 18.08 | K26: 20 | L26: 13.83 | M26: 15 | N26: 13.83 | O26: 15 | P26: NE | Q26: NE | R26: NE | S26: NE | T26: NE | U26: NE | V26: NE | W26: NE | X26: NE | Y26: NE
A27: 04320000 | B27: Cape Cod Lighthouse Charter (District) | C27: 432 | D27: 21.96 | E27: 29 | F27: 21.78 | G27: 27 | H27: 18.54 | I27: 27 | J27: 17.99 | K27: 24 | L27: 18.41 | M27: 29 | N27: 18.12 | O27: 26 | P27: 18.18 | Q27: 28 | R27: 18.14 | S27: 26 | T27: 17.86 | U27: 26 | V27: 18.99 | W27: 26 | X27: 19.45 | Y27: 26
A28: 04350000 | B28: Innovation Academy Charter (District) | C28: 435 | D28: 70.253 | E28: 79 | F28: 67.131 | G28: 73 | H28: 58.822 | I28: 66 | J28: 62.313 | K28: 67 | L28: 58.345 | M28: 65 | N28: 59.636 | O28: 65 | P28: 56.005 | Q28: 63 | R28: 56.945 | S28: 61 | T28: 55.085 | U28: 64 | V28: 56.181 | W28: 62 | X28: 42.58 | Y28: 45
A29: 04360000 | B29: Community Charter School of Cambridge (District) | C29: 436 | D29: 32.18 | E29: 41 | F29: 30.939 | G29: 39 | H29: 34.386 | I29: 42 | J29: 38.17 | K29: 42 | L29: 35.39 | M29: 38 | N29: 34.41 | O29: 37 | P29: 30.96 | Q29: 34 | R29: 31.185 | S29: 33 | T29: 30.385 | U29: 37 | V29: 28.137 | W29: 37 | X29: 24.63 | Y29: 28
A30: 04370000 | B30: City on a Hill Charter Public School Circuit Street (District) | C30: 437 | D30: 22.447 | E30: 29 | F30: 26.004 | G30: 33 | H30: 23.8 | I30: 31 | J30: 23.8 | K30: 32 | L30: 24.77 | M30: 32 | N30: 24.9 | O30: 32 | P30: 22 | Q30: 30 | R30: 21.9 | S30: 30 | T30: 16.4 | U30: 25 | V30: 19 | W30: 27 | X30: 20.2 | Y30: 27
A31: 04380000 | B31: Codman Academy Charter Public (District) | C31: 438 | D31: 20.75 | E31: 23 | F31: 25.903 | G31: 28 | H31: 17.41 | I31: 19 | J31: 18.71 | K31: 20 | L31: 14.05 | M31: 19 | N31: 14.98 | O31: 18 | P31: 14.61 | Q31: 16 | R31: 15.26 | S31: 16 | T31: 14.07 | U31: 17 | V31: 14.2 | W31: 18 | X31: 15.1 | Y31: 18
A32: 04390000 | B32: Conservatory Lab Charter (District) | C32: 439 | D32: 18 | E32: 18 | F32: 18 | G32: 18 | H32: 14.25 | I32: 15 | J32: 14 | K32: 14 | L32: 8 | M32: 8 | N32: 8 | O32: 8 | P32: 9 | Q32: 9 | R32: 9 | S32: 9 | T32: 10 | U32: 10 | V32: 10 | W32: 10 | X32: 14.4 | Y32: 16
A33: 04400000 | B33: Community Day Charter Public School - Prospect (District) | C33: 440 | D33: 43.3 | E33: 48 | F33: 43.8 | G33: 49 | H33: 33.83 | I33: 36 | J33: 33.83 | K33: 36 | L33: 35.75 | M33: 37 | N33: 35.75 | O33: 37 | P33: 38.125 | Q33: 39 | R33: 38.125 | S33: 39 | T33: 34.462 | U33: 37 | V33: 34.462 | W33: 37 | X33: 34.617 | Y33: 37
A34: 04410000 | B34: Sabis International Charter (District) | C34: 441 | D34: 65.45 | E34: 96 | F34: 64.59 | G34: 95 | H34: 65.45 | I34: 96 | J34: 63.23 | K34: 94 | L34: 65.79 | M34: 96 | N34: 64.54 | O34: 94 | P34: 66.32 | Q34: 97 | R34: 65.3 | S34: 96 | T34: 63.23 | U34: 95 | V34: 63.93 | W34: 97 | X34: 70.1 | Y34: 93
A35: 04430000 | B35: Brooke Charter School Mattapan (District) | C35: 443 | D35: 42.963 | E35: 43 | F35: 41.883 | G35: 42 | H35: 26 | I35: 26 | J35: 33 | K35: 33 | L35: 24.25 | M35: 26 | N35: 24.25 | O35: 26 | P35: 16 | Q35: 16 | R35: 16 | S35: 16 | T35: NE | U35: NE | V35: NE | W35: NE | X35: NE | Y35: NE
A36: 04440000 | B36: Neighborhood House Charter (District) | C36: 444 | D36: 34.334 | E36: 36 | F36: 34.334 | G36: 36 | H36: 34.64 | I36: 35 | J36: 32.35 | K36: 33 | L36: 34.979 | M36: 35 | N36: 34.979 | O36: 35 | P36: 38.554 | Q36: 39 | R36: 36.69 | S36: 37 | T36: 42 | U36: 42 | V36: 41.8 | W36: 42 | X36: 40.8 | Y36: 41
A37: 04450000 | B37: Abby Kelley Foster Charter Public (District) | C37: 445 | D37: 116.544 | E37: 118 | F37: 117.043 | G37: 119 | H37: 116.588 | I37: 118 | J37: 111.805 | K37: 114 | L37: 113.555 | M37: 116 | N37: 116.58 | O37: 120 | P37: 113.06 | Q37: 113 | R37: 111.898 | S37: 114 | T37: 112.98 | U37: 114 | V37: 111.701 | W37: 115 | X37: 101.55 | Y37: 103
A38: 04460000 | B38: Foxborough Regional Charter (District) | C38: 446 | D38: 84.061 | E38: 92 | F38: 86.003 | G38: 91 | H38: 86.643 | I38: 91 | J38: 82.119 | K38: 91 | L38: 81.048 | M38: 91 | N38: 78.242 | O38: 89 | P38: 85.326 | Q38: 94 | R38: 84.8 | S38: 94 | T38: 79.269 | U38: 89 | V38: 83 | W38: 91 | X38: 77.4 | Y38: 77
A39: 04470000 | B39: Benjamin Franklin Classical Charter Public (District) | C39: 447 | D39: 23.144 | E39: 32 | F39: 25.109 | G39: 34 | H39: 33.007 | I39: 33 | J39: 32.994 | K39: 33 | L39: 31.001 | M39: 31 | N39: 32.994 | O39: 33 | P39: 28.934 | Q39: 30 | R39: 36.782 | S39: 40 | T39: 30.791 | U39: 34 | V39: 30.791 | W39: 34 | X39: 30.74 | Y39: 33
A40: 04480000 | B40: Gloucester Community Arts Charter (District) | C40: 448 | D40: Closed | E40: Closed | F40: Closed | G40: Closed | H40: Closed | I40: Closed | J40: Closed | K40: Closed | L40: Closed | M40: Closed | N40: 12.004 | O40: 12 | P40: 13.207 | Q40: 15 | R40: 14.228 | S40: 18 | T40: 7.8 | U40: 8 | V40: 8.8 | W40: 9 | X40: NE | Y40: NE
A41: 04490000 | B41: Boston Collegiate Charter (District) | C41: 449 | D41: 59.167 | E41: 63 | F41: 58.741 | G41: 64 | H41: 60.177 | I41: 62 | J41: 62.11 | K41: 64 | L41: 60.939 | M41: 60 | N41: 61.147 | O41: 63 | P41: 54.159 | Q41: 59 | R41: 52.584 | S41: 58 | T41: 44.555 | U41: 56 | V41: 44.405 | W41: 55 | X41: 39.018 | Y41: 49
A42: 04500000 | B42: Hilltown Cooperative Charter Public (District) | C42: 450 | D42: 15.989 | E42: 19 | F42: 16.989 | G42: 20 | H42: 14.442 | I42: 18 | J42: 14.692 | K42: 19 | L42: 14.692 | M42: 18 | N42: 14.692 | O42: 18 | P42: 14.391 | Q42: 18 | R42: 14.391 | S42: 18 | T42: 13.69 | U42: 15 | V42: 13.69 | W42: 15 | X42: 13.69 | Y42: 15
A43: 04510000 | B43: Robert M. Hughes Academy Charter Public (District) | C43: 451 | D43: Closed | E43: Closed | F43: Closed | G43: Closed | H43: Closed | I43: Closed | J43: Closed | K43: Closed | L43: Closed | M43: Closed | N43: Closed | O43: Closed | P43: Closed | Q43: Closed | R43: Closed | S43: Closed | T43: Closed | U43: Closed | V43: Closed | W43: Closed | X43: 8.48 | Y43: 10
A44: 04520000 | B44: Edward M. Kennedy Academy for Health Careers (Horace Mann Charter) (District) | C44: 452 | D44: 24.275 | E44: 27 | F44: 28.25 | G44: 31 | H44: 23.349 | I44: 29 | J44: 25.317 | K44: 30 | L44: 23.54 | M44: 27 | N44: 23.54 | O44: 27 | P44: 20.1 | Q44: 25 | R44: 19.7 | S44: 25 | T44: 20 | U44: 24 | V44: 20 | W44: 24 | X44: 18.9 | Y44: 22
A45: 04530000 | B45: Holyoke Community Charter (District) | C45: 453 | D45: 50.948 | E45: 51 | F45: 50.938 | G45: 51 | H45: 53.118 | I45: 54 | J45: 53.618 | K45: 54 | L45: 51.115 | M45: 51 | N45: 50.145 | O45: 50 | P45: 47.916 | Q45: 48 | R45: 48.906 | S45: 49 | T45: 48.048 | U45: 48 | V45: 46.059 | W45: 46 | X45: 45 | Y45: 45
A46: 04540000 | B46: Lawrence Family Development Charter (District) | C46: 454 | D46: 56 | E46: 56 | F46: 56 | G46: 56 | H46: 53 | I46: 53 | J46: 54 | K46: 54 | L46: 54 | M46: 54 | N46: 54 | O46: 54 | P46: 52.956 | Q46: 53 | R46: 51.956 | S46: 52 | T46: 49 | U46: 49 | V46: 50 | W46: 50 | X46: 51 | Y46: 51
A47: 04550000 | B47: Hill View Montessori Charter Public (District) | C47: 455 | D47: 21.576 | E47: 24 | F47: 22.676 | G47: 23 | H47: 20.653 | I47: 24 | J47: 20.153 | K47: 22 | L47: 22.352 | M47: 23 | N47: 21.477 | O47: 23 | P47: 27.478 | Q47: 30 | R47: 27.828 | S47: 29 | T47: 24.201 | U47: 27 | V47: 26.625 | W47: 29 | X47: 23.725 | Y47: 25
A48: 04560000 | B48: Lowell Community Charter Public (District) | C48: 456 | D48: 49.94 | E48: 50 | F48: 55.94 | G48: 56 | H48: 48.13 | I48: 48 | J48: 48.09 | K48: 48 | L48: 45.63 | M48: 47 | N48: 47.46 | O48: 49 | P48: 47.69 | Q48: 48 | R48: 45.94 | S48: 46 | T48: 61.293 | U48: 62 | V48: 57.857 | W48: 59 | X48: 79 | Y48: 79
A49: 04570000 | B49: Brooke Charter School East Boston (District) | C49: 457 | D49: 33 | E49: 33 | F49: 33 | G49: 33 | H49: 24.5 | I49: 25 | J49: 24.5 | K49: 25 | L49: 15.5 | M49: 16 | N49: 15.5 | O49: 16 | P49: NE | Q49: NE | R49: NE | S49: NE | T49: NE | U49: NE | V49: NE | W49: NE | X49: NE | Y49: NE
A50: 04580000 | B50: Lowell Middlesex Academy Charter (District) | C50: 458 | D50: 11.77 | E50: 13 | F50: 11.905 | G50: 14 | H50: 11.911 | I50: 14 | J50: 12.51 | K50: 13 | L50: 13.713 | M50: 15 | N50: 12.977 | O50: 15 | P50: 10.4 | Q50: 14 | R50: 11.4 | S50: 14 | T50: 12.8 | U50: 15 | V50: 12 | W50: 15 | X50: 9.6 | Y50: 11
A51: 04590000 | B51: Excel Academy Charter School - Boston II | C51: 459 | D51: Closed | E51: Closed | F51: Closed | G51: Closed | H51: 8.625 | I51: 14 | J51: 11.099 | K51: 15 | L51: 4.17 | M51: 6 | N51: 5.298 | O51: 6 | P51: NE | Q51: NE | R51: NE | S51: NE | T51: NE | U51: NE | V51: NE | W51: NE | X51: NE | Y51: NE
A52: 04610000 | B52: Excel Academy Charter School - Chelsea | C52: 461 | D52: Closed | E52: Closed | F52: Closed | G52: Closed | H52: 12.734 | I52: 17 | J52: 14.896 | K52: 17 | L52: 7.806 | M52: 12 | N52: 10.002 | O52: 12 | P52: 5.104 | Q52: 6 | R52: 5.802 | S52: 6 | T52: NE | U52: NE | V52: NE | W52: NE | X52: NE | Y52: NE
A53: 04620000 | B53: Grove Hall Preparatory Charter School (District) | C53: 462 | D53: Closed | E53: Closed | F53: Closed | G53: Closed | H53: Closed | I53: Closed | J53: Closed | K53: Closed | L53: Closed | M53: Closed | N53: Closed | O53: Closed | P53: 7.94 | Q53: 8 | R53: 7.99 | S53: 8 | T53: NE | U53: NE | V53: NE | W53: NE | X53: NE | Y53: NE
A54: 04630000 | B54: KIPP Academy Boston Charter School (District) | C54: 463 | D54: 26.979 | E54: 27 | F54: 28.977 | G54: 29 | H54: 12.988 | I54: 13 | J54: 14.987 | K54: 15 | L54: 6.5 | M54: 8 | N54: 8.194 | O54: 10 | P54: NE | Q54: NE | R54: NE | S54: NE | T54: NE | U54: NE | V54: NE | W54: NE | X54: NE | Y54: NE
A55: 04640000 | B55: Marblehead Community Charter Public (District) | C55: 464 | D55: 20.8 | E55: 22 | F55: 20.4 | G55: 22 | H55: 21.35 | I55: 24 | J55: 22.15 | K55: 25 | L55: 19.75 | M55: 22 | N55: 19.55 | O55: 22 | P55: 20.645 | Q55: 23 | R55: 20.645 | S55: 23 | T55: 21.9 | U55: 25 | V55: 21.65 | W55: 25 | X55: 20.5 | Y55: 23
A56: 04650000 | B56: MATCH Community Day Charter Public School | C56: 465 | D56: Closed | E56: Closed | F56: Closed | G56: Closed | H56: 20.4 | I56: 21 | J56: 18.4 | K56: 19 | L56: 12.5 | M56: 13 | N56: 12.5 | O56: 13 | P56: 8 | Q56: 8 | R56: 8 | S56: 8 | T56: NE | U56: NE | V56: NE | W56: NE | X56: NE | Y56: NE
A57: 04660000 | B57: Martha's Vineyard Charter (District) | C57: 466 | D57: 18.07 | E57: 22 | F57: 18.04 | G57: 21 | H57: 17.32 | I57: 21 | J57: 19.21 | K57: 23 | L57: 17.36 | M57: 21 | N57: 17.95 | O57: 22 | P57: 19.46 | Q57: 22 | R57: 19.46 | S57: 22 | T57: 19.38 | U57: 22 | V57: 19.748 | W57: 22 | X57: 18.764 | Y57: 20
A58: 04670000 | B58: New Liberty Charter School of Salem (District) | C58: 467 | D58: 5.6 | E58: 7 | F58: 5.43 | G58: 6 | H58: 4.6 | I58: 6 | J58: 4.634 | K58: 6 | L58: 4.3 | M58: 6 | N58: 4.82 | O58: 6 | P58: 5.52 | Q58: 7 | R58: 5.565 | S58: 8 | T58: NE | U58: NE | V58: NE | W58: NE | X58: NE | Y58: NE
A59: 04690000 | B59: MATCH Charter Public School (District) | C59: 469 | D59: 53.29 | E59: 61 | F59: 57.3 | G59: 63 | H59: 31.04 | I59: 33 | J59: 33.04 | K59: 35 | L59: 30.2 | M59: 32 | N59: 30.2 | O59: 32 | P59: 27.5 | Q59: 28 | R59: 27 | S59: 27 | T59: 24.5 | U59: 25 | V59: 24.5 | W59: 25 | X59: 23.24 | Y59: 26
A60: 04700000 | B60: Mystic Valley Regional Charter (District) | C60: 470 | D60: 104.606 | E60: 111 | F60: 106.903 | G60: 113 | H60: 103.615 | I60: 110 | J60: 104.815 | K60: 112 | L60: 103.853 | M60: 108 | N60: 102.387 | O60: 108 | P60: 98.055 | Q60: 100 | R60: 93.347 | S60: 99 | T60: 89.115 | U60: 91 | V60: 88.368 | W60: 92 | X60: 94.99 | Y60: 95
A61: 04710000 | B61: New Leadership Charter (District) | C61: 471 | D61: Closed | E61: Closed | F61: Closed | G61: Closed | H61: Closed | I61: Closed | J61: Closed | K61: Closed | L61: 32.416 | M61: 46 | N61: 31.516 | O61: 46 | P61: 30.961 | Q61: 46 | R61: 30.683 | S61: 48 | T61: 15.279 | U61: 38 | V61: 21.872 | W61: 51 | X61: 42.907 | Y61: 47
A62: 04740000 | B62: Sizer School: A North Central Charter Essential (District) | C62: 474 | D62: 36.35 | E62: 44 | F62: 39.029 | G62: 47 | H62: 34.101 | I62: 43 | J62: 35.389 | K62: 43 | L62: 34.836 | M62: 42 | N62: 35.142 | O62: 40 | P62: 35.077 | Q62: 45 | R62: 34.589 | S62: 43 | T62: 34.325 | U62: 41 | V62: 33.917 | W62: 39 | X62: 34.125 | Y62: 37
A63: 04750000 | B63: Dorchester Collegiate Academy Charter (District) | C63: 475 | D63: 17.2 | E63: 17 | F63: 16 | G63: 16 | H63: 17.502 | I63: 18 | J63: 6.89 | K63: 17 | L63: 13 | M63: 13 | N63: 13 | O63: 13 | P63: 9.75 | Q63: 10 | R63: 9.75 | S63: 10 | T63: 5.775 | U63: 6 | V63: 5.4 | W63: 6 | X63: 2.2 | Y63: 3
A64: 04760000 | B64: Spirit of Knowledge Charter School (District) | C64: 476 | D64: Closed | E64: Closed | F64: Closed | G64: Closed | H64: Closed | I64: Closed | J64: Closed | K64: Closed | L64: 14.186 | M64: 17 | N64: 14.713 | O64: 17 | P64: 13.577 | Q64: 15 | R64: 13.82 | S64: 17 | T64: 12.682 | U64: 18 | V64: 9.339 | W64: 15 | X64: NE | Y64: NE
A65: 04770000 | B65: Silver Hill Horace Mann Charter (District) | C65: 477 | D65: 36.943 | E65: 37 | F65: 36.993 | G65: 37 | H65: 38.513 | I65: 38 | J65: 38.057 | K65: 38 | L65: 35.735 | M65: 36 | N65: 35.921 | O65: 36 | P65: 32.193 | Q65: 35 | R65: 35.966 | S65: 36 | T65: 34.966 | U65: 35 | V65: 34.966 | W65: 35 | X65: 38.75 | Y65: 39
A66: 04780000 | B66: Francis W. Parker Charter Essential (District) | C66: 478 | D66: 33.95 | E66: 38 | F66: 45.75 | G66: 50 | H66: 47.411 | I66: 51 | J66: 47.242 | K66: 52 | L66: 45.197 | M66: 50 | N66: 45.096 | O66: 49 | P66: 45.46 | Q66: 50 | R66: 45.45 | S66: 50 | T66: 44.775 | U66: 48 | V66: 44.775 | W66: 48 | X66: 45.025 | Y66: 51
A67: 04790000 | B67: Pioneer Valley Performing Arts Charter Public (District) | C67: 479 | D67: 35.696 | E67: 45 | F67: 39.52 | G67: 50 | H67: 35.396 | I67: 43 | J67: 40.83 | K67: 54 | L67: 42.37 | M67: 56 | N67: 41.86 | O67: 59 | P67: 43.44 | Q67: 55 | R67: 39.829 | S67: 54 | T67: 39.74 | U67: 60 | V67: 39 | W67: 59 | X67: 35.85 | Y67: 59
A68: 04800000 | B68: UP Academy Charter School of Boston (District) | C68: 480 | D68: 42.98 | E68: 44 | F68: 45.5 | G68: 47 | H68: 27.01 | I68: 29 | J68: 45.1 | K68: 46 | L68: 45.78 | M68: 48 | N68: 47.37 | O68: 48 | P68: 41.16 | Q68: 43 | R68: 42.5 | S68: 43 | T68: NE | U68: NE | V68: NE | W68: NE | X68: NE | Y68: NE
A69: 04810000 | B69: Boston Renaissance Charter Public (District) | C69: 481 | D69: 77 | E69: 77 | F69: 76 | G69: 76 | H69: 73 | I69: 73 | J69: 72.67 | K69: 74 | L69: 70.05 | M69: 70 | N69: 70.82 | O69: 71 | P69: 78.77 | Q69: 79 | R69: 76.86 | S69: 77 | T69: 93.68 | U69: 94 | V69: 93.8 | W69: 94 | X69: 95 | Y69: 96
A70: 04820000 | B70: River Valley Charter (District) | C70: 482 | D70: 19.405 | E70: 20 | F70: 18.405 | G70: 20 | H70: 19.468 | I70: 20 | J70: 18.464 | K70: 19 | L70: 14.151 | M70: 18 | N70: 17.436 | O70: 18 | P70: 17.492 | Q70: 18 | R70: 16.492 | S70: 17 | T70: 17.124 | U70: 19 | V70: 17.124 | W70: 19 | X70: 21 | Y70: 21
A71: 04830000 | B71: Rising Tide Charter Public (District) | C71: 483 | D71: 49.133 | E71: 54 | F71: 46.718 | G71: 53 | H71: 39.508 | I71: 45 | J71: 43.485 | K71: 47 | L71: 31.5 | M71: 41 | N71: 34.539 | O71: 41 | P71: 32.24 | Q71: 34 | R71: 32.41 | S71: 35 | T71: 23.57 | U71: 25 | V71: 24.82 | W71: 26 | X71: 24.36 | Y71: 26
A72: 04840000 | B72: Roxbury Preparatory Charter (District) | C72: 484 | D72: 78.14 | E72: 79 | F72: 77.56 | G72: 79 | H72: 64.57 | I72: 67 | J72: 65.07 | K72: 67 | L72: 53.51 | M72: 56 | N72: 55.31 | O72: 56 | P72: 23.05 | Q72: 27 | R72: 23.05 | S72: 27 | T72: 25.83 | U72: 32 | V72: 27.83 | W72: 34 | X72: 26.259 | Y72: 30
A73: 04850000 | B73: Salem Academy Charter (District) | C73: 485 | D73: 37.64 | E73: 40 | F73: 42.8 | G73: 43 | H73: 38.65 | I73: 43 | J73: 39.03 | K73: 43 | L73: 34.146 | M73: 37 | N73: 36.04 | O73: 37 | P73: 31.505 | Q73: 37 | R73: 30.41 | S73: 37 | T73: 33.957 | U73: 40 | V73: 35.59 | W73: 41 | X73: 36.7 | Y73: 41
A74: 04860000 | B74: Seven Hills Charter Public (District) | C74: 486 | D74: 55.3 | E74: 56 | F74: 56.3 | G74: 57 | H74: 53.74 | I74: 54 | J74: 53.175 | K74: 54 | L74: 50.102 | M74: 52 | N74: 51.474 | O74: 53 | P74: 49.277 | Q74: 51 | R74: 50.176 | S74: 52 | T74: 48.203 | U74: 51 | V74: 48.665 | W74: 50 | X74: 41.5 | Y74: 42
A75: 04870000 | B75: Prospect Hill Academy Charter (District) | C75: 487 | D75: 88.08 | E75: 110 | F75: 87.393 | G75: 107 | H75: 93.022 | I75: 108 | J75: 93.3 | K75: 107 | L75: 101.852 | M75: 103 | N75: 106.767 | O75: 107 | P75: 103.116 | Q75: 105 | R75: 97.654 | S75: 100 | T75: 87.901 | U75: 102 | V75: 84.601 | W75: 101 | X75: 80.762 | Y75: 81
A76: 04880000 | B76: South Shore Charter Public (District) | C76: 488 | D76: 51.592 | E76: 54 | F76: 56.601 | G76: 58 | H76: 47.763 | I76: 53 | J76: 49.974 | K76: 56 | L76: 44.893 | M76: 50 | N76: 48.628 | O76: 52 | P76: 47.027 | Q76: 52 | R76: 45.493 | S76: 49 | T76: 46.264 | U76: 52 | V76: 45.956 | W76: 51 | X76: 40.78 | Y76: 47
A77: 04890000 | B77: Sturgis Charter Public (District) | C77: 489 | D77: 83.25 | E77: 91 | F77: 85.25 | G77: 91 | H77: 78.13 | I77: 92 | J77: 82.49 | K77: 92 | L77: 67.342 | M77: 77 | N77: 76.21 | O77: 85 | P77: 59.792 | Q77: 69 | R77: 59.97 | S77: 68 | T77: 38.72 | U77: 45 | V77: 38.42 | W77: 45 | X77: 40.23 | Y77: 46
A78: 04910000 | B78: Atlantis Charter (District) | C78: 491 | D78: 48.66 | E78: 54 | F78: 60.26 | G78: 62 | H78: 53.6 | I78: 54 | J78: 54.6 | K78: 55 | L78: 47.92 | M78: 49 | N78: 51.8 | O78: 53 | P78: 52.13 | Q78: 53 | R78: 54.14 | S78: 55 | T78: 56.04 | U78: 56 | V78: 56.03 | W78: 56 | X78: 56.223 | Y78: 56
A79: 04920000 | B79: Martin Luther King Jr. Charter School of Excellence (District) | C79: 492 | D79: 38.169 | E79: 39 | F79: 37.722 | G79: 39 | H79: 39.163 | I79: 40 | J79: 38.229 | K79: 40 | L79: 38.975 | M79: 41 | N79: 39.855 | O79: 41 | P79: 37.808 | Q79: 39 | R79: 36.801 | S79: 38 | T79: 39.26 | U79: 40 | V79: 39.71 | W79: 40 | X79: 31.769 | Y79: 33
A80: 04930000 | B80: Phoenix Charter Academy (District) | C80: 493 | D80: 13.8 | E80: 30 | F80: 17.87 | G80: 30 | H80: 16.48 | I80: 33 | J80: 17.17 | K80: 26 | L80: 16.05 | M80: 27 | N80: 16.64 | O80: 28 | P80: 17.49 | Q80: 27 | R80: 17.17 | S80: 27 | T80: 14.81 | U80: 23 | V80: 14.57 | W80: 23 | X80: 21.35 | Y80: 32
A81: 04940000 | B81: Pioneer Charter School of Science (District) | C81: 494 | D81: 32.343 | E81: 37 | F81: 32.05 | G81: 36 | H81: 30 | I81: 38 | J81: 32.16 | K81: 38 | L81: 31.15 | M81: 38 | N81: 29.96 | O81: 35 | P81: 27.02 | Q81: 35 | R81: 26.8 | S81: 34 | T81: 29.19 | U81: 31 | V81: 27.7 | W81: 31 | X81: 21.2 | Y81: 23
A82: 04960000 | B82: Global Learning Charter Public (District) | C82: 496 | D82: 40.669 | E82: 44 | F82: 42.814 | G82: 45 | H82: 46.716 | I82: 45 | J82: 40.533 | K82: 43 | L82: 42.905 | M82: 45 | N82: 41.52 | O82: 44 | P82: 36.84 | Q82: 40 | R82: 38.6 | S82: 40 | T82: 38.015 | U82: 41 | V82: 34.286 | W82: 41 | X82: 28.47 | Y82: 32
A83: 04970000 | B83: Pioneer Valley Chinese Immersion Charter (District) | C83: 497 | D83: 43.914 | E83: 46 | F83: 44.864 | G83: 47 | H83: 34.1 | I83: 37 | J83: 33.1 | K83: 36 | L83: 28.3 | M83: 31 | N83: 28.3 | O83: 31 | P83: 24.1 | Q83: 25 | R83: 24.6 | S83: 25 | T83: 20.75 | U83: 21 | V83: 20.75 | W83: 21 | X83: 20.5 | Y83: 21
A84: 04980000 | B84: Veritas Preparatory Charter School (District) | C84: 498 | D84: 19 | E84: 19 | F84: 19 | G84: 19 | H84: 14.5 | I84: 16 | J84: 16 | K84: 16 | L84: 9.949 | M84: 10 | N84: 7.95 | O84: 8 | P84: NE | Q84: NE | R84: NE | S84: NE | T84: NE | U84: NE | V84: NE | W84: NE | X84: NE | Y84: NE
A85: 04990000 | B85: Hampden Charter School of Science (District) | C85: 499 | D85: 27.466 | E85: 36 | F85: 31.501 | G85: 37 | H85: 25.479 | I85: 40 | J85: 29.451 | K85: 39 | L85: 26.993 | M85: 33 | N85: 26.68 | O85: 34 | P85: 28.857 | Q85: 31 | R85: 28 | S85: 30 | T85: 19.65 | U85: 23 | V85: 18.65 | W85: 22 | X85: 14.538 | Y85: 16
A86: 35010000 | B86: Paulo Freire Social Justice Charter School (District) | C86: 3501 | D86: 33.067 | E86: 38 | F86: 29.461 | G86: 38 | H86: 25.003 | I86: 26 | J86: 19.862 | K86: 28 | L86: NE | M86: NE | N86: NE | O86: NE | P86: NE | Q86: NE | R86: NE | S86: NE | T86: NE | U86: NE | V86: NE | W86: NE | X86: NE | Y86: NE
A87: 35020000 | B87: Baystate Academy Charter Public School (District) | C87: 3502 | D87: 19.83 | E87: 20 | F87: 22.08 | G87: 22 | H87: 8.31 | I87: 11 | J87: 9.21 | K87: 11 | L87: NE | M87: NE | N87: NE | O87: NE | P87: NE | Q87: NE | R87: NE | S87: NE | T87: NE | U87: NE | V87: NE | W87: NE | X87: NE | Y87: NE
A88: 35030000 | B88: Lowell Collegiate Charter School (District) | C88: 3503 | D88: 21 | E88: 22 | F88: 21.48 | G88: 22 | H88: 16.2 | I88: 18 | J88: 15.2 | K88: 17 | L88: NE | M88: NE | N88: NE | O88: NE | P88: NE | Q88: NE | R88: NE | S88: NE | T88: NE | U88: NE | V88: NE | W88: NE | X88: NE | Y88: NE
A89: 35040000 | B89: City on a Hill Charter Public School Dudley Square (District) | C89: 3504 | D89: 13.5 | E89: 18 | F89: 13.8 | G89: 19 | H89: 8.2 | I89: 13 | J89: 8.2 | K89: 13 | L89: NE | M89: NE | N89: NE | O89: NE | P89: NE | Q89: NE | R89: NE | S89: NE | T89: NE | U89: NE | V89: NE | W89: NE | X89: NE | Y89: NE
A90: 35050000 | B90: UP Academy Charter School of Dorchester (District) | C90: 3505 | D90: 41 | E90: 41 | F90: 58 | G90: 58 | H90: 44.75 | I90: 45 | J90: 55.87 | K90: 56 | L90: NE | M90: NE | N90: NE | O90: NE | P90: NE | Q90: NE | R90: NE | S90: NE | T90: NE | U90: NE | V90: NE | W90: NE | X90: NE | Y90: NE
A91: 35060000 | B91: Pioneer Charter School of Science II (PCSS-II) (District) | C91: 3506 | D91: 22.292 | E91: 25 | F91: 21.446 | G91: 24 | H91: 16.7 | I91: 20 | J91: 16.9 | K91: 20 | L91: NE | M91: NE | N91: NE | O91: NE | P91: NE | Q91: NE | R91: NE | S91: NE | T91: NE | U91: NE | V91: NE | W91: NE | X91: NE | Y91: NE
A92: 35070000 | B92: City on a Hill Charter Public School New Bedford (District) | C92: 3507 | D92: 8.5 | E92: 13 | F92: 8.1 | G92: 12 | H92: NE | I92: NE | J92: NE | K92: NE | L92: NE | M92: NE | N92: NE | O92: NE | P92: NE | Q92: NE | R92: NE | S92: NE | T92: NE | U92: NE | V92: NE | W92: NE | X92: NE | Y92: NE
A93: 35080000 | B93: Phoenix Academy Public Charter High School Springfield (District) | C93: 3508 | D93: 7.4 | E93: 11 | F93: 8.5 | G93: 15 | H93: NE | I93: NE | J93: NE | K93: NE | L93: NE | M93: NE | N93: NE | O93: NE | P93: NE | Q93: NE | R93: NE | S93: NE | T93: NE | U93: NE | V93: NE | W93: NE | X93: NE | Y93: NE
A94: 35090000 | B94: Argosy Collegiate Charter School (District) | C94: 3509 | D94: 8.1 | E94: 11 | F94: 7.6 | G94: 10 | H94: NE | I94: NE | J94: NE | K94: NE | L94: NE | M94: NE | N94: NE | O94: NE | P94: NE | Q94: NE | R94: NE | S94: NE | T94: NE | U94: NE | V94: NE | W94: NE | X94: NE | Y94: NE

Sheet FTE (hidden)
A1: LEA | B1: Adj Total FTE for Grade
A2: 407 | B2: 221.1933702
A3: 409 | B3: 238.5631579
A4: 410 | B4: 606.1311475
A5: 411 | B5: 380.3687151
A6: 412 | B6: 518.3684211
A7: 413 | B7: 216.6
A8: 414 | B8: 329.1405405
A9: 415 | B9: 44.82640302
A10: 416 | B10: 394.7554348
A11: 417 | B11: 189.6195652
A12: 418 | B12: 397.8
A13: 419 | B13: 219.2011136
A14: 420 | B14: 344.0277778
A15: 424 | B15: 369.7222222
A16: 426 | B16: 199.9666667
A17: 427 | B17: 286.4833333
A18: 428 | B18: 504.7371134
A19: 429 | B19: 841.4821838
A20: 430 | B20: 996.8555556
A21: 431 | B21: 199.85
A22: 432 | B22: 239.8722222
A23: 435 | B23: 761.9222222
A24: 436 | B24: 391.9444444
A25: 437 | B25: 278.6075269
A26: 438 | B26: 265.9904329
A27: 439 | B27: 394.0666667
A28: 440 | B28: 399.2166667
A29: 441 | B29: 1568.383333
A30: 443 | B30: 457.9459459
A31: 444 | B31: 398.1777778
A32: 445 | B32: 1424.716667
A33: 446 | B33: 1264.903226
A34: 447 | B34: 449.5444444
A35: 449 | B35: 685.1546961
A36: 450 | B36: 193.0055556
A37: 452 | B37: 365.1888889
A38: 453 | B38: 700.9055556
A39: 454 | B39: 675.0833333
A40: 455 | B40: 305.0444444
A41: 456 | B41: 763.5277778
A42: 457 | B42: 389.8670213
A43: 458 | B43: 111.4833333
A44: 463 | B44: 286.9872635
A45: 464 | B45: 229.7944444
A46: 466 | B46: 175.6722222
A47: 467 | B47: 52.68891243
A48: 469 | B48: 893.0208147
A49: 470 | B49: 1501.045226
A50: 474 | B50: 349.0666667
A51: 475 | B51: 188.6055556
A52: 477 | B52: 588.15
A53: 478 | B53: 392.0576266
A54: 479 | B54: 402.2983425
A55: 480 | B55: 460.8415301
A56: 481 | B56: 938.0611111
A57: 482 | B57: 287.2055556
A58: 483 | B58: 590.0888889
A59: 484 | B59: 875.2122822
A60: 485 | B60: 372.025641
A61: 486 | B61: 663.828125
A62: 487 | B62: 1150.405556
A63: 488 | B63: 585.2388889
A64: 489 | B64: 804.844913
A65: 491 | B65: 881.0587213
A66: 492 | B66: 362.9666667
A67: 493 | B67: 173.295082
A68: 494 | B68: 356.9355362
A69: 496 | B69: 502.8055556
A70: 497 | B70: 388.15
A71: 498 | B71: 240.5405405
A72: 499 | B72: 354.3131868
A73: 3501 | B73: 245.6388889
A74: 3502 | B74: 225.5359116
A75: 3503 | B75: 339.5333333
A76: 3504 | B76: 185.0957447
A77: 3505 | B77: 624.5425532
A78: 3506 | B78: 226.746114
A79: 3507 | B79: 82.7712766
A80: 3508 | B80: 122.281768
A81: 3509 | B81: 102.5277778
A82: Gran | B82: 37186.12313

Sheet TYPE (hidden)
A1: LEA | B1: Charter School | C1: Type
A2: 407 | B2: Dudley Street Neighborhood Charter School | C2: HM
A3: 409 | B3: Alma del Mar Charter School | C3: C
A4: 410 | B4: Excel Academy Charter School | C4: C
A5: 411 | B5: Boston Green Academy Horace Mann Charter School | C5: HM
A6: 412 | B6: Academy of the Pacific Rim Charter Public School | C6: C
A7: 413 | B7: Four Rivers Charter Public School | C7: C
A8: 414 | B8: Berkshire Arts and Technology Charter Public School | C8: C
A9: 415 | B9: Amesbury Academy Charter Public School | C9: HM
A10: 416 | B10: Boston Preparatory Charter Public School | C10: C
A11: 417 | B11: Bridge Boston Charter School | C11: C
A12: 418 | B12: Christa McAuliffe Charter School | C12: C
A13: 419 | B13: Helen Y Davis Leadership Academy Charter Public School | C13: C
A14: 420 | B14: Benjamin Banneker Charter Public School | C14: C
A15: 421 | B15: South End College Preparatory Charter School | C15: C
A16: 422 | B16: Roxbury Charter High Public School | C16: C
A17: 423 | B17: Barnstable Horace Mann Charter School | C17: HM
A18: 424 | B18: Boston Day and Evening Academy Charter School | C18: HM
A19: 425 | B19: Boston University Residential Charter School | C19: C
A20: 426 | B20: Community Day Charter Public School - Gateway | C20: C
A21: 427 | B21: Barnstable Community Horace Mann Charter Public School | C21: HM
A22: 428 | B22: Brooke Charter School Roslindale (FY17-will merge with 0443 and 0457 as Brooke Charter School LEA 428, K-12) | C22: C
A23: 429 | B23: KIPP Academy Lynn Charter School | C23: C
A24: 430 | B24: Advanced Math and Science Academy Charter School | C24: C
A25: 431 | B25: Community Day Charter Public School - R. Kingman Webster | C25: C
A26: 432 | B26: Cape Cod Lighthouse Charter School | C26: C
A27: 433 | B27: Dorchester Prep | C27: C
A28: 434 | B28: Champion Charter Public School | C28: HM
A29: 435 | B29: Innovation Academy Charter School | C29: C
A30: 436 | B30: Community Charter School of Cambridge | C30: C
A31: 437 | B31: City on a Hill Charter Public School Circuit Street | C31: C
A32: 438 | B32: Codman Academy Charter Public School | C32: C
A33: 439 | B33: Conservatory Lab Charter School | C33: C
A34: 440 | B34: Community Day Charter Public School - Prospect | C34: C
A35: 441 | B35: Sabis International Charter School | C35: C
A36: 442 | B36: Frederick Douglass Charter School | C36: C
A37: 443 | B37: Brooke Charter School Mattapan (FY17-will merge with 0428 and 0457 as Brooke Charter School LEA 428, K-12) | C37: C
A38: 444 | B38: Neighborhood House Charter School | C38: C
A39: 445 | B39: Abby Kelley Foster Charter Public School | C39: C
A40: 446 | B40: Foxborough Regional Charter School | C40: C
A41: 447 | B41: Benjamin Franklin Classical Charter Public School | C41: C
A42: 448 | B42: Gloucester Community Arts Charter School | C42: C
A43: 448 | B43: Horace Mann Charter School of Essential Studies | C43: HM
A44: 449 | B44: Boston Collegiate Charter School | C44: C
A45: 450 | B45: Hilltown Cooperative Charter Public School | C45: C
A46: 451 | B46: Robert M. Hughes Academy Charter Public School | C46: C
A47: 452 | B47: Edward M. Kennedy Academy for Health Careers: A Horace Mann Charter Public School | C47: HM
A48: 453 | B48: Holyoke Community Charter School | C48: C
A49: 454 | B49: Lawrence Family Development Charter School | C49: C
A50: 455 | B50: Hill View Montessori Charter Public School | C50: C
A51: 456 | B51: Lowell Community Charter Public School | C51: C
A52: 457 | B52: Brooke Charter School East Boston (FY17-will merge with 0428 and 0457 as Brooke Charter School LEA, 428 K-12) | C52: C
A53: 458 | B53: Lowell Middlesex Academy Charter School | C53: C
A54: 459 | B54: Excel Academy Charter School - Boston II | C54: C
A55: 460 | B55: Lynn Community Charter School | C55: C
A56: 461 | B56: Excel Academy Charter School - Chelsea | C56: C
A57: 462 | B57: Grove Hall Prep | C57: C
A58: 463 | B58: KIPP Academy Boston Charter School | C58: C
A59: 464 | B59: Marblehead Community Charter Public School | C59: C
A60: 465 | B60: MATCH Community Day Charter Public School | C60: C
A61: 466 | B61: Martha's Vineyard Public Charter School | C61: C
A62: 467 | B62: New Liberty Charter School of Salem (Closing at end of FY16. Will be operated by Salem Public Schools in FY17) | C62: HM
A63: 469 | B63: Match Charter Public School | C63: C
A64: 470 | B64: Mystic Valley Regional Charter School | C64: C
A65: 471 | B65: New Leadership Charter School | C65: HM
A66: 472 | B66: New Bedford Global Learning Charter School | C66: HM
A67: 473 | B67: North Star Academy Charter School | C67: C
A68: 474 | B68: Sizer School, A North Central Charter Essential School | C68: C
A69: 475 | B69: Dorchester Collegiate Academy Charter School (Closing at end of FY16) | C69: C
A70: 476 | B70: Northern Bristol County Charter School | C70: C
A71: 476 | B71: Spirit of Knowledge Charter School | C71: C
A72: 477 | B72: Silver Hill Horace Mann Charter School | C72: HM
A73: 478 | B73: Francis W. Parker Charter Essential School | C73: C
A74: 479 | B74: Pioneer Valley Performing Arts Charter Public School | C74: C
A75: 480 | B75: UP Academy Charter School of Boston | C75: HM
A76: 481 | B76: Boston Renaissance Charter Public School | C76: C
A77: 482 | B77: River Valley Charter School | C77: C
A78: 483 | B78: Rising Tide Charter Public School | C78: C
A79: 484 | B79: Roxbury Preparatory Charter School | C79: C
A80: 485 | B80: Salem Academy Charter School | C80: C
A81: 486 | B81: Seven Hills Charter Public School | C81: C
A82: 487 | B82: Prospect Hill Academy Charter School | C82: C
A83: 488 | B83: South Shore Charter Public School | C83: C
A84: 489 | B84: Sturgis Charter Public School | C84: C
A85: 490 | B85: Uphams Corner Charter School | C85: C
A86: 491 | B86: Atlantis Charter School | C86: C
A87: 492 | B87: Martin Luther King, Jr. Charter School of Excellence | C87: C
A88: 493 | B88: Phoenix Academy Charter Public High School, Chelsea | C88: C
A89: 494 | B89: Pioneer Charter School of Science | C89: C
A90: 495 | B90: Fall River Maritime Charter Public School | C90: C
A91: 496 | B91: Global Learning Charter Public School | C91: C
A92: 497 | B92: Pioneer Valley Chinese Immersion Charter School | C92: C
A93: 498 | B93: Veritas Preparatory Charter School | C93: C
A94: 498 | B94: Youth Build Boston Charter School | C94: C
A95: 499 | B95: Hampden Charter School of Science | C95: C
A96: 3501 | B96: Paulo Freire Social Justice Charter School | C96: C
A97: 3502 | B97: Baystate Academy Charter Public School | C97: C
A98: 3503 | B98: Lowell Collegiate Charter School | C98: C
A99: 3504 | B99: City on a Hill Charter Public School Dudley Square | C99: C
A100: 3505 | B100: UP Academy Charter School of Dorchester | C100: HM
A101: 3506 | B101: Pioneer Charter School of Science II | C101: C
A102: 3507 | B102: City On A Hill Charter Public School New Bedford | C102: C
A103: 3508 | B103: Phoenix Academy Public Charter High School, Springfield | C103: C
A104: 3509 | B104: Argosy Collegiate Charter School | C104: C
A105: 3510 | B105: Springfield Preparatory Charter School | C105: C
A106: 3511 | B106: Bentley Academy Charter School | C106: HM
A107: 3512 | B107: UP Academy Charter School of Springfield | C107: HM
A108: 3513 | B108: Libertas Academy Charter School (New school opening FY18) | C108: C
A109: 3513 | B109: New Heights Charter School of Brockton (New school opening FY17) | C109: C

Sheet Sheet2 (hidden)
A1: A | C1: B
A2: 407 | C2: 407 | D2: =EXACT(A2,C2) -> TRUE
A3: 409 | C3: 409 | D3: =EXACT(A3,C3) -> TRUE
A4: 410 | C4: 410 | D4: TRUE
A5: 411 | C5: 411 | D5: TRUE
A6: 412 | C6: 412 | D6: TRUE
A7: 413 | C7: 413 | D7: TRUE
A8: 414 | C8: 414 | D8: TRUE
A9: 415 | C9: 415 | D9: TRUE
A10: 416 | C10: 416 | D10: TRUE
A11: 417 | C11: 417 | D11: TRUE
A12: 418 | C12: 418 | D12: TRUE
A13: 419 | C13: 419 | D13: TRUE
A14: 420 | C14: 420 | D14: TRUE
A15: 424 | C15: 424 | D15: TRUE
A16: 426 | C16: 426 | D16: TRUE
A17: 427 | C17: 427 | D17: TRUE
A18: 428 | C18: 428 | D18: TRUE
A19: 429 | C19: 429 | D19: TRUE
A20: 430 | C20: 430 | D20: TRUE
A21: 431 | C21: 431 | D21: TRUE
A22: 432 | C22: 432 | D22: TRUE
A23: 435 | C23: 435 | D23: TRUE
A24: 436 | C24: 436 | D24: TRUE
A25: 437 | C25: 437 | D25: TRUE
A26: 438 | C26: 438 | D26: TRUE
A27: 439 | C27: 439 | D27: TRUE
A28: 440 | C28: 440 | D28: TRUE
A29: 441 | C29: 441 | D29: TRUE
A30: 443 | C30: 443 | D30: TRUE
A31: 444 | C31: 444 | D31: TRUE
A32: 445 | C32: 445 | D32: TRUE
A33: 446 | C33: 446 | D33: TRUE
A34: 447 | C34: 447 | D34: TRUE
A35: 449 | C35: 449 | D35: TRUE
A36: 450 | C36: 450 | D36: TRUE
A37: 452 | C37: 452 | D37: TRUE
A38: 453 | C38: 453 | D38: TRUE
A39: 454 | C39: 454 | D39: TRUE
A40: 455 | C40: 455 | D40: TRUE
A41: 456 | C41: 456 | D41: TRUE
A42: 457 | C42: 457 | D42: TRUE
A43: 458 | C43: 458 | D43: TRUE
A44: 459 | D44: FALSE | H44: 459 | I44: Excel Academy Charter School - Boston II
A45: 461 | D45: FALSE | H45: 461 | I45: Excel Academy Charter School - Chelsea
A46: 463 | C46: 463 | D46: TRUE
A47: 464 | C47: 464 | D47: TRUE
A48: 465 | D48: FALSE | H48: 465 | I48: MATCH Community Day Charter Public School
A49: 466 | C49: 466 | D49: TRUE
A50: 467 | C50: 467 | D50: TRUE
A51: 469 | C51: 469 | D51: TRUE
A52: 470 | C52: 470 | D52: TRUE
A53: 474 | C53: 474 | D53: TRUE
A54: 475 | C54: 475 | D54: TRUE
A55: 477 | C55: 477 | D55: TRUE
A56: 478 | C56: 478 | D56: TRUE
A57: 479 | C57: 479 | D57: TRUE
A58: 480 | C58: 480 | D58: TRUE
A59: 481 | C59: 481 | D59: TRUE
A60: 482 | C60: 482 | D60: TRUE
A61: 483 | C61: 483 | D61: TRUE
A62: 484 | C62: 484 | D62: TRUE
A63: 485 | C63: 485 | D63: TRUE
A64: 486 | C64: 486 | D64: TRUE
A65: 487 | C65: 487 | D65: TRUE
A66: 488 | C66: 488 | D66: TRUE
A67: 489 | C67: 489 | D67: =EXACT(A67,C67) -> TRUE
A68: 491 | C68: 491 | D68: TRUE
A69: 492 | C69: 492 | D69: TRUE
A70: 493 | C70: 493 | D70: TRUE
A71: 494 | C71: 494 | D71: TRUE
A72: 496 | C72: 496 | D72: TRUE
A73: 497 | C73: 497 | D73: TRUE
A74: 498 | C74: 498 | D74: TRUE
A75: 499 | C75: 499 | D75: TRUE
A76: 3501 | C76: 3501 | D76: TRUE
A77: 3502 | C77: 3502 | D77: TRUE
A78: 3503 | C78: 3503 | D78: TRUE
A79: 3504 | C79: 3504 | D79: TRUE
A80: 3505 | C80: 3505 | D80: TRUE
A81: 3506 | C81: 3506 | D81: TRUE
